Body Name,Transaction Number,Account Code Description,Expenses Type,Service Code,Service Area Categorisation,Supplier Name,Date,Amount
Bath and North East Somerset Council,10810033,LM6,Nursing Care,P11,Adult Social Care & Health,REDACTED,03/05/2016,21764.76
Bath and North East Somerset Council,10808850,HA1,Responsive Maintenance,P10,Finance & Efficiency,ASAP REWINDS,03/05/2016,1104
Bath and North East Somerset Council,10809551,LJ2,Legal Fees,P04,Leader,BNES LEGAL SERVICES IMPREST A/C,03/05/2016,20326.16
Bath and North East Somerset Council,10809453,HA4,Responsive Maintenance PCB,P10,Finance & Efficiency,MECHANICAL ENGINEERING SERVICE,03/05/2016,60.46
Bath and North East Somerset Council,10809452,HA4,Responsive Maintenance PCB,P10,Finance & Efficiency,MECHANICAL ENGINEERING SERVICE,03/05/2016,116.51
Bath and North East Somerset Council,10810001,LW9,Other Expenses,P04,Leader,INFORMATION COMMISSIONER,03/05/2016,840
Bath and North East Somerset Council,10809631,HA1,Responsive Maintenance,P10,Finance & Efficiency,ADT FIRE & SECURITY PLC,03/05/2016,436
Bath and North East Somerset Council,10810043,LJ4,Contracts,P14,Community Services,AIR SEAL PRODUCTS LTD,03/05/2016,438.7
Bath and North East Somerset Council,10809652,LA1,Equipment Purchase (Non Medical),P04,Leader,SOFTCAT LTD,03/05/2016,486.69
Bath and North East Somerset Council,10809971,LK1,Fees,P14,Community Services,THE WEDDING SECRET,03/05/2016,499.99
Bath and North East Somerset Council,10809921,LJ3,Other Services to the Council,P10,Finance & Efficiency,RELYON GUARDING & SECURITY SERVICES,03/05/2016,500
Bath and North East Somerset Council,10809966,LJ3,Other Services to the Council,P14,Community Services,GREENMAN ENVIRONMENTAL MANAGEMENT,03/05/2016,516.4
Bath and North East Somerset Council,10809961,KB1,Hire of Vehicles,P14,Community Services,WESSEX PLANT AND TOOL HIRE LTD,03/05/2016,525
Bath and North East Somerset Council,10809949,LA5,Materials,P14,Community Services,BALL COLEGRAVE LTD,03/05/2016,529.71
Bath and North East Somerset Council,10810075,LF1,Printing/Design,P10,Finance & Efficiency,FREESTYLE DESIGNS BATH LTD,03/05/2016,540.5
Bath and North East Somerset Council,10809333,HA2,Servicing,P10,Finance & Efficiency,ADT FIRE & SECURITY PLC,03/05/2016,553.71
Bath and North East Somerset Council,10808862,HA1,Responsive Maintenance,P10,Finance & Efficiency,HOVAL LIMITED,03/05/2016,640
Bath and North East Somerset Council,10809476,HA1,Responsive Maintenance,P10,Finance & Efficiency,ADT FIRE & SECURITY PLC,03/05/2016,646
Bath and North East Somerset Council,10810010,LA1,Equipment Purchase (Non Medical),P14,Community Services,CRAEMER UK LTD,03/05/2016,699.17
Bath and North East Somerset Council,10810037,KA3,Fuel,P14,Community Services,FORD FUELS LTD,03/05/2016,702.7
Bath and North East Somerset Council,10809452,HA4,Responsive Maintenance PCB,P10,Finance & Efficiency,MECHANICAL ENGINEERING SERVICE,03/05/2016,748.64
Bath and North East Somerset Council,10809634,HA1,Responsive Maintenance,P10,Finance & Efficiency,ADT FIRE & SECURITY PLC,03/05/2016,761
Bath and North East Somerset Council,10810070,KA3,Fuel,P14,Community Services,FORD FUELS LTD,03/05/2016,819
Bath and North East Somerset Council,10809654,HA1,Responsive Maintenance,P10,Finance & Efficiency,ADT FIRE & SECURITY PLC,03/05/2016,828
Bath and North East Somerset Council,10810031,HK1,Highway Maintenance,P01,Transport,STANTON DREW PARISH COUNCIL,03/05/2016,830.77
Bath and North East Somerset Council,10809818,HA1,Responsive Maintenance,P10,Finance & Efficiency,N K S CONTRACTS LTD,03/05/2016,983.89
Bath and North East Somerset Council,10809956,HA1,Responsive Maintenance,P10,Finance & Efficiency,N K S CONTRACTS LTD,03/05/2016,988.71
Bath and North East Somerset Council,10809660,EA1,Training,P14,Community Services,BEING AUTHENTIC LTD,03/05/2016,1000
Bath and North East Somerset Council,10809453,HA4,Responsive Maintenance PCB,P10,Finance & Efficiency,MECHANICAL ENGINEERING SERVICE,03/05/2016,1014.91
Bath and North East Somerset Council,10809648,HA4,Responsive Maintenance PCB,P10,Finance & Efficiency,N K S CONTRACTS LTD,03/05/2016,1063.76
Bath and North East Somerset Council,10809885,LJ4,Contracts,P13,Economic Development,ROBERT HYMAN,03/05/2016,1080.86
Bath and North East Somerset Council,10809884,LJ4,Contracts,P13,Economic Development,MRS L C BALE & MR M R BALE,03/05/2016,1144.44
Bath and North East Somerset Council,10810008,LA1,Equipment Purchase (Non Medical),P14,Community Services,TELESHORE UK LTD,03/05/2016,1150.05
Bath and North East Somerset Council,10809817,HA1,Responsive Maintenance,P10,Finance & Efficiency,N K S CONTRACTS LTD,03/05/2016,1298.52
Bath and North East Somerset Council,10810034,DB1,Agency Staff,P04,Leader,AMEO PROFESSIONAL SERVICES LTD,03/05/2016,1300
Bath and North East Somerset Council,10810021,LJ1,Consultants Fees,P10,Finance & Efficiency,ARLINGCLOSE LTD,03/05/2016,1395
Bath and North East Somerset Council,10809969,HK1,Highway Maintenance,P01,Transport,JACKSONS FINE FENCING,03/05/2016,1727.64
Bath and North East Somerset Council,10809215,KB2,Vehicle Leasing,P14,Community Services,SG EQUIPMENT FINANCE LIMITED,03/05/2016,1750
Bath and North East Somerset Council,10809964,LA5,Materials,P14,Community Services,BALL COLEGRAVE LTD,03/05/2016,1833.54
Bath and North East Somerset Council,10809715,DB1,Agency Staff,P04,Leader,RITA E STEWART,03/05/2016,1986.67
Bath and North East Somerset Council,10809698,HA1,Responsive Maintenance,P10,Finance & Efficiency,N K S CONTRACTS LTD,03/05/2016,2122.8
Bath and North East Somerset Council,10809883,LJ4,Contracts,P13,Economic Development,DEREK STUART CLARK,03/05/2016,2225.3
Bath and North East Somerset Council,10809865,LJ4,Contracts,P13,Economic Development,KEITH TEMPEST,03/05/2016,2225.3
Bath and North East Somerset Council,10809908,HK1,Highway Maintenance,P01,Transport,IMTECH TRAFFIC & INFRA UK LTD,03/05/2016,2435.79
Bath and North East Somerset Council,10809699,HA1,Responsive Maintenance,P10,Finance & Efficiency,N K S CONTRACTS LTD,03/05/2016,2478
Bath and North East Somerset Council,10809697,HA1,Responsive Maintenance,P10,Finance & Efficiency,N K S CONTRACTS LTD,03/05/2016,3230.25
Bath and North East Somerset Council,10809985,HP6,Water Charges,P14,Community Services,BWBSL,03/05/2016,3393.16
Bath and North East Somerset Council,10809477,HA1,Responsive Maintenance,P10,Finance & Efficiency,ADT FIRE & SECURITY PLC,03/05/2016,3545
Bath and North East Somerset Council,10809983,LM2,Foster Carer Allowances,P12,Children's Services,FOSTER CARE ASSOCIATES LTD,03/05/2016,3713.95
Bath and North East Somerset Council,10809998,LM2,Foster Carer Allowances,P12,Children's Services,FOSTER CARE ASSOCIATES LTD,03/05/2016,3789.44
Bath and North East Somerset Council,10809999,LM2,Foster Carer Allowances,P12,Children's Services,FOSTER CARE ASSOCIATES LTD,03/05/2016,4047.36
Bath and North East Somerset Council,10809647,HA1,Responsive Maintenance,P10,Finance & Efficiency,N K S CONTRACTS LTD,03/05/2016,4176
Bath and North East Somerset Council,10809766,LN5,Data Lines,P10,Finance & Efficiency,MAINTEL EUROPE LTD,03/05/2016,4650
Bath and North East Somerset Council,10810003,LF5,Postages,P10,Finance & Efficiency,WHISTL UK LTD,03/05/2016,5109.19
Bath and North East Somerset Council,10810069,KA3,Fuel,P14,Community Services,FORD FUELS LTD,03/05/2016,5187
Bath and North East Somerset Council,10809766,LN5,Data Lines,P10,Finance & Efficiency,MAINTEL EUROPE LTD,03/05/2016,5411.95
Bath and North East Somerset Council,10809808,LV1,Grants to Voluntary Bodies,P01,Transport,SOUTH SOMERSET DISTRICT COUNCIL,03/05/2016,5528
Bath and North East Somerset Council,10809640,HA1,Responsive Maintenance,P10,Finance & Efficiency,ADT FIRE & SECURITY PLC,03/05/2016,5631.07
Bath and North East Somerset Council,10809632,3C4,Building Works,P12,Children's Services,MODULAR BUILDING SERVICES LTD,03/05/2016,5720
Bath and North East Somerset Council,10810084,LE1,Education Payment (independent school),P12,Children's Services,TUMBLEWOOD PROJECT LTD,03/05/2016,5769.25
Bath and North East Somerset Council,10809915,LJ1,Consultants Fees,P10,Finance & Efficiency,WITHYCOMBE DESIGN SERVICES LTD,03/05/2016,5862.5
Bath and North East Somerset Council,10810025,LK1,Fees,P12,Children's Services,AFTER ADOPTION,03/05/2016,5925
Bath and North East Somerset Council,10809989,HA1,Responsive Maintenance,P10,Finance & Efficiency,N K S CONTRACTS LTD,03/05/2016,6858.3
Bath and North East Somerset Council,10809907,LF5,Postages,P04,Leader,ROYAL MAIL GROUP PLC,03/05/2016,10358.71
Bath and North East Somerset Council,10810063,KA3,Fuel,P14,Community Services,FORD FUELS LTD,03/05/2016,16353.75
Bath and North East Somerset Council,10809786,LJ3,Other Services to the Council,Z98,West of England Partnership,WEST OF ENGLAND RURAL NETWORK,03/05/2016,26466.56
Bath and North East Somerset Council,10808045,LX6,Bus Revenue Support,P01,Transport,FLIGHTS HALLMARK LTD,03/05/2016,33807.94
Bath and North East Somerset Council,10810074,LE1,Education Payment (independent school),P12,Children's Services,THE MARCHANT-HOLLIDAY SCHOOL,03/05/2016,46060
Bath and North East Somerset Council,10809976,3C4,Building Works,P12,Children's Services,H MEALING & SONS LTD,03/05/2016,112857.09
Bath and North East Somerset Council,10809990,PB4,Payments to Private Contractors,P14,Community Services,KIER INTEGRATED SERVICES LTD,03/05/2016,251832.23
Bath and North East Somerset Council,80583933,LM4,Respite Care,P12,Children's Services,REDACTED,04/05/2016,42.86
Bath and North East Somerset Council,80583933,LM4,Respite Care,P12,Children's Services,REDACTED,04/05/2016,42.86
Bath and North East Somerset Council,80583933,LM4,Respite Care,P12,Children's Services,REDACTED,04/05/2016,211.44
Bath and North East Somerset Council,80583933,LM4,Respite Care,P12,Children's Services,REDACTED,04/05/2016,211.44
Bath and North East Somerset Council,80583994,KE3,Transport & Travel,P12,Children's Services,REDACTED,04/05/2016,43.2
Bath and North East Somerset Council,80583994,LM2,Foster Carer Allowances,P12,Children's Services,REDACTED,04/05/2016,100
Bath and North East Somerset Council,80583994,LM2,Foster Carer Allowances,P12,Children's Services,REDACTED,04/05/2016,250
Bath and North East Somerset Council,80583994,LM2,Foster Carer Allowances,P12,Children's Services,REDACTED,04/05/2016,430.65
Bath and North East Somerset Council,80583939,LM4,Respite Care,P12,Children's Services,REDACTED,04/05/2016,35.71
Bath and North East Somerset Council,80583939,LM2,Foster Carer Allowances,P12,Children's Services,REDACTED,04/05/2016,100
Bath and North East Somerset Council,80583939,LM4,Respite Care,P12,Children's Services,REDACTED,04/05/2016,176.2
Bath and North East Somerset Council,80583939,LM2,Foster Carer Allowances,P12,Children's Services,REDACTED,04/05/2016,250
Bath and North East Somerset Council,80583939,LM2,Foster Carer Allowances,P12,Children's Services,REDACTED,04/05/2016,493.36
Bath and North East Somerset Council,80583949,LM2,Foster Carer Allowances,P12,Children's Services,REDACTED,04/05/2016,843.72
Bath and North East Somerset Council,80583945,LM2,Foster Carer Allowances,P12,Children's Services,REDACTED,04/05/2016,100
Bath and North East Somerset Council,80583945,LM2,Foster Carer Allowances,P12,Children's Services,REDACTED,04/05/2016,250
Bath and North East Somerset Council,80583945,LM2,Foster Carer Allowances,P12,Children's Services,REDACTED,04/05/2016,405.56
Bath and North East Somerset Council,80583965,LM2,Foster Carer Allowances,P12,Children's Services,REDACTED,04/05/2016,100
Bath and North East Somerset Council,80583965,LM2,Foster Carer Allowances,P12,Children's Services,REDACTED,04/05/2016,493.36
Bath and North East Somerset Council,80583259,LL4,Direct Payments,P11,Adult Social Care & Health,REDACTED,04/05/2016,1899.32
Bath and North East Somerset Council,80583259,LL4,Direct Payments,P11,Adult Social Care & Health,REDACTED,04/05/2016,1899.32
Bath and North East Somerset Council,80583981,KE3,Transport & Travel,P12,Children's Services,REDACTED,04/05/2016,112.95
Bath and North East Somerset Council,80583981,LM2,Foster Carer Allowances,P12,Children's Services,REDACTED,04/05/2016,162.89
Bath and North East Somerset Council,80583981,LM2,Foster Carer Allowances,P12,Children's Services,REDACTED,04/05/2016,802
Bath and North East Somerset Council,80583981,LM2,Foster Carer Allowances,P12,Children's Services,REDACTED,04/05/2016,802
Bath and North East Somerset Council,10810005,3G1,Grants/Advances,P11,Adult Social Care & Health,INSTA GROUP LTD,04/05/2016,2086
Bath and North East Somerset Council,80583942,LM2,Foster Carer Allowances,P12,Children's Services,REDACTED,04/05/2016,807
Bath and North East Somerset Council,80583942,LM2,Foster Carer Allowances,P12,Children's Services,REDACTED,04/05/2016,807
Bath and North East Somerset Council,80583926,LM2,Foster Carer Allowances,P12,Children's Services,REDACTED,04/05/2016,100
Bath and North East Somerset Council,80583926,LM2,Foster Carer Allowances,P12,Children's Services,REDACTED,04/05/2016,250
Bath and North East Somerset Council,80583926,LM2,Foster Carer Allowances,P12,Children's Services,REDACTED,04/05/2016,405.56
Bath and North East Somerset Council,80583926,LM2,Foster Carer Allowances,P12,Children's Services,REDACTED,04/05/2016,842.88
Bath and North East Somerset Council,80584001,LM2,Foster Carer Allowances,P12,Children's Services,REDACTED,04/05/2016,370.02
Bath and North East Somerset Council,80584001,LM2,Foster Carer Allowances,P12,Children's Services,REDACTED,04/05/2016,493.36
Bath and North East Somerset Council,80583946,KE3,Transport & Travel,P12,Children's Services,REDACTED,04/05/2016,52.2
Bath and North East Somerset Council,80583946,LM2,Foster Carer Allowances,P12,Children's Services,REDACTED,04/05/2016,100
Bath and North East Somerset Council,80583946,LM2,Foster Carer Allowances,P12,Children's Services,REDACTED,04/05/2016,100
Bath and North East Somerset Council,80583946,LM2,Foster Carer Allowances,P12,Children's Services,REDACTED,04/05/2016,286
Bath and North East Somerset Council,80583946,LM2,Foster Carer Allowances,P12,Children's Services,REDACTED,04/05/2016,286
Bath and North East Somerset Council,80583974,LM2,Foster Carer Allowances,P12,Children's Services,REDACTED,04/05/2016,100
Bath and North East Somerset Council,80583974,LM2,Foster Carer Allowances,P12,Children's Services,REDACTED,04/05/2016,100
Bath and North East Somerset Council,80583974,LM2,Foster Carer Allowances,P12,Children's Services,REDACTED,04/05/2016,325.78
Bath and North East Somerset Council,80583974,LM2,Foster Carer Allowances,P12,Children's Services,REDACTED,04/05/2016,405.56
Bath and North East Somerset Council,80583954,LM2,Foster Carer Allowances,P12,Children's Services,REDACTED,04/05/2016,830
Bath and North East Somerset Council,80583954,LM2,Foster Carer Allowances,P12,Children's Services,REDACTED,04/05/2016,830
Bath and North East Somerset Council,80583954,LM2,Foster Carer Allowances,P12,Children's Services,REDACTED,04/05/2016,830
Bath and North East Somerset Council,10810146,HK1,Highway Maintenance,P01,Transport,SAKNEL HIGHWAYS STRUCTURES CONTRACTOR,04/05/2016,290
Bath and North East Somerset Council,10810146,HK1,Highway Maintenance,P01,Transport,SAKNEL HIGHWAYS STRUCTURES CONTRACTOR,04/05/2016,348.82
Bath and North East Somerset Council,80583924,LL7,Residence Orders,P12,Children's Services,REDACTED,04/05/2016,319.56
Bath and North East Somerset Council,80583924,LL7,Residence Orders,P12,Children's Services,REDACTED,04/05/2016,407.28
Bath and North East Somerset Council,80584005,LM2,Foster Carer Allowances,P12,Children's Services,REDACTED,04/05/2016,100
Bath and North East Somerset Council,80584005,LM2,Foster Carer Allowances,P12,Children's Services,REDACTED,04/05/2016,405.56
Bath and North East Somerset Council,80583961,LM2,Foster Carer Allowances,P12,Children's Services,REDACTED,04/05/2016,837
Bath and North East Somerset Council,80583961,LM2,Foster Carer Allowances,P12,Children's Services,REDACTED,04/05/2016,837
Bath and North East Somerset Council,80584017,LL9,Special Guardianship,P12,Children's Services,REDACTED,04/05/2016,244.6
Bath and North East Somerset Council,80584017,LL9,Special Guardianship,P12,Children's Services,REDACTED,04/05/2016,258.6
Bath and North East Somerset Council,80583928,LM2,Foster Carer Allowances,P12,Children's Services,REDACTED,04/05/2016,100
Bath and North East Somerset Council,80583928,LM2,Foster Carer Allowances,P12,Children's Services,REDACTED,04/05/2016,405.56
Bath and North East Somerset Council,80583931,LM2,Foster Carer Allowances,P12,Children's Services,REDACTED,04/05/2016,100
Bath and North East Somerset Council,80583931,LM2,Foster Carer Allowances,P12,Children's Services,REDACTED,04/05/2016,100
Bath and North East Somerset Council,80583931,LM2,Foster Carer Allowances,P12,Children's Services,REDACTED,04/05/2016,246.68
Bath and North East Somerset Council,80583931,LM2,Foster Carer Allowances,P12,Children's Services,REDACTED,04/05/2016,250
Bath and North East Somerset Council,80583931,LM2,Foster Carer Allowances,P12,Children's Services,REDACTED,04/05/2016,250
Bath and North East Somerset Council,80583931,LM2,Foster Carer Allowances,P12,Children's Services,REDACTED,04/05/2016,493.36
Bath and North East Somerset Council,80583931,LM2,Foster Carer Allowances,P12,Children's Services,REDACTED,04/05/2016,493.36
Bath and North East Somerset Council,80583950,LM2,Foster Carer Allowances,P12,Children's Services,REDACTED,04/05/2016,834
Bath and North East Somerset Council,80583979,LM2,Foster Carer Allowances,P12,Children's Services,REDACTED,04/05/2016,100
Bath and North East Somerset Council,80583979,LM2,Foster Carer Allowances,P12,Children's Services,REDACTED,04/05/2016,250
Bath and North East Somerset Council,80583979,LM2,Foster Carer Allowances,P12,Children's Services,REDACTED,04/05/2016,405.56
Bath and North East Somerset Council,80583938,LL5,Adoption Allowances,P12,Children's Services,REDACTED,04/05/2016,249.88
Bath and North East Somerset Council,80583938,LL5,Adoption Allowances,P12,Children's Services,REDACTED,04/05/2016,315.56
Bath and North East Somerset Council,80583967,LM2,Foster Carer Allowances,P12,Children's Services,REDACTED,04/05/2016,100
Bath and North East Somerset Council,80583967,LM2,Foster Carer Allowances,P12,Children's Services,REDACTED,04/05/2016,405.56
Bath and North East Somerset Council,80583937,LL5,Adoption Allowances,P12,Children's Services,REDACTED,04/05/2016,386
Bath and North East Somerset Council,80583937,LL5,Adoption Allowances,P12,Children's Services,REDACTED,04/05/2016,386
Bath and North East Somerset Council,10810147,LA1,Equipment Purchase (Non Medical),P14,Community Services,EGBERT H TAYLOR & CO LTD,04/05/2016,448.2
Bath and North East Somerset Council,80583958,LM2,Foster Carer Allowances,P12,Children's Services,REDACTED,04/05/2016,100
Bath and North East Somerset Council,80583958,LM2,Foster Carer Allowances,P12,Children's Services,REDACTED,04/05/2016,100
Bath and North East Somerset Council,80583958,LM2,Foster Carer Allowances,P12,Children's Services,REDACTED,04/05/2016,325.78
Bath and North East Somerset Council,80583958,LM2,Foster Carer Allowances,P12,Children's Services,REDACTED,04/05/2016,325.78
Bath and North East Somerset Council,80584014,LM2,Foster Carer Allowances,P12,Children's Services,REDACTED,04/05/2016,50
Bath and North East Somerset Council,80584014,LM2,Foster Carer Allowances,P12,Children's Services,REDACTED,04/05/2016,125
Bath and North East Somerset Council,80584014,KE3,Transport & Travel,P12,Children's Services,REDACTED,04/05/2016,139.05
Bath and North East Somerset Council,80584014,LM2,Foster Carer Allowances,P12,Children's Services,REDACTED,04/05/2016,202.78
Bath and North East Somerset Council,80583940,LM2,Foster Carer Allowances,P12,Children's Services,REDACTED,04/05/2016,843.72
Bath and North East Somerset Council,80583947,LM2,Foster Carer Allowances,P12,Children's Services,REDACTED,04/05/2016,807
Bath and North East Somerset Council,80583947,LL2,Personal Needs of Clients,P12,Children's Services,REDACTED,04/05/2016,843.72
Bath and North East Somerset Council,80583944,LM2,Foster Carer Allowances,P12,Children's Services,REDACTED,04/05/2016,64.29
Bath and North East Somerset Council,80583944,LM2,Foster Carer Allowances,P12,Children's Services,REDACTED,04/05/2016,100
Bath and North East Somerset Council,80583944,LM2,Foster Carer Allowances,P12,Children's Services,REDACTED,04/05/2016,160.71
Bath and North East Somerset Council,80583944,LM2,Foster Carer Allowances,P12,Children's Services,REDACTED,04/05/2016,250
Bath and North East Somerset Council,80583944,LM2,Foster Carer Allowances,P12,Children's Services,REDACTED,04/05/2016,317.16
Bath and North East Somerset Council,80583944,LM2,Foster Carer Allowances,P12,Children's Services,REDACTED,04/05/2016,493.36
Bath and North East Somerset Council,80583948,LL3,Supported Living,P09,Homes & Planning,REDACTED,04/05/2016,13
Bath and North East Somerset Council,80583948,LL2,Personal Needs of Clients,P12,Children's Services,REDACTED,04/05/2016,72.49
Bath and North East Somerset Council,80583948,LL3,Supported Living,P09,Homes & Planning,REDACTED,04/05/2016,81
Bath and North East Somerset Council,80583948,LL2,Personal Needs of Clients,P09,Homes & Planning,REDACTED,04/05/2016,100
Bath and North East Somerset Council,80583948,LL3,Supported Living,P09,Homes & Planning,REDACTED,04/05/2016,141
Bath and North East Somerset Council,80583948,LL3,Supported Living,P09,Homes & Planning,REDACTED,04/05/2016,150.43
Bath and North East Somerset Council,80583951,LM2,Foster Carer Allowances,P12,Children's Services,REDACTED,04/05/2016,100
Bath and North East Somerset Council,80583951,LM2,Foster Carer Allowances,P12,Children's Services,REDACTED,04/05/2016,250
Bath and North East Somerset Council,80583951,LM2,Foster Carer Allowances,P12,Children's Services,REDACTED,04/05/2016,493.36
Bath and North East Somerset Council,80583923,LM2,Foster Carer Allowances,P12,Children's Services,REDACTED,04/05/2016,100
Bath and North East Somerset Council,80583923,LM2,Foster Carer Allowances,P12,Children's Services,REDACTED,04/05/2016,100
Bath and North East Somerset Council,80583923,LM2,Foster Carer Allowances,P12,Children's Services,REDACTED,04/05/2016,493.36
Bath and North East Somerset Council,80583923,LM2,Foster Carer Allowances,P12,Children's Services,REDACTED,04/05/2016,493.36
Bath and North East Somerset Council,80583957,LM2,Foster Carer Allowances,P12,Children's Services,REDACTED,04/05/2016,239.9
Bath and North East Somerset Council,80583957,LM2,Foster Carer Allowances,P12,Children's Services,REDACTED,04/05/2016,807
Bath and North East Somerset Council,80583953,LL7,Residence Orders,P12,Children's Services,REDACTED,04/05/2016,257.52
Bath and North East Somerset Council,80583953,LL7,Residence Orders,P12,Children's Services,REDACTED,04/05/2016,257.52
Bath and North East Somerset Council,80584047,PG1,Rent Allowances,P10,Finance & Efficiency,REDACTED,04/05/2016,603.72
Bath and North East Somerset Council,10809914,3N7,Misc. Costs,P10,Finance & Efficiency,PEOPLETOPIA LTD,04/05/2016,550
Bath and North East Somerset Council,80583980,LM2,Foster Carer Allowances,P12,Children's Services,REDACTED,04/05/2016,100
Bath and North East Somerset Council,80583980,LM2,Foster Carer Allowances,P12,Children's Services,REDACTED,04/05/2016,100
Bath and North East Somerset Council,80583980,LM2,Foster Carer Allowances,P12,Children's Services,REDACTED,04/05/2016,250
Bath and North East Somerset Council,80583980,LM2,Foster Carer Allowances,P12,Children's Services,REDACTED,04/05/2016,250
Bath and North East Somerset Council,80583980,LM2,Foster Carer Allowances,P12,Children's Services,REDACTED,04/05/2016,493.36
Bath and North East Somerset Council,80583980,LM2,Foster Carer Allowances,P12,Children's Services,REDACTED,04/05/2016,493.36
Bath and North East Somerset Council,80583956,LM2,Foster Carer Allowances,P12,Children's Services,REDACTED,04/05/2016,100
Bath and North East Somerset Council,80583956,LM2,Foster Carer Allowances,P12,Children's Services,REDACTED,04/05/2016,100
Bath and North East Somerset Council,80583956,LM2,Foster Carer Allowances,P12,Children's Services,REDACTED,04/05/2016,325.78
Bath and North East Somerset Council,80583956,LM2,Foster Carer Allowances,P12,Children's Services,REDACTED,04/05/2016,325.78
Bath and North East Somerset Council,80583922,LM2,Foster Carer Allowances,P12,Children's Services,REDACTED,04/05/2016,100
Bath and North East Somerset Council,80583922,LM2,Foster Carer Allowances,P12,Children's Services,REDACTED,04/05/2016,493.36
Bath and North East Somerset Council,10810109,LA5,Materials,P14,Community Services,GELPACK EXCELSIOR LTD,04/05/2016,698.05
Bath and North East Somerset Council,10810130,LA5,Materials,P14,Community Services,GELPACK EXCELSIOR LTD,04/05/2016,722.54
Bath and North East Somerset Council,10810098,3F7,External Fees,P10,Finance & Efficiency,CAPITA SYMONDS,04/05/2016,740
Bath and North East Somerset Council,10809060,LW9,Other Expenses,P10,Finance & Efficiency,DE LAGE LANDEN LTD,04/05/2016,781.7
Bath and North East Somerset Council,10810110,3F7,External Fees,P13,Economic Development,SAFE AND SOUND UK LIMITED,04/05/2016,864.5
Bath and North East Somerset Council,80584002,LM2,Foster Carer Allowances,P12,Children's Services,REDACTED,04/05/2016,100
Bath and North East Somerset Council,80584002,LM2,Foster Carer Allowances,P12,Children's Services,REDACTED,04/05/2016,100
Bath and North East Somerset Council,80584002,LM2,Foster Carer Allowances,P12,Children's Services,REDACTED,04/05/2016,325.78
Bath and North East Somerset Council,80584002,LM2,Foster Carer Allowances,P12,Children's Services,REDACTED,04/05/2016,325.78
Bath and North East Somerset Council,80584011,LM2,Foster Carer Allowances,P12,Children's Services,REDACTED,04/05/2016,100
Bath and North East Somerset Council,80584011,LM2,Foster Carer Allowances,P12,Children's Services,REDACTED,04/05/2016,250
Bath and North East Somerset Council,80584011,LM2,Foster Carer Allowances,P12,Children's Services,REDACTED,04/05/2016,405.56
Bath and North East Somerset Council,10810090,LJ2,Legal Fees,P10,Finance & Efficiency,BAILEY PARTNERSHIP,04/05/2016,977
Bath and North East Somerset Council,80583920,LM2,Foster Carer Allowances,P12,Children's Services,REDACTED,04/05/2016,100
Bath and North East Somerset Council,80583920,LL7,Residence Orders,P12,Children's Services,REDACTED,04/05/2016,363.76
Bath and North East Somerset Council,80583920,LM2,Foster Carer Allowances,P12,Children's Services,REDACTED,04/05/2016,493.36
Bath and North East Somerset Council,10810138,LJ4,Contracts,P11,Adult Social Care & Health,SIRONA CARE & HEALTH C.I.C.,04/05/2016,333830.08
Bath and North East Somerset Council,10810049,HV2,Non Contract Cleaning,P10,Finance & Efficiency,PHS GROUP LTD,04/05/2016,1112.37
Bath and North East Somerset Council,10810077,HV1,Contract Cleaning,P10,Finance & Efficiency,PHS GROUP LTD,04/05/2016,1112.37
Bath and North East Somerset Council,10810112,3F7,External Fees,P13,Economic Development,MDA CONSULTING LTD,04/05/2016,1125
Bath and North East Somerset Council,10810142,LJ8,PCB External Fees,P13,Economic Development,COOL VENTURES LTD,04/05/2016,1146.64
Bath and North East Somerset Council,10810108,LA5,Materials,P14,Community Services,GELPACK EXCELSIOR LTD,04/05/2016,1396.1
Bath and North East Somerset Council,10808715,EA1,Training,P10,Finance & Efficiency,SUSAN HARVEY,04/05/2016,1500.9
Bath and North East Somerset Council,10810103,3F7,External Fees,P10,Finance & Efficiency,WESTERN POWER DISTRIBUTION (SO,04/05/2016,1501.94
Bath and North East Somerset Council,10810145,HK1,Highway Maintenance,P01,Transport,SAKNEL HIGHWAYS STRUCTURES CONTRACTOR,04/05/2016,1640
Bath and North East Somerset Council,10810170,EA1,Training,P11,Adult Social Care & Health,CARE AND HEALTH LAW,04/05/2016,1750
Bath and North East Somerset Council,10808362,LK1,Fees,P10,Finance & Efficiency,CIVICA UK LTD,04/05/2016,1800
Bath and North East Somerset Council,80583919,LM2,Foster Carer Allowances,P12,Children's Services,REDACTED,04/05/2016,100
Bath and North East Somerset Council,80583919,LM2,Foster Carer Allowances,P12,Children's Services,REDACTED,04/05/2016,100
Bath and North East Somerset Council,80583919,LM2,Foster Carer Allowances,P12,Children's Services,REDACTED,04/05/2016,286
Bath and North East Somerset Council,80583919,LM2,Foster Carer Allowances,P12,Children's Services,REDACTED,04/05/2016,286
Bath and North East Somerset Council,10810091,LJ1,Consultants Fees,P10,Finance & Efficiency,BAILEY PARTNERSHIP,04/05/2016,2208
Bath and North East Somerset Council,10810027,3G1,Grants/Advances,P11,Adult Social Care & Health,DOLPHIN LIFTS (WESTERN) LTD,04/05/2016,2422.43
Bath and North East Somerset Council,10810143,LJ4,Contracts,P12,Children's Services,BLACK FAMILIES EDUCATION SUPPO,04/05/2016,2585
Bath and North East Somerset Council,10810125,HN3,Heating Oil,P11,Adult Social Care & Health,PACE FUELCARE LTD,04/05/2016,2605.6
Bath and North East Somerset Council,10810126,LK2,Licences (non IT),P14,Community Services,EA RECEIPTS,04/05/2016,2622
Bath and North East Somerset Council,80583978,KE3,Transport & Travel,P12,Children's Services,REDACTED,04/05/2016,297
Bath and North East Somerset Council,80583978,LM2,Foster Carer Allowances,P12,Children's Services,REDACTED,04/05/2016,770
Bath and North East Somerset Council,80583978,LM2,Foster Carer Allowances,P12,Children's Services,REDACTED,04/05/2016,843.72
Bath and North East Somerset Council,10810127,LK2,Licences (non IT),P14,Community Services,EA RECEIPTS,04/05/2016,2717
Bath and North East Somerset Council,10810129,LK2,Licences (non IT),P14,Community Services,EA RECEIPTS,04/05/2016,2717
Bath and North East Somerset Council,10809980,3G1,Grants/Advances,P11,Adult Social Care & Health,P & J SHOWERS LTD,04/05/2016,2740
Bath and North East Somerset Council,10810094,3F7,External Fees,P12,Children's Services,STRIDE TREGLOWN TEKTUS,04/05/2016,2750
Bath and North East Somerset Council,10810145,HK1,Highway Maintenance,P01,Transport,SAKNEL HIGHWAYS STRUCTURES CONTRACTOR,04/05/2016,2870.49
Bath and North East Somerset Council,10810097,3F7,External Fees,P10,Finance & Efficiency,CAPITA SYMONDS,04/05/2016,2960
Bath and North East Somerset Council,10810114,LK1,Fees,P12,Children's Services,CATCH 22 CHARITY LTD,04/05/2016,2995
Bath and North East Somerset Council,10809996,3G1,Grants/Advances,P11,Adult Social Care & Health,P & J SHOWERS LTD,04/05/2016,3145
Bath and North East Somerset Council,10809991,3G1,Grants/Advances,P11,Adult Social Care & Health,OASIS BATHROOM CENTRE,04/05/2016,3180
Bath and North East Somerset Council,10810048,HV2,Non Contract Cleaning,P10,Finance & Efficiency,PHS GROUP LTD,04/05/2016,3186.96
Bath and North East Somerset Council,10810117,LJ4,Contracts,P12,Children's Services,BATH AREA PLAY PROJECT,04/05/2016,3250
Bath and North East Somerset Council,10810128,LK2,Licences (non IT),P14,Community Services,EA RECEIPTS,04/05/2016,3277.5
Bath and North East Somerset Council,10810029,3G1,Grants/Advances,P11,Adult Social Care & Health,OASIS BATHROOM CENTRE,04/05/2016,3315
Bath and North East Somerset Council,10810087,LE1,Education Payment (independent school),P12,Children's Services,TUMBLEWOOD PROJECT LTD,04/05/2016,3461.55
Bath and North East Somerset Council,10809992,3G1,Grants/Advances,P11,Adult Social Care & Health,OASIS BATHROOM CENTRE,04/05/2016,3510
Bath and North East Somerset Council,10809997,3G1,Grants/Advances,P11,Adult Social Care & Health,WESTSIDE CONTRACTING LTD,04/05/2016,10071
Bath and North East Somerset Council,10810020,3E5,IT Hardware,P04,Leader,BT GLOBAL SERVICES,04/05/2016,4593.26
Bath and North East Somerset Council,10809928,LP5,Software Support,P10,Finance & Efficiency,CHIPSIDE LIMITED,04/05/2016,4735
Bath and North East Somerset Council,10810085,PB4,Payments to Private Contractors,P14,Community Services,NEW EARTH SOLUTIONS (GLOS) LTD,04/05/2016,5575
Bath and North East Somerset Council,10809900,3C4,Building Works,P10,Finance & Efficiency,WHITTAN INDUSTRIAL LTD T/A SHELVING & STORAGE,04/05/2016,5965.4
Bath and North East Somerset Council,10810161,3F7,External Fees,P13,Economic Development,ALLIES AND MORRISON,04/05/2016,7000
Bath and North East Somerset Council,10810017,LA1,Equipment Purchase (Non Medical),P14,Community Services,FORUM PACKAGING LTD,04/05/2016,8008.88
Bath and North East Somerset Council,10810169,3F7,External Fees,P01,Transport,BRUNEL PROJECT MANAGEMENT LTD,04/05/2016,9112.5
Bath and North East Somerset Council,10810115,LJ4,Contracts,P12,Children's Services,BATH AREA PLAY PROJECT,04/05/2016,10000
Bath and North East Somerset Council,10810006,3G1,Grants/Advances,P11,Adult Social Care & Health,ANDREW MAISEY,04/05/2016,10000
Bath and North East Somerset Council,10810116,LJ4,Contracts,P12,Children's Services,BATH AREA PLAY PROJECT,04/05/2016,10250
Bath and North East Somerset Council,10810104,3F7,External Fees,P12,Children's Services,H MEALING & SONS LTD,04/05/2016,10418.13
Bath and North East Somerset Council,10810019,LA1,Equipment Purchase (Non Medical),P14,Community Services,CRAEMER UK LTD,04/05/2016,10736.03
Bath and North East Somerset Council,10810141,LJ4,Contracts,P11,Adult Social Care & Health,SIRONA CARE SERVICES LTD,04/05/2016,18113.81
Bath and North East Somerset Council,10810118,LJ4,Contracts,P12,Children's Services,BATH AREA PLAY PROJECT,04/05/2016,20250
Bath and North East Somerset Council,10810123,3C4,Building Works,P12,Children's Services,H MEALING & SONS LTD,04/05/2016,21892.75
Bath and North East Somerset Council,10810134,LJ4,Contracts,P11,Adult Social Care & Health,SIRONA CARE SERVICES LTD,04/05/2016,23800
Bath and North East Somerset Council,10810152,LJ4,Contracts,P11,Adult Social Care & Health,SIRONA CARE SERVICES LTD,04/05/2016,30901.5
Bath and North East Somerset Council,10810180,LJ4,Contracts,P11,Adult Social Care & Health,ROYAL UNITED HOSPITAL NHS TRUST,04/05/2016,38435
Bath and North East Somerset Council,10810136,LJ4,Contracts,P11,Adult Social Care & Health,SIRONA CARE SERVICES LTD,04/05/2016,83270.57
Bath and North East Somerset Council,10810135,LJ4,Contracts,P11,Adult Social Care & Health,SIRONA CARE SERVICES LTD,04/05/2016,134000
Bath and North East Somerset Council,10810139,LJ4,Contracts,P11,Adult Social Care & Health,SIRONA CARE SERVICES LTD,04/05/2016,186301.28
Bath and North East Somerset Council,10810140,LJ4,Contracts,P11,Adult Social Care & Health,SIRONA CARE SERVICES LTD,04/05/2016,424644.5
Bath and North East Somerset Council,10810137,LJ4,Contracts,P11,Adult Social Care & Health,SIRONA CARE SERVICES LTD,04/05/2016,536801.5
Bath and North East Somerset Council,10810089,HK1,Highway Maintenance,P01,Transport,BRISTOL CITY COUNCIL,05/05/2016,24422.29
Bath and North East Somerset Council,10810193,LV2,Contributions to Organisations,P13,Economic Development,BUTTERFLY PSYCHE THEATRE COMPANY,05/05/2016,1000
Bath and North East Somerset Council,80584054,PG1,Rent Allowances,P10,Finance & Efficiency,CURO,05/05/2016,502.26
Bath and North East Somerset Council,80584057,PG1,Rent Allowances,P10,Finance & Efficiency,CURO,05/05/2016,526.3
Bath and North East Somerset Council,80584043,PG1,Rent Allowances,P10,Finance & Efficiency,CURO,05/05/2016,1000
Bath and North East Somerset Council,80585301,PG1,Rent Allowances,P10,Finance & Efficiency,KNIGHTSTONE COMMUNITY HOMES,05/05/2016,1395.84
Bath and North East Somerset Council,80585298,PG1,Rent Allowances,P10,Finance & Efficiency,KNIGHTSTONE HOUSING ASSOCIATION,05/05/2016,831.91
Bath and North East Somerset Council,10810160,HV1,Contract Cleaning,P14,Community Services,MINSTER CLEANING SERVICES,05/05/2016,755.9
Bath and North East Somerset Council,80584415,PG1,Rent Allowances,P10,Finance & Efficiency,REDACTED,05/05/2016,534.08
Bath and North East Somerset Council,80584181,PG1,Rent Allowances,P10,Finance & Efficiency,REDACTED,05/05/2016,668.92
Bath and North East Somerset Council,80584830,PG1,Rent Allowances,P10,Finance & Efficiency,REDACTED,05/05/2016,984.6
Bath and North East Somerset Council,80586056,PG1,Rent Allowances,P10,Finance & Efficiency,REDACTED,05/05/2016,2605.09
Bath and North East Somerset Council,80585006,PG1,Rent Allowances,P10,Finance & Efficiency,REDACTED,05/05/2016,561
Bath and North East Somerset Council,80585389,PG1,Rent Allowances,P10,Finance & Efficiency,REDACTED,05/05/2016,642.32
Bath and North East Somerset Council,80585308,PG1,Rent Allowances,P10,Finance & Efficiency,REDACTED,05/05/2016,1410.39
Bath and North East Somerset Council,80584498,PG1,Rent Allowances,P10,Finance & Efficiency,REDACTED,05/05/2016,621.14
Bath and North East Somerset Council,10810310,LH2,Advertising,P01,Transport,TMP (UK) LTD,05/05/2016,417.62
Bath and North East Somerset Council,10810311,LH2,Advertising,P01,Transport,TMP (UK) LTD,05/05/2016,417.62
Bath and North East Somerset Council,80585532,PG1,Rent Allowances,P10,Finance & Efficiency,REDACTED,05/05/2016,510.5
Bath and North East Somerset Council,10810342,LJ3,Other Services to the Council,P10,Finance & Efficiency,BATH CONTRACT FLOORING LTD,05/05/2016,425
Bath and North East Somerset Council,80585196,PG1,Rent Allowances,P10,Finance & Efficiency,REDACTED,05/05/2016,551.6
Bath and North East Somerset Council,80585081,PG1,Rent Allowances,P10,Finance & Efficiency,REDACTED,05/05/2016,698.09
Bath and North East Somerset Council,80585158,PG1,Rent Allowances,P10,Finance & Efficiency,REDACTED,05/05/2016,600
Bath and North East Somerset Council,10810293,3N7,Misc. Costs,P01,Transport,TMP (UK) LTD,05/05/2016,438.49
Bath and North East Somerset Council,80585303,PG1,Rent Allowances,P10,Finance & Efficiency,REDACTED,05/05/2016,1628.88
Bath and North East Somerset Council,80585302,PG1,Rent Allowances,P10,Finance & Efficiency,REDACTED,05/05/2016,668.92
Bath and North East Somerset Council,80585060,PG1,Rent Allowances,P10,Finance & Efficiency,REDACTED,05/05/2016,553.84
Bath and North East Somerset Council,80585463,PG1,Rent Allowances,P10,Finance & Efficiency,REDACTED,05/05/2016,502.34
Bath and North East Somerset Council,80585340,PG1,Rent Allowances,P10,Finance & Efficiency,REDACTED,05/05/2016,564.94
Bath and North East Somerset Council,80585660,PG1,Rent Allowances,P10,Finance & Efficiency,REDACTED,05/05/2016,678.67
Bath and North East Somerset Council,80585907,PG1,Rent Allowances,P10,Finance & Efficiency,REDACTED,05/05/2016,602.44
Bath and North East Somerset Council,10810250,LJ1,Consultants Fees,P11,Adult Social Care & Health,LIDSTON LTD,05/05/2016,500
Bath and North East Somerset Council,10810192,LK6,Photography/Artworks/Graphics,P13,Economic Development,BATH: HACKED CIC,05/05/2016,500
Bath and North East Somerset Council,80586185,PG1,Rent Allowances,P10,Finance & Efficiency,REDACTED,05/05/2016,528.9
Bath and North East Somerset Council,10810341,KD1,Employees Public Transport,P12,Children's Services,ATOS ORIGIN IT SERVICES (UK) LTD,05/05/2016,513.7
Bath and North East Somerset Council,80584514,PG1,Rent Allowances,P10,Finance & Efficiency,REDACTED,05/05/2016,555.54
Bath and North East Somerset Council,10810199,LM2,Foster Carer Allowances,P12,Children's Services,SWIIS FOSTER CARE LTD,05/05/2016,531.12
Bath and North East Somerset Council,80585341,PG1,Rent Allowances,P10,Finance & Efficiency,REDACTED,05/05/2016,583.8
Bath and North East Somerset Council,10810106,LJ1,Consultants Fees,P12,Children's Services,LORDENSHAW CONSULTANCY LIMITED,05/05/2016,559
Bath and North East Somerset Council,80584919,PG1,Rent Allowances,P10,Finance & Efficiency,REDACTED,05/05/2016,736.87
Bath and North East Somerset Council,80584824,PG1,Rent Allowances,P10,Finance & Efficiency,REDACTED,05/05/2016,609.35
Bath and North East Somerset Council,80586155,PG1,Rent Allowances,P10,Finance & Efficiency,REDACTED,05/05/2016,586.04
Bath and North East Somerset Council,80585441,PG1,Rent Allowances,P10,Finance & Efficiency,REDACTED,05/05/2016,583.8
Bath and North East Somerset Council,80584762,PG1,Rent Allowances,P10,Finance & Efficiency,REDACTED,05/05/2016,553.84
Bath and North East Somerset Council,80585321,PG1,Rent Allowances,P10,Finance & Efficiency,REDACTED,05/05/2016,583.8
Bath and North East Somerset Council,80585736,PG1,Rent Allowances,P10,Finance & Efficiency,REDACTED,05/05/2016,869.61
Bath and North East Somerset Council,80585883,PG1,Rent Allowances,P10,Finance & Efficiency,REDACTED,05/05/2016,583.8
Bath and North East Somerset Council,80584268,PG1,Rent Allowances,P10,Finance & Efficiency,REDACTED,05/05/2016,530.76
Bath and North East Somerset Council,80584082,PG1,Rent Allowances,P10,Finance & Efficiency,REDACTED,05/05/2016,692.3
Bath and North East Somerset Council,10810345,HK2,Street Lighting Maintenance,P01,Transport,TMP (UK) LTD,05/05/2016,571.32
Bath and North East Somerset Council,10810227,HK1,Highway Maintenance,P01,Transport,EXEGESIS SDM,05/05/2016,658
Bath and North East Somerset Council,10810309,3N7,Misc. Costs,P13,Economic Development,TMP (UK) LTD,05/05/2016,677.58
Bath and North East Somerset Council,10810278,LK1,Fees,P12,Children's Services,MAGNA MINORS DAY NURSERY,05/05/2016,720
Bath and North East Somerset Council,10809826,LJ2,Legal Fees,P12,Children's Services,MISS SARAH JENNINGS,05/05/2016,816
Bath and North East Somerset Council,80585297,PG1,Rent Allowances,P10,Finance & Efficiency,PLACES FOR PEOPLE,05/05/2016,1044.23
Bath and North East Somerset Council,10810196,3F7,External Fees,P13,Economic Development,SAFE AND SOUND UK LIMITED,05/05/2016,864.5
Bath and North East Somerset Council,10810212,LK1,Fees,P12,Children's Services,ALICE PARK NURSERY,05/05/2016,1080
Bath and North East Somerset Council,10810245,HV6,Sanitary Disposal,P12,Children's Services,PHS GROUP LTD,05/05/2016,1151.5
Bath and North East Somerset Council,10810190,KB1,Hire of Vehicles,P14,Community Services,SFS LIMITED T/A CTS,05/05/2016,1155
Bath and North East Somerset Council,10810232,LK1,Fees,P12,Children's Services,JESSICA GREGORY,05/05/2016,1170
Bath and North East Somerset Council,10810260,3F7,External Fees,P12,Children's Services,BBA ARCHITECTS,05/05/2016,1500
Bath and North East Somerset Council,10810122,EA1,Training,P12,Children's Services,BRISTOL CITY COUNCIL,05/05/2016,1650
Bath and North East Somerset Council,10810106,LJ1,Consultants Fees,P12,Children's Services,LORDENSHAW CONSULTANCY LIMITED,05/05/2016,1800
Bath and North East Somerset Council,10810233,3F7,External Fees,P10,Finance & Efficiency,BBA ARCHITECTS,05/05/2016,1812.5
Bath and North East Somerset Council,10810290,3F7,External Fees,P12,Children's Services,BBA ARCHITECTS,05/05/2016,2003.5
Bath and North East Somerset Council,10809209,LK1,Fees,P12,Children's Services,NHS BATH & NORTH EAST SOMERSET CCG,05/05/2016,2117.36
Bath and North East Somerset Council,10810230,KB1,Hire of Vehicles,P14,Community Services,DAWSON RENTALS SWEEPERS,05/05/2016,2352
Bath and North East Somerset Council,10810261,LJ2,Legal Fees,P14,Community Services,BEVAN BRITTAN,05/05/2016,2500
Bath and North East Somerset Council,10810220,LM2,Foster Carer Allowances,P12,Children's Services,PRIORY FOSTERING SERVICES,05/05/2016,3364.29
Bath and North East Somerset Council,10810188,LJ4,Contracts,P11,Adult Social Care & Health,ROYAL UNITED HOSPITAL NHS TRUST,05/05/2016,3621
Bath and North East Somerset Council,10809208,LK1,Fees,P12,Children's Services,NHS BATH & NORTH EAST SOMERSET CCG,05/05/2016,3771.48
Bath and North East Somerset Council,10810259,3F7,External Fees,P12,Children's Services,BBA ARCHITECTS,05/05/2016,4015
Bath and North East Somerset Council,10809211,LK1,Fees,P12,Children's Services,NHS BATH & NORTH EAST SOMERSET CCG,05/05/2016,4850.98
Bath and North East Somerset Council,10809982,LA1,Equipment Purchase (Non Medical),P04,Leader,BRISTOL CITY COUNCIL,05/05/2016,4851.5
Bath and North East Somerset Council,10810184,LJ8,PCB External Fees,P13,Economic Development,COOL VENTURES LTD,05/05/2016,5000
Bath and North East Somerset Council,10809210,LK1,Fees,P12,Children's Services,NHS BATH & NORTH EAST SOMERSET CCG,05/05/2016,5655.58
Bath and North East Somerset Council,10810200,LJ3,Other Services to the Council,P10,Finance & Efficiency,WILTSHIRE COUNTY COUNCIL,05/05/2016,600
Bath and North East Somerset Council,10810322,DB1,Agency Staff,P01,Transport,CEEMA LTD,05/05/2016,6175.9
Bath and North East Somerset Council,10810279,3F7,External Fees,P10,Finance & Efficiency,AHR ARCHITECTS LTD,05/05/2016,11723.4
Bath and North East Somerset Council,10810343,LK1,Fees,P12,Children's Services,Frontline Data Ltd,05/05/2016,12945
Bath and North East Somerset Council,80585292,PG1,Rent Allowances,P10,Finance & Efficiency,Y.M.C.A.,05/05/2016,662.45
Bath and North East Somerset Council,10810225,LN5,Data Lines,P10,Finance & Efficiency,MAINTEL EUROPE LTD,05/05/2016,21626
Bath and North East Somerset Council,10810280,3F7,External Fees,P10,Finance & Efficiency,AHR ARCHITECTS LTD,05/05/2016,27160.2
Bath and North East Somerset Council,10810201,LH1,Liability Insurance,Z99,Outside Revenue Accounts,ZURICH MUNICIPAL,05/05/2016,30000
Bath and North East Somerset Council,80586449,LL3,Supported Living,P11,Adult Social Care & Health,Age Concern Bath & North East Somerset,06/05/2016,45253.35
Bath and North East Somerset Council,80586547,LM8,Home Care,P11,Adult Social Care & Health,AGINCARE LIVE IN CARE SERVICES LTD,06/05/2016,0.06
Bath and North East Somerset Council,80586549,LM8,Home Care,P11,Adult Social Care & Health,AGINCARE LIVE IN CARE SERVICES LTD,06/05/2016,0.06
Bath and North East Somerset Council,80586551,LM8,Home Care,P11,Adult Social Care & Health,AGINCARE LIVE IN CARE SERVICES LTD,06/05/2016,0.06
Bath and North East Somerset Council,80586553,LM8,Home Care,P11,Adult Social Care & Health,AGINCARE LIVE IN CARE SERVICES LTD,06/05/2016,0.06
Bath and North East Somerset Council,80586550,LM8,Home Care,P11,Adult Social Care & Health,AGINCARE LIVE IN CARE SERVICES LTD,06/05/2016,700
Bath and North East Somerset Council,80586550,LM8,Home Care,P11,Adult Social Care & Health,AGINCARE LIVE IN CARE SERVICES LTD,06/05/2016,700
Bath and North East Somerset Council,80586552,LM8,Home Care,P11,Adult Social Care & Health,AGINCARE LIVE IN CARE SERVICES LTD,06/05/2016,700
Bath and North East Somerset Council,80586552,LM8,Home Care,P11,Adult Social Care & Health,AGINCARE LIVE IN CARE SERVICES LTD,06/05/2016,700
Bath and North East Somerset Council,80586554,LM8,Home Care,P11,Adult Social Care & Health,AGINCARE LIVE IN CARE SERVICES LTD,06/05/2016,700
Bath and North East Somerset Council,80586554,LM8,Home Care,P11,Adult Social Care & Health,AGINCARE LIVE IN CARE SERVICES LTD,06/05/2016,700
Bath and North East Somerset Council,80586547,LM8,Home Care,P11,Adult Social Care & Health,AGINCARE LIVE IN CARE SERVICES LTD,06/05/2016,765
Bath and North East Somerset Council,80586547,LM8,Home Care,P11,Adult Social Care & Health,AGINCARE LIVE IN CARE SERVICES LTD,06/05/2016,765
Bath and North East Somerset Council,80586549,LM8,Home Care,P11,Adult Social Care & Health,AGINCARE LIVE IN CARE SERVICES LTD,06/05/2016,765
Bath and North East Somerset Council,80586549,LM8,Home Care,P11,Adult Social Care & Health,AGINCARE LIVE IN CARE SERVICES LTD,06/05/2016,765
Bath and North East Somerset Council,80586551,LM8,Home Care,P11,Adult Social Care & Health,AGINCARE LIVE IN CARE SERVICES LTD,06/05/2016,765
Bath and North East Somerset Council,80586551,LM8,Home Care,P11,Adult Social Care & Health,AGINCARE LIVE IN CARE SERVICES LTD,06/05/2016,765
Bath and North East Somerset Council,80586553,LM8,Home Care,P11,Adult Social Care & Health,AGINCARE LIVE IN CARE SERVICES LTD,06/05/2016,765
Bath and North East Somerset Council,80586553,LM8,Home Care,P11,Adult Social Care & Health,AGINCARE LIVE IN CARE SERVICES LTD,06/05/2016,765
Bath and North East Somerset Council,80586436,LL3,Supported Living,P11,Adult Social Care & Health,Alzheimer's Society,06/05/2016,6448.52
Bath and North East Somerset Council,80586544,LM8,Home Care,P11,Adult Social Care & Health,AMBER HOMECARE LTD,06/05/2016,13.37
Bath and North East Somerset Council,80586544,LM8,Home Care,P11,Adult Social Care & Health,AMBER HOMECARE LTD,06/05/2016,242.43
Bath and North East Somerset Council,80586544,LM8,Home Care,P11,Adult Social Care & Health,AMBER HOMECARE LTD,06/05/2016,242.43
Bath and North East Somerset Council,80586544,LM8,Home Care,P11,Adult Social Care & Health,AMBER HOMECARE LTD,06/05/2016,242.43
Bath and North East Somerset Council,80586544,LM8,Home Care,P11,Adult Social Care & Health,AMBER HOMECARE LTD,06/05/2016,242.43
Bath and North East Somerset Council,80586545,LM8,Home Care,P11,Adult Social Care & Health,AMBER HOMECARE LTD,06/05/2016,315.58
Bath and North East Somerset Council,80586545,LM8,Home Care,P11,Adult Social Care & Health,AMBER HOMECARE LTD,06/05/2016,315.58
Bath and North East Somerset Council,10810448,LW9,Other Expenses,P12,Children's Services,B&NES COUNCIL -  OFFICE SERVICES,06/05/2016,3676.62
Bath and North East Somerset Council,80586459,LL3,Supported Living,P11,Adult Social Care & Health,B&NES Supported Lodgings Scheme,06/05/2016,6353.6
Bath and North East Somerset Council,80586439,LL3,Supported Living,P11,Adult Social Care & Health,BATH & NORTH EAST SOMERSET CARERS CENTRE,06/05/2016,32986.3
Bath and North East Somerset Council,80586458,LL3,Supported Living,P11,Adult Social Care & Health,BATH MIND,06/05/2016,4278.54
Bath and North East Somerset Council,80586447,LL3,Supported Living,P11,Adult Social Care & Health,BATH SELF HELP HOUSING ASSOC,06/05/2016,32442.74
Bath and North East Somerset Council,80586445,LL3,Supported Living,P11,Adult Social Care & Health,BCHA,06/05/2016,29009.04
Bath and North East Somerset Council,80586482,LM8,Home Care,P11,Adult Social Care & Health,BLUEBIRD CARE (BATH),06/05/2016,0.04
Bath and North East Somerset Council,80586492,LM8,Home Care,P11,Adult Social Care & Health,BLUEBIRD CARE (BATH),06/05/2016,0.04
Bath and North East Somerset Council,80586556,LM8,Home Care,P11,Adult Social Care & Health,BLUEBIRD CARE (BATH),06/05/2016,0.04
Bath and North East Somerset Council,80586562,LM8,Home Care,P11,Adult Social Care & Health,BLUEBIRD CARE (BATH),06/05/2016,0.04
Bath and North East Somerset Council,80586560,LM8,Home Care,P11,Adult Social Care & Health,BLUEBIRD CARE (BATH),06/05/2016,322.9
Bath and North East Somerset Council,80586560,LM8,Home Care,P11,Adult Social Care & Health,BLUEBIRD CARE (BATH),06/05/2016,322.9
Bath and North East Somerset Council,80586565,LM8,Home Care,P11,Adult Social Care & Health,BLUEBIRD CARE (BATH),06/05/2016,322.9
Bath and North East Somerset Council,80586565,LM8,Home Care,P11,Adult Social Care & Health,BLUEBIRD CARE (BATH),06/05/2016,322.9
Bath and North East Somerset Council,80586482,LM8,Home Care,P11,Adult Social Care & Health,BLUEBIRD CARE (BATH),06/05/2016,525.6
Bath and North East Somerset Council,80586482,LM8,Home Care,P11,Adult Social Care & Health,BLUEBIRD CARE (BATH),06/05/2016,525.6
Bath and North East Somerset Council,80586492,LM8,Home Care,P11,Adult Social Care & Health,BLUEBIRD CARE (BATH),06/05/2016,525.6
Bath and North East Somerset Council,80586492,LM8,Home Care,P11,Adult Social Care & Health,BLUEBIRD CARE (BATH),06/05/2016,525.6
Bath and North East Somerset Council,80586556,LM8,Home Care,P11,Adult Social Care & Health,BLUEBIRD CARE (BATH),06/05/2016,860
Bath and North East Somerset Council,80586556,LM8,Home Care,P11,Adult Social Care & Health,BLUEBIRD CARE (BATH),06/05/2016,860
Bath and North East Somerset Council,80586562,LM8,Home Care,P11,Adult Social Care & Health,BLUEBIRD CARE (BATH),06/05/2016,860
Bath and North East Somerset Council,80586562,LM8,Home Care,P11,Adult Social Care & Health,BLUEBIRD CARE (BATH),06/05/2016,860
Bath and North East Somerset Council,80586430,LL3,Supported Living,P11,Adult Social Care & Health,Breakthrough Deaf Hearing Integration,06/05/2016,7603.12
Bath and North East Somerset Council,80586434,LL3,Supported Living,P11,Adult Social Care & Health,Bristol Credit Union,06/05/2016,536.96
Bath and North East Somerset Council,80586443,LL3,Supported Living,P11,Adult Social Care & Health,CLEAN SLATE TRAINING & EMPLOYMENT LTD,06/05/2016,2761.64
Bath and North East Somerset Council,80586403,LA7,Purchases for Resale,P13,Economic Development,F H SWIFT,06/05/2016,14.7
Bath and North East Somerset Council,80586427,LL3,Supported Living,P11,Adult Social Care & Health,CREATIVITY WORKS,06/05/2016,2450.44
Bath and North East Somerset Council,80586577,PG1,Rent Allowances,P10,Finance & Efficiency,CURO,06/05/2016,20295.01
Bath and North East Somerset Council,80586573,PG1,Rent Allowances,P10,Finance & Efficiency,CURO,06/05/2016,71040.99
Bath and North East Somerset Council,80586446,LL3,Supported Living,P11,Adult Social Care & Health,DEVELOPING HEALTH & INDEPENDENCE,06/05/2016,30500.59
Bath and North East Somerset Council,80586450,LL3,Supported Living,P11,Adult Social Care & Health,DEVELOPING HEALTH & INDEPENDENCE,06/05/2016,36127.66
Bath and North East Somerset Council,10810292,LJ3,Other Services to the Council,P10,Finance & Efficiency,BRISTOW & SUTOR,06/05/2016,75
Bath and North East Somerset Council,80586441,LL3,Supported Living,P11,Adult Social Care & Health,Freeways,06/05/2016,17490.41
Bath and North East Somerset Council,80586456,LL3,Supported Living,P11,Adult Social Care & Health,GUINNESS HOUSING ASSOCIATION,06/05/2016,2832.24
Bath and North East Somerset Council,80586452,LL3,Supported Living,P11,Adult Social Care & Health,HANOVER HOUSING ASSOCIATION,06/05/2016,1544.54
Bath and North East Somerset Council,80586527,LL3,Supported Living,P11,Adult Social Care & Health,HOME FARM TRUST,06/05/2016,706.88
Bath and North East Somerset Council,80586527,LL3,Supported Living,P11,Adult Social Care & Health,HOME FARM TRUST,06/05/2016,706.88
Bath and North East Somerset Council,80586527,LL3,Supported Living,P11,Adult Social Care & Health,HOME FARM TRUST,06/05/2016,706.88
Bath and North East Somerset Council,80586527,LL3,Supported Living,P11,Adult Social Care & Health,HOME FARM TRUST,06/05/2016,706.88
Bath and North East Somerset Council,80586528,LL3,Supported Living,P11,Adult Social Care & Health,HOME FARM TRUST,06/05/2016,1216.64
Bath and North East Somerset Council,80586528,LL3,Supported Living,P11,Adult Social Care & Health,HOME FARM TRUST,06/05/2016,1216.64
Bath and North East Somerset Council,80586528,LL3,Supported Living,P11,Adult Social Care & Health,HOME FARM TRUST,06/05/2016,1216.64
Bath and North East Somerset Council,80586528,LL3,Supported Living,P11,Adult Social Care & Health,HOME FARM TRUST,06/05/2016,1216.64
Bath and North East Somerset Council,80586426,LL3,Supported Living,P11,Adult Social Care & Health,KEY RING LIVING SUPPORT NETWOR,06/05/2016,2953.48
Bath and North East Somerset Council,80586457,LL3,Supported Living,P11,Adult Social Care & Health,KNIGHTSTONE HOUSING ASSOCIATION,06/05/2016,968.14
Bath and North East Somerset Council,80586537,LM8,Home Care,P11,Adult Social Care & Health,KUMARI HOMECARE SERVICE,06/05/2016,121.8
Bath and North East Somerset Council,80586570,LM8,Home Care,P11,Adult Social Care & Health,KUMARI HOMECARE SERVICE,06/05/2016,121.8
Bath and North East Somerset Council,80586494,LM8,Home Care,P11,Adult Social Care & Health,KUMARI HOMECARE SERVICE,06/05/2016,180.53
Bath and North East Somerset Council,80586537,LM8,Home Care,P11,Adult Social Care & Health,KUMARI HOMECARE SERVICE,06/05/2016,452.2
Bath and North East Somerset Council,80586570,LM8,Home Care,P11,Adult Social Care & Health,KUMARI HOMECARE SERVICE,06/05/2016,452.2
Bath and North East Somerset Council,80586494,LM8,Home Care,P11,Adult Social Care & Health,KUMARI HOMECARE SERVICE,06/05/2016,767.97
Bath and North East Somerset Council,80586559,LM8,Home Care,P11,Adult Social Care & Health,KUMARI HOMECARE SERVICE,06/05/2016,767.97
Bath and North East Somerset Council,80586559,LM8,Home Care,P11,Adult Social Care & Health,KUMARI HOMECARE SERVICE,06/05/2016,767.97
Bath and North East Somerset Council,80586537,LM8,Home Care,P11,Adult Social Care & Health,KUMARI HOMECARE SERVICE,06/05/2016,804.93
Bath and North East Somerset Council,80586570,LM8,Home Care,P11,Adult Social Care & Health,KUMARI HOMECARE SERVICE,06/05/2016,804.93
Bath and North East Somerset Council,80586403,LA7,Purchases for Resale,P13,Economic Development,F H SWIFT,06/05/2016,245.7
Bath and North East Somerset Council,80586453,LL3,Supported Living,P11,Adult Social Care & Health,METHODIST HOMES FOR THE AGED,06/05/2016,727.4
Bath and North East Somerset Council,80586576,PG1,Rent Allowances,P10,Finance & Efficiency,REDACTED,06/05/2016,620.53
Bath and North East Somerset Council,80586398,LA7,Purchases for Resale,P13,Economic Development,ST JUSTIN CORNWALL LIMITED,06/05/2016,456
Bath and North East Somerset Council,80586412,LA7,Purchases for Resale,P13,Economic Development,MAYHEM UK LTD,06/05/2016,462
Bath and North East Somerset Council,80586414,LA7,Purchases for Resale,P13,Economic Development,ROMAN CANDLES OF BATH LTD,06/05/2016,479.04
Bath and North East Somerset Council,10810028,HK1,Highway Maintenance,P01,Transport,N K J FOSTER,06/05/2016,500
Bath and North East Somerset Council,10810528,KB1,Hire of Vehicles,P14,Community Services,BURNT TREE VEHICLE HIRE,06/05/2016,537.6
Bath and North East Somerset Council,10810412,LJ4,Contracts,P01,Transport,FALLOWS TAXIS,06/05/2016,540
Bath and North East Somerset Council,10810390,LJ4,Contracts,P01,Transport,RUSSELLS OF BATH PRIVATE HIRE,06/05/2016,546
Bath and North East Somerset Council,10810413,HA1,Responsive Maintenance,P10,Finance & Efficiency,ADEPT POWER SOLUTIONS LIMITED,06/05/2016,549
Bath and North East Somerset Council,10808729,LA5,Materials,P14,Community Services,TRAVIS PERKINS TRADING CO. LTD,06/05/2016,559.17
Bath and North East Somerset Council,80586407,LA7,Purchases for Resale,P13,Economic Development,BRITISH FOSSILS,06/05/2016,564.32
Bath and North East Somerset Council,80586388,LA7,Purchases for Resale,P13,Economic Development,CHANNEL ISLANDS TOYS,06/05/2016,570
Bath and North East Somerset Council,10810439,LT4,Conferences,P12,Children's Services,CAPITA BUSINESS SERVICES LTD,06/05/2016,574.4
Bath and North East Somerset Council,80586422,LL3,Supported Living,P11,Adult Social Care & Health,OFF THE RECORD BATH & N E SOMERSET,06/05/2016,969.98
Bath and North East Somerset Council,80586405,LA7,Purchases for Resale,P13,Economic Development,BATH AQUA GLASS LTD,06/05/2016,624
Bath and North East Somerset Council,80586413,LA7,Purchases for Resale,P13,Economic Development,MILLA MADDERN,06/05/2016,624
Bath and North East Somerset Council,10810173,HV3,Window Cleaning,P10,Finance & Efficiency,ABC WINDOW CLEANING SERVICES,06/05/2016,631
Bath and North East Somerset Council,10810477,LJ4,Contracts,P14,Community Services,FAUN ZOELLOR UK LTD,06/05/2016,643.04
Bath and North East Somerset Council,10810153,HV4,Cleaning Materials,P10,Finance & Efficiency,PHS GROUP LTD,06/05/2016,651.55
Bath and North East Somerset Council,10810435,LA5,Materials,P14,Community Services,PELSIS GROUP,06/05/2016,721.06
Bath and North East Somerset Council,10810398,LJ4,Contracts,P01,Transport,JASON KING LTD,06/05/2016,735
Bath and North East Somerset Council,10810369,LJ4,Contracts,P01,Transport,TRAVELBILLITY LTD,06/05/2016,750
Bath and North East Somerset Council,10810459,LP5,Software Support,P10,Finance & Efficiency,ASTUN TECHNOLOGY LTD,06/05/2016,750
Bath and North East Somerset Council,80586391,LA7,Purchases for Resale,P13,Economic Development,EMBLEM PRINT PRODUCTS LTD,06/05/2016,758.12
Bath and North East Somerset Council,10810384,LJ4,Contracts,P01,Transport,RUSSELLS OF BATH PRIVATE HIRE,06/05/2016,762
Bath and North East Somerset Council,10810361,LP5,Software Support,P10,Finance & Efficiency,METRIC GROUP LIMITED,06/05/2016,769.5
Bath and North East Somerset Council,10810028,HK1,Highway Maintenance,P01,Transport,N K J FOSTER,06/05/2016,801
Bath and North East Somerset Council,10810367,LJ4,Contracts,P01,Transport,STEVE WARREN TRANSPORT SERVICES LTD,06/05/2016,806
Bath and North East Somerset Council,80586420,LA7,Purchases for Resale,P13,Economic Development,WESTAIR REPRODUCTIONS LIMITED,06/05/2016,846.5
Bath and North East Somerset Council,80586454,LL3,Supported Living,P11,Adult Social Care & Health,PLACES FOR PEOPLE INDIVIDUAL SUPPORT,06/05/2016,1631.04
Bath and North East Somerset Council,80586490,LM8,Home Care,P11,Adult Social Care & Health,PRESTIGE NURSING HEALTHCARE,06/05/2016,2980.32
Bath and North East Somerset Council,10810433,HA3,Planned Maintenance,P09,Homes & Planning,ZENITH INTERNATIONAL LTD,06/05/2016,862.5
Bath and North East Somerset Council,80586567,LL3,Supported Living,P11,Adult Social Care & Health,PROSPECTS FPWLD MAIN,06/05/2016,764.32
Bath and North East Somerset Council,80586567,LL3,Supported Living,P11,Adult Social Care & Health,PROSPECTS FPWLD MAIN,06/05/2016,764.32
Bath and North East Somerset Council,80586567,LL3,Supported Living,P11,Adult Social Care & Health,PROSPECTS FPWLD MAIN,06/05/2016,764.32
Bath and North East Somerset Council,80586567,LL3,Supported Living,P11,Adult Social Care & Health,PROSPECTS FPWLD MAIN,06/05/2016,764.32
Bath and North East Somerset Council,80586568,LL3,Supported Living,P11,Adult Social Care & Health,PROSPECTS FPWLD MAIN,06/05/2016,842.59
Bath and North East Somerset Council,80586568,LL3,Supported Living,P11,Adult Social Care & Health,PROSPECTS FPWLD MAIN,06/05/2016,842.59
Bath and North East Somerset Council,80586568,LL3,Supported Living,P11,Adult Social Care & Health,PROSPECTS FPWLD MAIN,06/05/2016,842.59
Bath and North East Somerset Council,80586568,LL3,Supported Living,P11,Adult Social Care & Health,PROSPECTS FPWLD MAIN,06/05/2016,842.59
Bath and North East Somerset Council,80586539,LL3,Supported Living,P11,Adult Social Care & Health,REDACTED,06/05/2016,145
Bath and North East Somerset Council,80586539,LL3,Supported Living,P11,Adult Social Care & Health,REDACTED,06/05/2016,145
Bath and North East Somerset Council,80586539,LL3,Supported Living,P11,Adult Social Care & Health,REDACTED,06/05/2016,145
Bath and North East Somerset Council,80586539,LL3,Supported Living,P11,Adult Social Care & Health,REDACTED,06/05/2016,145
Bath and North East Somerset Council,80586539,LL3,Supported Living,P11,Adult Social Care & Health,REDACTED,06/05/2016,145
Bath and North East Somerset Council,80586421,LL3,Supported Living,P11,Adult Social Care & Health,Rethink,06/05/2016,3717.47
Bath and North East Somerset Council,10810457,LA1,Equipment Purchase (Non Medical),P14,Community Services,APT CONTROLS LTD,06/05/2016,890
Bath and North East Somerset Council,10810410,LJ4,Contracts,P01,Transport,NEED TO GET HOME? TAXI COMPANY,06/05/2016,892.5
Bath and North East Somerset Council,10810375,LJ4,Contracts,P01,Transport,MARIAN CALINOIU (MARIO PRIVATE HIRE LTD),06/05/2016,900
Bath and North East Somerset Council,10810404,LJ4,Contracts,P01,Transport,CENTURION CARS,06/05/2016,900
Bath and North East Somerset Council,10810370,LJ4,Contracts,P01,Transport,ROMAN BATH TRANSPORT,06/05/2016,907.5
Bath and North East Somerset Council,80586393,LA7,Purchases for Resale,P13,Economic Development,GREEK CONNECTION 2000 LTD,06/05/2016,912.45
Bath and North East Somerset Council,80586521,LL3,Supported Living,P11,Adult Social Care & Health,S.W.A.L.L.O.W. LTD,06/05/2016,40.89
Bath and North East Somerset Council,80586521,LL3,Supported Living,P11,Adult Social Care & Health,S.W.A.L.L.O.W. LTD,06/05/2016,40.89
Bath and North East Somerset Council,80586521,LL3,Supported Living,P11,Adult Social Care & Health,S.W.A.L.L.O.W. LTD,06/05/2016,40.89
Bath and North East Somerset Council,80586521,LL3,Supported Living,P11,Adult Social Care & Health,S.W.A.L.L.O.W. LTD,06/05/2016,40.89
Bath and North East Somerset Council,80586521,LL3,Supported Living,P11,Adult Social Care & Health,S.W.A.L.L.O.W. LTD,06/05/2016,53.7
Bath and North East Somerset Council,80586521,LL3,Supported Living,P11,Adult Social Care & Health,S.W.A.L.L.O.W. LTD,06/05/2016,87.87
Bath and North East Somerset Council,80586521,LL3,Supported Living,P11,Adult Social Care & Health,S.W.A.L.L.O.W. LTD,06/05/2016,87.87
Bath and North East Somerset Council,80586521,LL3,Supported Living,P11,Adult Social Care & Health,S.W.A.L.L.O.W. LTD,06/05/2016,87.87
Bath and North East Somerset Council,80586521,LL3,Supported Living,P11,Adult Social Care & Health,S.W.A.L.L.O.W. LTD,06/05/2016,87.87
Bath and North East Somerset Council,80586522,LL3,Supported Living,P11,Adult Social Care & Health,S.W.A.L.L.O.W. LTD,06/05/2016,122.67
Bath and North East Somerset Council,80586516,LL3,Supported Living,P11,Adult Social Care & Health,S.W.A.L.L.O.W. LTD,06/05/2016,148.69
Bath and North East Somerset Council,80586516,LL3,Supported Living,P11,Adult Social Care & Health,S.W.A.L.L.O.W. LTD,06/05/2016,148.69
Bath and North East Somerset Council,80586516,LL3,Supported Living,P11,Adult Social Care & Health,S.W.A.L.L.O.W. LTD,06/05/2016,148.69
Bath and North East Somerset Council,80586516,LL3,Supported Living,P11,Adult Social Care & Health,S.W.A.L.L.O.W. LTD,06/05/2016,148.69
Bath and North East Somerset Council,80586522,LL3,Supported Living,P11,Adult Social Care & Health,S.W.A.L.L.O.W. LTD,06/05/2016,148.69
Bath and North East Somerset Council,80586522,LL3,Supported Living,P11,Adult Social Care & Health,S.W.A.L.L.O.W. LTD,06/05/2016,148.69
Bath and North East Somerset Council,80586522,LL3,Supported Living,P11,Adult Social Care & Health,S.W.A.L.L.O.W. LTD,06/05/2016,148.69
Bath and North East Somerset Council,80586496,LM8,Home Care,P11,Adult Social Care & Health,SAFE & SOUND HOMECARE SERVICES,06/05/2016,287.5
Bath and North East Somerset Council,80586496,LM8,Home Care,P11,Adult Social Care & Health,SAFE & SOUND HOMECARE SERVICES,06/05/2016,287.5
Bath and North East Somerset Council,80586496,LM8,Home Care,P11,Adult Social Care & Health,SAFE & SOUND HOMECARE SERVICES,06/05/2016,287.5
Bath and North East Somerset Council,80586496,LM8,Home Care,P11,Adult Social Care & Health,SAFE & SOUND HOMECARE SERVICES,06/05/2016,860
Bath and North East Somerset Council,80586423,LL3,Supported Living,P11,Adult Social Care & Health,Second Step Housing Association,06/05/2016,6670.8
Bath and North East Somerset Council,10810381,LJ4,Contracts,P01,Transport,SOMERBUS LTD,06/05/2016,1000
Bath and North East Somerset Council,80586409,LA7,Purchases for Resale,P13,Economic Development,I AM MADE LTD,06/05/2016,1000
Bath and North East Somerset Council,10810368,LJ4,Contracts,P01,Transport,ROMAN BATH TRANSPORT,06/05/2016,1008
Bath and North East Somerset Council,10810387,LJ4,Contracts,P01,Transport,RUSSELLS OF BATH PRIVATE HIRE,06/05/2016,1035
Bath and North East Somerset Council,10810376,LJ4,Contracts,P01,Transport,EAST BRISTOL CARS,06/05/2016,1035
Bath and North East Somerset Council,10810177,HV3,Window Cleaning,P10,Finance & Efficiency,ABC WINDOW CLEANING SERVICES,06/05/2016,1036
Bath and North East Somerset Council,10810391,LJ4,Contracts,P01,Transport,RUSSELLS OF BATH PRIVATE HIRE,06/05/2016,1050
Bath and North East Somerset Council,10810392,LJ4,Contracts,P01,Transport,RUSSELLS OF BATH PRIVATE HIRE,06/05/2016,1095
Bath and North East Somerset Council,80586435,LL3,Supported Living,P11,Adult Social Care & Health,SIRONA CARE & HEALTH,06/05/2016,3513.93
Bath and North East Somerset Council,80586417,LA7,Purchases for Resale,P13,Economic Development,TOWER MINT LTD,06/05/2016,1104
Bath and North East Somerset Council,10810386,LJ4,Contracts,P01,Transport,RUSSELLS OF BATH PRIVATE HIRE,06/05/2016,1105
Bath and North East Somerset Council,80586424,LL3,Supported Living,P11,Adult Social Care & Health,SOLON SW HA LTD,06/05/2016,6045.6
Bath and North East Somerset Council,80586463,LL3,Supported Living,P11,Adult Social Care & Health,SOMER COMMUNITY HOUSING TRUST,06/05/2016,75219.32
Bath and North East Somerset Council,80586433,LL3,Supported Living,P11,Adult Social Care & Health,Soundwell Music Therapy Trust,06/05/2016,767.12
Bath and North East Somerset Council,10810403,LJ4,Contracts,P01,Transport,PLUTO ENTERPRISES LTD T/A A.F.C. TAXIS,06/05/2016,1140
Bath and North East Somerset Council,80586442,LL3,Supported Living,P11,Adult Social Care & Health,SPA,06/05/2016,5369.86
Bath and North East Somerset Council,10810383,LJ4,Contracts,P01,Transport,MR M L BRACEY T/A A B M MINIBUSES,06/05/2016,1152
Bath and North East Somerset Council,10810395,LJ4,Contracts,P01,Transport,MR M L BRACEY T/A A B M MINIBUSES,06/05/2016,1160.1
Bath and North East Somerset Council,10810399,LJ4,Contracts,P01,Transport,STEVE WARREN TRANSPORT SERVICES LTD,06/05/2016,1181
Bath and North East Somerset Council,10810389,LJ4,Contracts,P01,Transport,RUSSELLS OF BATH PRIVATE HIRE,06/05/2016,1185
Bath and North East Somerset Council,80586438,LL3,Supported Living,P11,Adult Social Care & Health,ST MUNGO COMMUNITY HOUSING ASSOCIATION LTD,06/05/2016,25173.85
Bath and North East Somerset Council,80586481,LM8,Home Care,P11,Adult Social Care & Health,STAR HOME CARE SERVICES LIMITED,06/05/2016,524.03
Bath and North East Somerset Council,80586485,LM8,Home Care,P11,Adult Social Care & Health,STAR HOME CARE SERVICES LIMITED,06/05/2016,524.03
Bath and North East Somerset Council,80586486,LM8,Home Care,P11,Adult Social Care & Health,STAR HOME CARE SERVICES LIMITED,06/05/2016,524.03
Bath and North East Somerset Council,80586429,LL3,Supported Living,P11,Adult Social Care & Health,STONEHAM HOUSING ASSOCIATION,06/05/2016,6257.88
Bath and North East Somerset Council,80586483,LM8,Home Care,P11,Adult Social Care & Health,REDACTED,06/05/2016,120.05
Bath and North East Somerset Council,10810181,HV4,Cleaning Materials,P10,Finance & Efficiency,PHS GROUP LTD,06/05/2016,1378.58
Bath and North East Somerset Council,80586483,LM8,Home Care,P11,Adult Social Care & Health,REDACTED,06/05/2016,120.05
Bath and North East Somerset Council,80586483,LM8,Home Care,P11,Adult Social Care & Health,REDACTED,06/05/2016,120.05
Bath and North East Somerset Council,80586483,LM8,Home Care,P11,Adult Social Care & Health,REDACTED,06/05/2016,120.05
Bath and North East Somerset Council,80586483,LM8,Home Care,P11,Adult Social Care & Health,REDACTED,06/05/2016,120.05
Bath and North East Somerset Council,10810397,LJ4,Contracts,P01,Transport,JASON KING LTD,06/05/2016,1380
Bath and North East Somerset Council,10810366,LJ4,Contracts,P01,Transport,HIGHWAY TAXIS & TRAVEL,06/05/2016,1380.6
Bath and North East Somerset Council,10810363,LK6,Photography/Artworks/Graphics,P13,Economic Development,PROVELIO LTD,06/05/2016,1441.38
Bath and North East Somerset Council,80586416,LA7,Purchases for Resale,P13,Economic Development,TEMPLE ISLAND COLLECTIONS,06/05/2016,1507.5
Bath and North East Somerset Council,10810400,LJ4,Contracts,P01,Transport,JASON KING LTD,06/05/2016,1540
Bath and North East Somerset Council,10810377,LJ4,Contracts,P01,Transport,MARIAN CALINOIU (MARIO PRIVATE HIRE LTD),06/05/2016,1540
Bath and North East Somerset Council,80586431,LL3,Supported Living,P11,Adult Social Care & Health,SWALLOW LTD,06/05/2016,5557.15
Bath and North East Somerset Council,80586448,LL3,Supported Living,P11,Adult Social Care & Health,SWAN Advice Network,06/05/2016,1593.16
Bath and North East Somerset Council,10810483,3F7,External Fees,P12,Children's Services,BBA ARCHITECTS,06/05/2016,1550
Bath and North East Somerset Council,10810360,KA3,Fuel,P14,Community Services,ALLSTAR BUSINESS SOLUTIONS LTD,06/05/2016,1556.16
Bath and North East Somerset Council,10810405,LJ4,Contracts,P01,Transport,TRAVELBILLITY LTD,06/05/2016,1575
Bath and North East Somerset Council,10810394,LJ4,Contracts,P01,Transport,JASON KING LTD,06/05/2016,1650
Bath and North East Somerset Council,10810440,LJ4,Contracts,P01,Transport,BUGLERS COACHES LIMITED,06/05/2016,1800
Bath and North East Somerset Council,10810371,LJ4,Contracts,P01,Transport,S W STENTAFORD,06/05/2016,1800
Bath and North East Somerset Council,10810423,LJ4,Contracts,P01,Transport,REDACTED,06/05/2016,896
Bath and North East Somerset Council,10810425,LJ4,Contracts,P01,Transport,REDACTED,06/05/2016,1512
Bath and North East Somerset Council,10810426,LJ4,Contracts,P01,Transport,REDACTED,06/05/2016,1652
Bath and North East Somerset Council,10810366,LJ4,Contracts,P01,Transport,HIGHWAY TAXIS & TRAVEL,06/05/2016,1936.2
Bath and North East Somerset Council,10810393,LJ4,Contracts,P01,Transport,RUSSELLS OF BATH PRIVATE HIRE,06/05/2016,1975
Bath and North East Somerset Council,80586506,LL3,Supported Living,P11,Adult Social Care & Health,THE BRANDON TRUST,06/05/2016,167.3
Bath and North East Somerset Council,80586506,LL3,Supported Living,P11,Adult Social Care & Health,THE BRANDON TRUST,06/05/2016,167.3
Bath and North East Somerset Council,80586506,LL3,Supported Living,P11,Adult Social Care & Health,THE BRANDON TRUST,06/05/2016,167.3
Bath and North East Somerset Council,80586506,LL3,Supported Living,P11,Adult Social Care & Health,THE BRANDON TRUST,06/05/2016,167.3
Bath and North East Somerset Council,80586464,LL3,Supported Living,P11,Adult Social Care & Health,The Care Forum,06/05/2016,3667
Bath and North East Somerset Council,10810407,LJ4,Contracts,P01,Transport,BUGLERS COACHES LIMITED,06/05/2016,1980
Bath and North East Somerset Council,10810224,EA2,Professional Subscriptions,P04,Leader,LEXISNEXIS,06/05/2016,1982
Bath and North East Somerset Council,10810432,HA3,Planned Maintenance,P09,Homes & Planning,ZENITH INTERNATIONAL LTD,06/05/2016,2000
Bath and North East Somerset Council,80586403,LA7,Purchases for Resale,P13,Economic Development,F H SWIFT,06/05/2016,2035.8
Bath and North East Somerset Council,80586401,LA7,Purchases for Resale,P13,Economic Development,TOWER MINT LTD,06/05/2016,2083.5
Bath and North East Somerset Council,10810411,LJ4,Contracts,P01,Transport,BUGLERS COACHES LIMITED,06/05/2016,2100
Bath and North East Somerset Council,10810406,LJ4,Contracts,P01,Transport,CENTURION TRAVEL LTD,06/05/2016,2145
Bath and North East Somerset Council,10810374,LJ4,Contracts,P01,Transport,EAGLE COACHES LTD,06/05/2016,2206
Bath and North East Somerset Council,10810382,LJ4,Contracts,P01,Transport,AVON MINI BUSES LTD,06/05/2016,2220
Bath and North East Somerset Council,10810380,LJ4,Contracts,P01,Transport,MARIAN CALINOIU (MARIO PRIVATE HIRE LTD),06/05/2016,2230.4
Bath and North East Somerset Council,10810373,LJ4,Contracts,P01,Transport,EAGLE COACHES LTD,06/05/2016,2248
Bath and North East Somerset Council,10810409,LJ4,Contracts,P01,Transport,BUGLERS COACHES LIMITED,06/05/2016,2250
Bath and North East Somerset Council,10810355,LP5,Software Support,P10,Finance & Efficiency,CACI LIMITED,06/05/2016,2317.88
Bath and North East Somerset Council,10810420,LJ4,Contracts,P01,Transport,BUGLERS COACHES LIMITED,06/05/2016,2400
Bath and North East Somerset Council,10810194,LP5,Software Support,P10,Finance & Efficiency,THIS IS FOCUS LTD,06/05/2016,2400
Bath and North East Somerset Council,10810372,LJ4,Contracts,P01,Transport,EAGLE COACHES LTD,06/05/2016,2428
Bath and North East Somerset Council,10810385,LJ4,Contracts,P01,Transport,GLENVIC COACHES,06/05/2016,2550
Bath and North East Somerset Council,10810428,LP5,Software Support,P10,Finance & Efficiency,RA INFORMATION SYSTEMS,06/05/2016,2665
Bath and North East Somerset Council,10810414,LJ4,Contracts,P01,Transport,V CARS,06/05/2016,1640.7
Bath and North East Somerset Council,80586440,LL3,Supported Living,P11,Adult Social Care & Health,WE CARE AND REPAIR,06/05/2016,14997.27
Bath and North East Somerset Council,10810350,3F7,External Fees,P13,Economic Development,RIDER LEVETT BUCKNALL UK LTD,06/05/2016,3650
Bath and North East Somerset Council,10810417,LJ4,Contracts,P01,Transport,ROAD RUNNER TAXI BUSES,06/05/2016,4003.59
Bath and North East Somerset Council,10810288,HA1,Responsive Maintenance,P10,Finance & Efficiency,N K S CONTRACTS LTD,06/05/2016,5084.41
Bath and North East Somerset Council,10810378,LJ4,Contracts,P01,Transport,MINIBUS TRAVEL,06/05/2016,6914.4
Bath and North East Somerset Council,10810214,LF5,Postages,P10,Finance & Efficiency,ROYAL MAIL GROUP PLC,06/05/2016,7701.05
Bath and North East Somerset Council,10810399,LJ4,Contracts,P01,Transport,STEVE WARREN TRANSPORT SERVICES LTD,06/05/2016,7837
Bath and North East Somerset Council,10810460,LJ3,Other Services to the Council,Z98,West of England Partnership,SCIENCE RESEARCH FOUNDATION,06/05/2016,7869.48
Bath and North East Somerset Council,10810427,LJ4,Contracts,P01,Transport,TOMMY JUKES,06/05/2016,8104.72
Bath and North East Somerset Council,10810509,KA1,Repairs & Maintenance,P14,Community Services,ATS EUROMASTER LTD,06/05/2016,8295.77
Bath and North East Somerset Council,10810406,LJ4,Contracts,P01,Transport,CENTURION TRAVEL LTD,06/05/2016,9853.5
Bath and North East Somerset Council,10810415,LJ4,Contracts,P01,Transport,FILERS COACHES,06/05/2016,11700
Bath and North East Somerset Council,10810481,LJ4,Contracts,P12,Children's Services,XENZONE LIMITED,06/05/2016,12400
Bath and North East Somerset Council,10810438,LP1,Hardware Purchase,P12,Children's Services,STACK DATA SOLUTIONS LTD,06/05/2016,13741.83
Bath and North East Somerset Council,10810479,LK1,Fees,P12,Children's Services,SOUTHWEST ONE LTD,06/05/2016,15000
Bath and North East Somerset Council,10810441,LJ4,Contracts,P01,Transport,EAST HARPTREE COUNTRY CABS,06/05/2016,16369.4
Bath and North East Somerset Council,10810356,PB4,Payments to Private Contractors,P14,Community Services,GENECO,06/05/2016,22091.48
Bath and North East Somerset Council,10810273,LH1,Liability Insurance,Z99,Outside Revenue Accounts,BLM,09/05/2016,0.96
Bath and North East Somerset Council,80586711,LE1,Education Payment (independent school),P12,Children's Services,BATH COMMUNITY ACADEMY - CABOT LEARNING FEDERATION,09/05/2016,1020
Bath and North East Somerset Council,80586581,LK1,Fees,P12,Children's Services,COMBE DOWN NURSERY,09/05/2016,672
Bath and North East Somerset Council,80586592,LK1,Fees,P12,Children's Services,COMBE DOWN NURSERY,09/05/2016,720
Bath and North East Somerset Council,10810273,LH1,Liability Insurance,Z99,Outside Revenue Accounts,BLM,09/05/2016,54.56
Bath and North East Somerset Council,10810599,LJ4,Contracts,P01,Transport,RIVERSIDE TAXIS,09/05/2016,119
Bath and North East Somerset Council,10810599,LJ4,Contracts,P01,Transport,RIVERSIDE TAXIS,09/05/2016,150
Bath and North East Somerset Council,10810443,LJ4,Contracts,P01,Transport,RADSTOCK TAXIS,09/05/2016,420
Bath and North East Somerset Council,10810557,HK1,Highway Maintenance,P01,Transport,D B GIBBONS (CONSTRUCTION) LTD,09/05/2016,450
Bath and North East Somerset Council,10810437,HE1,General Maintenance,P14,Community Services,TOM LEDBURY,09/05/2016,450
Bath and North East Somerset Council,10810567,LJ4,Contracts,P01,Transport,KEYNSHAM CARS,09/05/2016,480
Bath and North East Somerset Council,10810570,LJ4,Contracts,P01,Transport,KEYNSHAM CARS,09/05/2016,492
Bath and North East Somerset Council,80586708,LE1,Education Payment (independent school),P12,Children's Services,ROWDE C OF E PRIMARY ACADEMY,09/05/2016,500
Bath and North East Somerset Council,10810437,HE1,General Maintenance,P14,Community Services,TOM LEDBURY,09/05/2016,509
Bath and North East Somerset Council,10810552,LJ4,Contracts,P01,Transport,KEYNSHAM CARS,09/05/2016,528
Bath and North East Somerset Council,10810555,LJ4,Contracts,P01,Transport,KEYNSHAM CARS,09/05/2016,540
Bath and North East Somerset Council,10810569,LJ4,Contracts,P01,Transport,KEYNSHAM CARS,09/05/2016,540
Bath and North East Somerset Council,10810553,LJ4,Contracts,P01,Transport,KEYNSHAM CARS,09/05/2016,560
Bath and North East Somerset Council,80586713,LE1,Education Payment (independent school),P12,Children's Services,JOHN CABOT ACADEMY,09/05/2016,660
Bath and North East Somerset Council,10810574,LJ4,Contracts,P01,Transport,KEYNSHAM CARS,09/05/2016,680
Bath and North East Somerset Council,10810264,LA4,Equipment Hire/Rent,P04,Leader,STATUS AUDIO VISUAL LTD,09/05/2016,680
Bath and North East Somerset Council,10810577,LJ4,Contracts,P01,Transport,KEYNSHAM CARS,09/05/2016,700
Bath and North East Somerset Council,10810583,LJ4,Contracts,P01,Transport,KMJ TAXIS,09/05/2016,700
Bath and North East Somerset Council,10810575,LJ4,Contracts,P01,Transport,KEYNSHAM CARS,09/05/2016,728
Bath and North East Somerset Council,10810582,LJ4,Contracts,P01,Transport,KMJ TAXIS,09/05/2016,900
Bath and North East Somerset Council,10810568,LJ4,Contracts,P01,Transport,KEYNSHAM CARS,09/05/2016,952
Bath and North East Somerset Council,80586710,LE1,Education Payment (independent school),P12,Children's Services,"EDUCATION FELLOWSHIP, CLARENDON ACADEMY",09/05/2016,1100
Bath and North East Somerset Council,10809849,LV2,Contributions to Organisations,P10,Finance & Efficiency,SOMERSET COUNTY COUNCIL,09/05/2016,3236
Bath and North East Somerset Council,80586712,LE1,Education Payment (independent school),P12,Children's Services,SOUTH GLOUCESTERSHIRE COUNCIL,09/05/2016,2695
Bath and North East Somerset Council,10810564,LJ4,Contracts,P14,Community Services,HURLEY ENGINE SERVICES LTD,09/05/2016,1166.32
Bath and North East Somerset Council,10810599,LJ4,Contracts,P01,Transport,RIVERSIDE TAXIS,09/05/2016,1210
Bath and North East Somerset Council,10810578,LJ4,Contracts,P01,Transport,JASON KING LTD,09/05/2016,1310
Bath and North East Somerset Council,10810183,3N7,Misc. Costs,P01,Transport,GLANVILLE CLEANSING LTD T/A GLANVILLE ENVIRONMENTAL,09/05/2016,1330
Bath and North East Somerset Council,10810614,LA5,Materials,P14,Community Services,FLEET (LINE MARKERS) LTD,09/05/2016,1406.28
Bath and North East Somerset Council,10810571,LJ4,Contracts,P01,Transport,KEYNSHAM CARS,09/05/2016,1440
Bath and North East Somerset Council,10810557,HK1,Highway Maintenance,P01,Transport,D B GIBBONS (CONSTRUCTION) LTD,09/05/2016,1500
Bath and North East Somerset Council,10810473,LJ4,Contracts,P01,Transport,BBFI LTD,09/05/2016,1600
Bath and North East Somerset Council,10810637,LF5,Postages,P10,Finance & Efficiency,WHISTL UK LTD,09/05/2016,1808.68
Bath and North East Somerset Council,10810579,LJ4,Contracts,P01,Transport,CT COACHES,09/05/2016,1831.5
Bath and North East Somerset Council,80586707,LE1,Education Payment (independent school),P12,Children's Services,SOMERSET COUNTY COUNCIL,09/05/2016,1950
Bath and North East Somerset Council,10810416,LX6,Bus Revenue Support,P01,Transport,FIRST BRISTOL BUSES LIMITED,09/05/2016,1999.7
Bath and North East Somerset Council,10810580,LJ4,Contracts,P01,Transport,CITISTAR LIMITED,09/05/2016,2137.5
Bath and North East Somerset Council,10810600,LK1,Fees,P10,Finance & Efficiency,CIVICA UK LTD,09/05/2016,2160
Bath and North East Somerset Council,10809628,3C4,Building Works,P14,Community Services,AG INDUSTRIES LTD T/A ALLGREEN GROUP,09/05/2016,2686.88
Bath and North East Somerset Council,10809748,LM1,Volunt Homes Placements Top/Up,P12,Children's Services,TACT,09/05/2016,2909.04
Bath and North East Somerset Council,10809732,LM1,Volunt Homes Placements Top/Up,P12,Children's Services,TACT,09/05/2016,2937.56
Bath and North East Somerset Council,10810587,LJ4,Contracts,P01,Transport,V CARS,09/05/2016,90
Bath and North East Somerset Council,10810587,LJ4,Contracts,P01,Transport,V CARS,09/05/2016,2501.9
Bath and North East Somerset Council,10810587,LJ4,Contracts,P01,Transport,V CARS,09/05/2016,16410.1
Bath and North East Somerset Council,10810560,LK1,Fees,P13,Economic Development,EDMOND SHIPWAY LLP,09/05/2016,3267.21
Bath and North East Somerset Council,10809734,LM1,Volunt Homes Placements Top/Up,P12,Children's Services,TACT,09/05/2016,3388.18
Bath and North East Somerset Council,10809747,LM1,Volunt Homes Placements Top/Up,P12,Children's Services,TACT,09/05/2016,3388.18
Bath and North East Somerset Council,10810303,KB1,Hire of Vehicles,P14,Community Services,SHB HIRE LTD,09/05/2016,3535.7
Bath and North East Somerset Council,10810354,3C4,Building Works,P01,Transport,XEIAD LTD,09/05/2016,3820.2
Bath and North East Somerset Council,10810629,LJ3,Other Services to the Council,P10,Finance & Efficiency,SAINSBURY'S BUSINESS DIRECT,09/05/2016,4095
Bath and North East Somerset Council,10810625,LK1,Fees,P10,Finance & Efficiency,CIVICA UK LTD,09/05/2016,4140
Bath and North East Somerset Council,10810604,3F7,External Fees,P12,Children's Services,BBA ARCHITECTS,09/05/2016,4150
Bath and North East Somerset Council,10810443,LJ4,Contracts,P01,Transport,RADSTOCK TAXIS,09/05/2016,4238
Bath and North East Somerset Council,10810548,3C4,Building Works,P14,Community Services,LDA DESIGN CONSULTING LTD,09/05/2016,4462.17
Bath and North East Somerset Council,10809653,LJ1,Consultants Fees,P14,Community Services,DEWAR STUART ASSOCIATES LTD,09/05/2016,4500
Bath and North East Somerset Council,10809950,LA1,Equipment Purchase (Non Medical),P14,Community Services,WICKSTEED LEISURE LIMITED,09/05/2016,4650
Bath and North East Somerset Council,10810246,LX6,Bus Revenue Support,P01,Transport,SOMERBUS LTD,09/05/2016,5127.58
Bath and North East Somerset Council,10809214,LK1,Fees,P12,Children's Services,NHS BATH & NORTH EAST SOMERSET CCG,09/05/2016,5826.99
Bath and North East Somerset Council,10810558,HE1,General Maintenance,P01,Transport,FOUR SEASONS LANDSCAPE LTD,09/05/2016,5976.5
Bath and North East Somerset Council,10810313,LX6,Bus Revenue Support,P01,Transport,CITISTAR LIMITED,09/05/2016,6000
Bath and North East Somerset Council,10810579,LJ4,Contracts,P01,Transport,CT COACHES,09/05/2016,6002
Bath and North East Somerset Council,10810598,LK1,Fees,P10,Finance & Efficiency,CIVICA UK LTD,09/05/2016,6366
Bath and North East Somerset Council,10810597,LK1,Fees,P10,Finance & Efficiency,CIVICA UK LTD,09/05/2016,7020
Bath and North East Somerset Council,10810627,3F7,External Fees,P12,Children's Services,BBA ARCHITECTS,09/05/2016,8531.25
Bath and North East Somerset Council,10810599,LJ4,Contracts,P01,Transport,RIVERSIDE TAXIS,09/05/2016,13656
Bath and North East Somerset Council,10810453,LX6,Bus Revenue Support,P01,Transport,CT COACHES,09/05/2016,17244.36
Bath and North East Somerset Council,10810015,PA3,Payments to Health Authorities,P11,Adult Social Care & Health,NHS BATH & NORTH EAST SOMERSET CCG,09/05/2016,24036.37
Bath and North East Somerset Council,10810454,LX6,Bus Revenue Support,P01,Transport,FIRST SOMERSET & AVON LTD,09/05/2016,49305.83
Bath and North East Somerset Council,10810623,DB1,Agency Staff,P10,Finance & Efficiency,COMENSURA LTD,09/05/2016,52903
Bath and North East Somerset Council,10810632,LJ1,Consultants Fees,P10,Finance & Efficiency,NEPRO LTD,09/05/2016,127488.32
Bath and North East Somerset Council,10810816,LX3,Refunds,P04,Leader,REDACTED,10/05/2016,5000
Bath and North East Somerset Council,10810634,LJ1,Consultants Fees,P14,Community Services,CLARKSLEGAL LLP,10/05/2016,24
Bath and North East Somerset Council,10810198,7F1,Rent,,,CURO,10/05/2016,122463.33
Bath and North East Somerset Council,10810463,LK1,Fees,P04,Leader,DEVELOPING HEALTH & INDEPENDENCE,10/05/2016,2500
Bath and North East Somerset Council,10810773,LA5,Materials,P14,Community Services,G WILLIAMS & SONS LTD,10/05/2016,150
Bath and North East Somerset Council,10810773,HF2,Grounds Maintenance - Non Contract,P14,Community Services,G WILLIAMS & SONS LTD,10/05/2016,150
Bath and North East Somerset Council,10810766,LJ2,Legal Fees,P09,Homes & Planning,LANDMARK CHAMBERS LTD,10/05/2016,150
Bath and North East Somerset Council,10810794,LL2,Personal Needs of Clients,P12,Children's Services,CONNOLLY & CALLAGHAN LTD,10/05/2016,420
Bath and North East Somerset Council,10810803,LL2,Personal Needs of Clients,P12,Children's Services,CONNOLLY & CALLAGHAN LTD,10/05/2016,420
Bath and North East Somerset Council,10810689,LH3,Publicity,P13,Economic Development,BATH TOURISM PLUS,10/05/2016,450
Bath and North East Somerset Council,10810286,HA1,Responsive Maintenance,P10,Finance & Efficiency,ENVIRONTEC LIMITED,10/05/2016,450
Bath and North East Somerset Council,10810664,HA1,Responsive Maintenance,P13,Economic Development,ASHTON AIR CONDITIONING SERVICES LIMITED,10/05/2016,464
Bath and North East Somerset Council,10810810,LA3,Equipment Maintenance (Non Medical),P10,Finance & Efficiency,INTELLIGENT FINISHING SYSTEMS LTD,10/05/2016,465
Bath and North East Somerset Council,10810172,LH2,Advertising,P09,Homes & Planning,LOCAL WORLD LTD,10/05/2016,469.74
Bath and North East Somerset Council,10810685,LH5,Marketing,P13,Economic Development,BULLET PR LTD,10/05/2016,471
Bath and North East Somerset Council,10810656,HA1,Responsive Maintenance,P13,Economic Development,AVON FIRE SYSTEMS LTD,10/05/2016,475
Bath and North East Somerset Council,10810776,LA5,Materials,P14,Community Services,TOWN & COUNTRY MEMORIALS LTD,10/05/2016,480
Bath and North East Somerset Council,10810695,LH5,Marketing,P13,Economic Development,MICROSERVE IT SERVICES LTD,10/05/2016,495
Bath and North East Somerset Council,10810699,LM8,Home Care,P11,Adult Social Care & Health,REDACTED,10/05/2016,36678.62
Bath and North East Somerset Council,10810708,LW8,Conservation,P13,Economic Development,PRESERVATION EQUIPMENT LTD,10/05/2016,507.75
Bath and North East Somerset Council,10810082,LA5,Materials,P10,Finance & Efficiency,PREMIER PAPER,10/05/2016,508.68
Bath and North East Somerset Council,10810654,LF1,Printing/Design,P13,Economic Development,ANNA BARCLAY,10/05/2016,525
Bath and North East Somerset Council,10810690,LL8,Individualised Budget,P11,Adult Social Care & Health,REDACTED,10/05/2016,1730.75
Bath and North East Somerset Council,10810660,HA1,Responsive Maintenance,P13,Economic Development,ATLAS HEATING (BRISTOL) LTD,10/05/2016,560.16
Bath and North East Somerset Council,10810809,LX3,Refunds,P04,Leader,REDACTED,10/05/2016,5000
Bath and North East Somerset Council,10810634,LJ1,Consultants Fees,P14,Community Services,CLARKSLEGAL LLP,10/05/2016,575
Bath and North East Somerset Council,10810681,LW8,Conservation,P13,Economic Development,CONSERVATION RESOURCES (UK) LTD,10/05/2016,608.6
Bath and North East Somerset Council,10810773,LA5,Materials,P14,Community Services,G WILLIAMS & SONS LTD,10/05/2016,608.75
Bath and North East Somerset Council,10810826,LF1,Printing/Design,P10,Finance & Efficiency,TOPLINK ENVELOPES LTD,10/05/2016,618
Bath and North East Somerset Council,10810588,HA1,Responsive Maintenance,P10,Finance & Efficiency,ADT FIRE & SECURITY PLC,10/05/2016,641.94
Bath and North East Somerset Council,10810083,LA5,Materials,P10,Finance & Efficiency,PREMIER PAPER,10/05/2016,686.13
Bath and North East Somerset Council,10810494,LA4,Equipment Hire/Rent,P10,Finance & Efficiency,XEROX FINANCE LIMITED,10/05/2016,686.16
Bath and North East Somerset Council,10810641,PB4,Payments to Private Contractors,P14,Community Services,M J CHURCH PLANT LTD,10/05/2016,717.67
Bath and North East Somerset Council,10810678,LH3,Publicity,P13,Economic Development,UK WEDDINGVENUES.COM LTD,10/05/2016,730
Bath and North East Somerset Council,10810749,LK1,Fees,P12,Children's Services,FAMILIES FOR CHLDREN ADOPTION,10/05/2016,750
Bath and North East Somerset Council,10810750,LK1,Fees,P12,Children's Services,FAMILIES FOR CHLDREN ADOPTION,10/05/2016,750
Bath and North East Somerset Council,10810766,LJ2,Legal Fees,P09,Homes & Planning,LANDMARK CHAMBERS LTD,10/05/2016,750
Bath and North East Somerset Council,10810736,LK1,Fees,P12,Children's Services,TAMSCOT LTD,10/05/2016,750
Bath and North East Somerset Council,10810823,LJ3,Other Services to the Council,P10,Finance & Efficiency,RIDER LEVETT BUCKNALL UK LTD,10/05/2016,836.66
Bath and North East Somerset Council,10810665,EA1,Training,P13,Economic Development,PURPLE CLOUD CONSULTANCY LTD,10/05/2016,850
Bath and North East Somerset Council,10810741,3F7,External Fees,P13,Economic Development,SAFE AND SOUND UK LIMITED,10/05/2016,864.5
Bath and North East Somerset Council,10810805,LF4,Stationery,P10,Finance & Efficiency,XEROX FINANCE LIMITED,10/05/2016,903.55
Bath and North East Somerset Council,10810814,LX3,Refunds,P04,Leader,REDACTED,10/05/2016,5000
Bath and North East Somerset Council,10810740,3F7,External Fees,P13,Economic Development,SAFE AND SOUND UK LIMITED,10/05/2016,988
Bath and North East Somerset Council,10810706,LK6,Photography/Artworks/Graphics,P13,Economic Development,INTEGRAL ENGINEERING DESIGN LTD,10/05/2016,1000
Bath and North East Somerset Council,10810668,LA1,Equipment Purchase (Non Medical),P13,Economic Development,PREMIER VANGUARD,10/05/2016,1040
Bath and North East Somerset Council,10810819,LA5,Materials,P10,Finance & Efficiency,PREMIER PAPER,10/05/2016,1207.71
Bath and North East Somerset Council,10810705,HA1,Responsive Maintenance,P13,Economic Development,LIGHTINC LTD,10/05/2016,1284.2
Bath and North East Somerset Council,10810730,3F7,External Fees,P12,Children's Services,BERRY GEOMATICS LTD,10/05/2016,1495
Bath and North East Somerset Council,10809984,HA1,Responsive Maintenance,P10,Finance & Efficiency,N K S CONTRACTS LTD,10/05/2016,1575
Bath and North East Somerset Council,10810725,HE5,Security of Premises,P01,Transport,SAFE AND SOUND UK LIMITED,10/05/2016,2080
Bath and North East Somerset Council,10810738,LK1,Fees,P12,Children's Services,TAMSCOT LTD,10/05/2016,2100
Bath and North East Somerset Council,10807167,LA4,Equipment Hire/Rent,P10,Finance & Efficiency,XEROX FINANCE LIMITED,10/05/2016,2195.72
Bath and North East Somerset Council,10810792,LM1,Volunt Homes Placements Top/Up,P12,Children's Services,DAVID SHAW,10/05/2016,2200
Bath and North East Somerset Council,10810475,LK1,Fees,P04,Leader,DEVELOPING HEALTH AND INDEPENDENCE,10/05/2016,2500
Bath and North East Somerset Council,10810768,LK1,Fees,P10,Finance & Efficiency,GBS RE DBS POA,10/05/2016,2718
Bath and North East Somerset Council,10810812,LX3,Refunds,P04,Leader,UKIP SOUTH WEST COMMUNITY ACCOUNT,10/05/2016,5000
Bath and North East Somerset Council,10810700,HE1,General Maintenance,P13,Economic Development,SEARCY TANSLEY & CO LTD,10/05/2016,2925
Bath and North East Somerset Council,10810796,LM2,Foster Carer Allowances,P12,Children's Services,FOSTERING MATTERS LTD,10/05/2016,3360.3
Bath and North East Somerset Council,10810707,LH5,Marketing,P13,Economic Development,GEOCAST TV LTD,10/05/2016,3500
Bath and North East Somerset Council,10810798,3F7,External Fees,P12,Children's Services,BBA ARCHITECTS,10/05/2016,3575
Bath and North East Somerset Council,10810793,LM2,Foster Carer Allowances,P12,Children's Services,THE FOSTERING FOUNDATION (SOUTH WEST) LIMITED,10/05/2016,3600.43
Bath and North East Somerset Council,10810683,LH5,Marketing,P13,Economic Development,BULLET PR LTD,10/05/2016,3750
Bath and North East Somerset Council,10810132,HA1,Responsive Maintenance,P10,Finance & Efficiency,N K S CONTRACTS LTD,10/05/2016,4020.84
Bath and North East Somerset Council,10810644,LK1,Fees,P13,Economic Development,STATUS AUDIO VISUAL LTD,10/05/2016,4080
Bath and North East Somerset Council,10810667,HA1,Responsive Maintenance,P13,Economic Development,ASHTON AIR CONDITIONING SERVICES LIMITED,10/05/2016,4194
Bath and North East Somerset Council,10810643,PB4,Payments to Private Contractors,P14,Community Services,VIRIDOR WASTE MANAGEMENT LTD,10/05/2016,4925.94
Bath and North East Somerset Council,10810774,KA3,Fuel,P14,Community Services,FORD FUELS LTD,10/05/2016,5297.25
Bath and North East Somerset Council,10810811,LX3,Refunds,P04,Leader,REDACTED,10/05/2016,5000
Bath and North East Somerset Council,10810642,PB4,Payments to Private Contractors,P14,Community Services,VIRIDOR WASTE MANAGEMENT LTD,10/05/2016,6351.47
Bath and North East Somerset Council,10810686,LA1,Equipment Purchase (Non Medical),P13,Economic Development,BRISTOWS REPRODUCTION FURNITURE,10/05/2016,6800
Bath and North East Somerset Council,10807942,PB4,Payments to Private Contractors,P14,Community Services,VIRIDOR WASTE MANAGEMENT LTD,10/05/2016,7922.18
Bath and North East Somerset Council,10810769,LA4,Equipment Hire/Rent,P14,Community Services,THE YABOO CO LTD,10/05/2016,8006.5
Bath and North East Somerset Council,10810734,3F7,External Fees,P10,Finance & Efficiency,CAPITA SYMONDS,10/05/2016,10539.4
Bath and North East Somerset Council,10810828,LF1,Printing/Design,P10,Finance & Efficiency,TOPLINK ENVELOPES LTD,10/05/2016,10910
Bath and North East Somerset Council,10810822,KA3,Fuel,P14,Community Services,FORD FUELS LTD,10/05/2016,16613.63
Bath and North East Somerset Council,10810733,3F7,External Fees,P10,Finance & Efficiency,CAPITA SYMONDS,10/05/2016,20056
Bath and North East Somerset Council,10810642,LW6,Tax,P14,Community Services,VIRIDOR WASTE MANAGEMENT LTD,10/05/2016,26251.76
Bath and North East Somerset Council,10807942,LW6,Tax,P14,Community Services,VIRIDOR WASTE MANAGEMENT LTD,10/05/2016,32045.52
Bath and North East Somerset Council,80586837,LM4,Respite Care,P12,Children's Services,REDACTED,11/05/2016,50
Bath and North East Somerset Council,80586837,LM4,Respite Care,P12,Children's Services,REDACTED,11/05/2016,50
Bath and North East Somerset Council,80586837,LM4,Respite Care,P12,Children's Services,REDACTED,11/05/2016,246.68
Bath and North East Somerset Council,80586837,LM4,Respite Care,P12,Children's Services,REDACTED,11/05/2016,246.68
Bath and North East Somerset Council,80586867,LL5,Adoption Allowances,P12,Children's Services,REDACTED,11/05/2016,728.82
Bath and North East Somerset Council,80586867,LL5,Adoption Allowances,P12,Children's Services,REDACTED,11/05/2016,742.8
Bath and North East Somerset Council,80586444,LL3,Supported Living,P11,Adult Social Care & Health,Bath Ethnic Minority Senior Citizens Association,11/05/2016,2684.93
Bath and North East Somerset Council,80586829,LK4,Nursery/Childcare Vouchers,P12,Children's Services,REDACTED,11/05/2016,729
Bath and North East Somerset Council,10810007,3G1,Grants/Advances,P13,Economic Development,INSTA GROUP LTD,11/05/2016,2000
Bath and North East Somerset Council,10810462,3G1,Grants/Advances,P13,Economic Development,INSTA GROUP LTD,11/05/2016,6179.25
Bath and North East Somerset Council,10810886,KA1,Repairs & Maintenance,P14,Community Services,SENTINEL SYSTEMS LTD,11/05/2016,304.5
Bath and North East Somerset Council,10810608,3F7,External Fees,P12,Children's Services,BBA ARCHITECTS,11/05/2016,452
Bath and North East Somerset Council,10810609,3F7,External Fees,P12,Children's Services,BBA ARCHITECTS,11/05/2016,452
Bath and North East Somerset Council,80586872,LM2,Foster Carer Allowances,P12,Children's Services,REDACTED,11/05/2016,50
Bath and North East Somerset Council,80586872,KE3,Transport & Travel,P12,Children's Services,REDACTED,11/05/2016,124.65
Bath and North East Somerset Council,80586872,LM2,Foster Carer Allowances,P12,Children's Services,REDACTED,11/05/2016,125
Bath and North East Somerset Council,80586872,LM2,Foster Carer Allowances,P12,Children's Services,REDACTED,11/05/2016,202.78
Bath and North East Somerset Council,80586872,LM2,Foster Carer Allowances,P12,Children's Services,REDACTED,11/05/2016,260.72
Bath and North East Somerset Council,80586868,LM2,Foster Carer Allowances,P12,Children's Services,REDACTED,11/05/2016,100
Bath and North East Somerset Council,80586868,LM2,Foster Carer Allowances,P12,Children's Services,REDACTED,11/05/2016,286
Bath and North East Somerset Council,80586868,LM2,Foster Carer Allowances,P12,Children's Services,REDACTED,11/05/2016,785.96
Bath and North East Somerset Council,10810859,HP2,Ground Rent,P14,Community Services,NEWTON FARM FOODS LIMITED,11/05/2016,525
Bath and North East Somerset Council,10810832,LA5,Materials,P10,Finance & Efficiency,PREMIER PAPER,11/05/2016,544.32
Bath and North East Somerset Council,10810945,HK2,Street Lighting Maintenance,P01,Transport,TMP (UK) LTD,11/05/2016,544.75
Bath and North East Somerset Council,10810952,3N7,Misc. Costs,P01,Transport,TMP (UK) LTD,11/05/2016,544.75
Bath and North East Somerset Council,10810951,3N7,Misc. Costs,P01,Transport,TMP (UK) LTD,11/05/2016,597.89
Bath and North East Somerset Council,80586428,LL3,Supported Living,P11,Adult Social Care & Health,Next Link Domestic Abuse Services,11/05/2016,3331.1
Bath and North East Somerset Council,80586425,LL3,Supported Living,P11,Adult Social Care & Health,Next Link Domestic Abuse Services,11/05/2016,5087.7
Bath and North East Somerset Council,10810759,EA1,Training,P12,Children's Services,M S ADAMS,11/05/2016,650
Bath and North East Somerset Council,10810764,EA1,Training,P12,Children's Services,M S ADAMS,11/05/2016,650
Bath and North East Somerset Council,10810934,LF1,Printing/Design,P10,Finance & Efficiency,APPLE LITHO (BRISTOL) LTD,11/05/2016,667
Bath and North East Somerset Council,10810889,LD1,Protective & Safety Clothing,P14,Community Services,P F CUSACK (TOOLS SUPPLIES) LTD,11/05/2016,780
Bath and North East Somerset Council,10810861,LJ4,Contracts,P11,Adult Social Care & Health,SIRONA CARE SERVICES LTD,11/05/2016,825.08
Bath and North East Somerset Council,80586833,LM2,Foster Carer Allowances,P12,Children's Services,REDACTED,11/05/2016,100
Bath and North East Somerset Council,80586833,KE3,Transport & Travel,P12,Children's Services,REDACTED,11/05/2016,108
Bath and North East Somerset Council,80586833,LM2,Foster Carer Allowances,P12,Children's Services,REDACTED,11/05/2016,140
Bath and North East Somerset Council,80586833,LM2,Foster Carer Allowances,P12,Children's Services,REDACTED,11/05/2016,286
Bath and North East Somerset Council,80586399,LA7,Purchases for Resale,P13,Economic Development,REDACTED,11/05/2016,1500
Bath and North East Somerset Council,10810904,PB4,Payments to Private Contractors,P14,Community Services,KELLY BROS SOLAR SIGNS LTD,11/05/2016,996
Bath and North East Somerset Council,10810877,LJ8,PCB External Fees,P13,Economic Development,SOUTH GLOUCESTERSHIRE COUNCIL,11/05/2016,1000
Bath and North East Somerset Council,10810886,KA1,Repairs & Maintenance,P14,Community Services,SENTINEL SYSTEMS LTD,11/05/2016,1032.5
Bath and North East Somerset Council,10810831,PB4,Payments to Private Contractors,P14,Community Services,HILLS WASTE SOLUTIONS LTD,11/05/2016,1099.04
Bath and North East Somerset Council,10810893,LA5,Materials,P14,Community Services,NOMIX ENVIRO,11/05/2016,1179.6
Bath and North East Somerset Council,80586879,LM4,Respite Care,P12,Children's Services,REDACTED,11/05/2016,281.92
Bath and North East Somerset Council,80586879,LM4,Respite Care,P12,Children's Services,REDACTED,11/05/2016,281.92
Bath and North East Somerset Council,10809951,DB1,Agency Staff,P04,Leader,AMEO PROFESSIONAL SERVICES LTD,11/05/2016,1300
Bath and North East Somerset Council,10810937,3N7,Misc. Costs,P12,Children's Services,BROXAP LIMITED,11/05/2016,1302
Bath and North East Somerset Council,10810940,EA1,Training,P10,Finance & Efficiency,SOCITM LIMITED,11/05/2016,1515
Bath and North East Somerset Council,80586451,LL3,Supported Living,P11,Adult Social Care & Health,Support Empower Advocate Promote (SEAP),11/05/2016,18427.12
Bath and North East Somerset Council,80586461,LL3,Supported Living,P11,Adult Social Care & Health,Swan Advocacy Network,11/05/2016,23890.8
Bath and North East Somerset Council,10810830,PB4,Payments to Private Contractors,P14,Community Services,HILLS WASTE SOLUTIONS LTD,11/05/2016,1727.07
Bath and North East Somerset Council,10810645,HA1,Responsive Maintenance,P13,Economic Development,ORONA LTD,11/05/2016,2080
Bath and North East Somerset Council,10809962,DB1,Agency Staff,P04,Leader,AMEO PROFESSIONAL SERVICES LTD,11/05/2016,2112.5
Bath and North East Somerset Council,10810954,LA5,Materials,P10,Finance & Efficiency,PREMIER PAPER,11/05/2016,2124.9
Bath and North East Somerset Council,10810895,LJ4,Contracts,P01,Transport,KELTIC,11/05/2016,2241.75
Bath and North East Somerset Council,10810362,3G1,Grants/Advances,P11,Adult Social Care & Health,J K MOBILITY LTD,11/05/2016,2340
Bath and North East Somerset Council,10810848,LJ3,Other Services to the Council,Z98,West of England Partnership,MEDILINK SOUTH WEST LTD,11/05/2016,2500
Bath and North East Somerset Council,10810882,LK1,Fees,P01,Transport,TRAFFIC ENFORCEMENT CENTRE,11/05/2016,3000
Bath and North East Somerset Council,10810882,LK1,Fees,P01,Transport,TRAFFIC ENFORCEMENT CENTRE,11/05/2016,3000
Bath and North East Somerset Council,10810775,LN1,Telephones,P10,Finance & Efficiency,BT OPENREACH,11/05/2016,3297
Bath and North East Somerset Council,10810902,LM2,Foster Carer Allowances,P12,Children's Services,FOSTERING MATTERS LTD,11/05/2016,3360.3
Bath and North East Somerset Council,10810646,HA1,Responsive Maintenance,P13,Economic Development,ORONA LTD,11/05/2016,3388.23
Bath and North East Somerset Council,10810838,LM2,Foster Carer Allowances,P12,Children's Services,THE FOSTERING FOUNDATION  LTD,11/05/2016,3600.43
Bath and North East Somerset Council,10810842,LJ4,Contracts,P11,Adult Social Care & Health,SIRONA CARE SERVICES LTD,11/05/2016,3750
Bath and North East Somerset Council,10810824,PB4,Payments to Private Contractors,P14,Community Services,HILLS WASTE SOLUTIONS LTD,11/05/2016,4886.17
Bath and North East Somerset Council,10810916,LJ1,Consultants Fees,P14,Community Services,RESOURCE FUTURES LTD,11/05/2016,4948
Bath and North East Somerset Council,10810615,HP3,Room Hire Charges,P10,Finance & Efficiency,AQUATERRA LEISURE SERVICES LTD,11/05/2016,5642.3
Bath and North East Somerset Council,10810648,HP3,Room Hire Charges,P10,Finance & Efficiency,AQUATERRA LEISURE SERVICES LTD,11/05/2016,5642.3
Bath and North East Somerset Council,10810930,LV1,Grants to Voluntary Bodies,P01,Transport,SEVERNSIDE COMMUNITY RAIL PARTNERSHIP,11/05/2016,6000
Bath and North East Somerset Council,10810833,DB1,Agency Staff,P14,Community Services,APSE,11/05/2016,6075
Bath and North East Somerset Council,10810839,PB4,Payments to Private Contractors,P14,Community Services,VIRIDOR WASTE MANAGEMENT LTD,11/05/2016,6883.2
Bath and North East Somerset Council,10810910,HA3,Planned Maintenance,P10,Finance & Efficiency,ADT FIRE & SECURITY PLC,11/05/2016,6983.15
Bath and North East Somerset Council,10810818,LX1,Educational Activity,P12,Children's Services,ONE STAGE,11/05/2016,7200
Bath and North East Somerset Council,10810863,LJ4,Contracts,P11,Adult Social Care & Health,SIRONA CARE SERVICES LTD,11/05/2016,12692.5
Bath and North East Somerset Council,10810840,PB4,Payments to Private Contractors,P14,Community Services,VIRIDOR WASTE MANAGEMENT LTD,11/05/2016,14035.35
Bath and North East Somerset Council,10810879,LM2,Foster Carer Allowances,P12,Children's Services,PREMIER CARE MANAGEMENT LTD,11/05/2016,14131
Bath and North East Somerset Council,10810875,LM2,Foster Carer Allowances,P12,Children's Services,PREMIER CARE MANAGEMENT LTD,11/05/2016,15005
Bath and North East Somerset Council,10810858,3C4,Building Works,P12,Children's Services,H MEALING & SONS LTD,11/05/2016,15405.52
Bath and North East Somerset Council,10810903,LJ4,Contracts,P14,Community Services,CHARLTON ENVIRONMENTAL LTD,11/05/2016,15591.82
Bath and North East Somerset Council,10810897,3F7,External Fees,P10,Finance & Efficiency,CAPITA SYMONDS,11/05/2016,18611.9
Bath and North East Somerset Council,10810901,LM1,Volunt Homes Placements Top/Up,P12,Children's Services,PREMIER CARE MANAGEMENT LTD,11/05/2016,21240
Bath and North East Somerset Council,10810843,LJ4,Contracts,P11,Adult Social Care & Health,SIRONA CARE SERVICES LTD,11/05/2016,23380
Bath and North East Somerset Council,10810899,LJ4,Contracts,P11,Adult Social Care & Health,SIRONA CARE SERVICES LTD,11/05/2016,23412.08
Bath and North East Somerset Council,10810862,LJ4,Contracts,P11,Adult Social Care & Health,SIRONA CARE SERVICES LTD,11/05/2016,23610.83
Bath and North East Somerset Council,10810864,LJ4,Contracts,P11,Adult Social Care & Health,SIRONA CARE SERVICES LTD,11/05/2016,24290.42
Bath and North East Somerset Council,10810865,LJ4,Contracts,P11,Adult Social Care & Health,SIRONA CARE SERVICES LTD,11/05/2016,26055.25
Bath and North East Somerset Council,10810824,LW6,Tax,P14,Community Services,HILLS WASTE SOLUTIONS LTD,11/05/2016,29626.08
Bath and North East Somerset Council,10810900,LJ4,Contracts,P11,Adult Social Care & Health,SIRONA CARE SERVICES LTD,11/05/2016,49056.75
Bath and North East Somerset Council,10810640,YF2,Fees & Charges,P10,Finance & Efficiency,THE BATH BID (BUSINESS IMPROVEMENT DISTRICT) COMPANY,11/05/2016,100000
Bath and North East Somerset Council,10810933,3F7,External Fees,P13,Economic Development,ALUN GRIFFITHS (CONTRACTORS) LTD,11/05/2016,132959.39
Bath and North East Somerset Council,10810931,3F7,External Fees,P13,Economic Development,ALUN GRIFFITHS (CONTRACTORS) LTD,11/05/2016,182524.9
Bath and North East Somerset Council,10810841,LJ4,Contracts,P11,Adult Social Care & Health,SIRONA CARE SERVICES LTD,11/05/2016,198470.33
Bath and North East Somerset Council,10810932,3F7,External Fees,P13,Economic Development,ALUN GRIFFITHS (CONTRACTORS) LTD,11/05/2016,327806.96
Bath and North East Somerset Council,80587153,PG1,Rent Allowances,P10,Finance & Efficiency,REDACTED,12/05/2016,507.68
Bath and North East Somerset Council,80587126,PG1,Rent Allowances,P10,Finance & Efficiency,REDACTED,12/05/2016,1754.84
Bath and North East Somerset Council,80587137,PG1,Rent Allowances,P10,Finance & Efficiency,REDACTED,12/05/2016,568.2
Bath and North East Somerset Council,80587091,PG1,Rent Allowances,P10,Finance & Efficiency,ACCREDITED LETTINGS LTD,12/05/2016,961
Bath and North East Somerset Council,80587128,PG1,Rent Allowances,P10,Finance & Efficiency,ADVANCE HOUSING SUPPORT LTD,12/05/2016,3502.36
Bath and North East Somerset Council,80587112,PG1,Rent Allowances,P10,Finance & Efficiency,AQUA SULIS FINANCIAL MANAGEMENT,12/05/2016,2127.88
Bath and North East Somerset Council,80587062,PG1,Rent Allowances,P10,Finance & Efficiency,ASSURED PROPERTY RENTALS,12/05/2016,606
Bath and North East Somerset Council,80587119,PG1,Rent Allowances,P10,Finance & Efficiency,ASTER COMMUNITIES,12/05/2016,14728.56
Bath and North East Somerset Council,80587194,LE3,Statementing Payments to B&NES schools,P12,Children's Services,BATH COMMUNITY ACADEMY - CABOT LEARNING FEDERATION,12/05/2016,8553.88
Bath and North East Somerset Council,80587029,PG1,Rent Allowances,P10,Finance & Efficiency,BATH MIND,12/05/2016,3594.96
Bath and North East Somerset Council,80587070,PG1,Rent Allowances,P10,Finance & Efficiency,BATH PROPERTY SERVICES,12/05/2016,567.68
Bath and North East Somerset Council,80587063,PG1,Rent Allowances,P10,Finance & Efficiency,CITY CENTRAL,12/05/2016,756.92
Bath and North East Somerset Council,10809894,LF5,Postages,P12,Children's Services,DUKE OF EDINBURGH'S AWARD,12/05/2016,16.67
Bath and North East Somerset Council,80586880,PG1,Rent Allowances,P10,Finance & Efficiency,CURO,12/05/2016,1000
Bath and North East Somerset Council,10811079,LJ3,Other Services to the Council,P10,Finance & Efficiency,CURO,12/05/2016,2086.1
Bath and North East Somerset Council,80586887,PG1,Rent Allowances,P10,Finance & Efficiency,CURO,12/05/2016,15355.86
Bath and North East Somerset Council,80586886,PG1,Rent Allowances,P10,Finance & Efficiency,CURO,12/05/2016,72461.25
Bath and North East Somerset Council,80587125,PG1,Rent Allowances,P10,Finance & Efficiency,DELANEY PROPERTIES LTD,12/05/2016,537.24
Bath and North East Somerset Council,80587069,PG1,Rent Allowances,P10,Finance & Efficiency,DEVELOPING HEALTH AND INDEPENDEN,12/05/2016,6959.36
Bath and North East Somerset Council,10809706,LJ1,Consultants Fees,P11,Adult Social Care & Health,COAST SOCIAL WORK LTD,12/05/2016,52.8
Bath and North East Somerset Council,80587041,PG1,Rent Allowances,P10,Finance & Efficiency,DIMENSIONS (UK) LTD,12/05/2016,18679.49
Bath and North East Somerset Council,80587095,PG1,Rent Allowances,P10,Finance & Efficiency,DOVETAIL PROPERTIES,12/05/2016,1955.24
Bath and North East Somerset Council,80586936,PG1,Rent Allowances,P10,Finance & Efficiency,REDACTED,12/05/2016,1792.09
Bath and North East Somerset Council,80587163,PG1,Rent Allowances,P10,Finance & Efficiency,DRUGS & HOMELESS INTIATIVE HTL P,12/05/2016,10851.58
Bath and North East Somerset Council,80587043,PG1,Rent Allowances,P10,Finance & Efficiency,DUCHY OF CORNWALL,12/05/2016,1065.6
Bath and North East Somerset Council,10811113,KE2,Payment to Parents/Students,P12,Children's Services,REDACTED,12/05/2016,672
Bath and North East Somerset Council,80587061,PG1,Rent Allowances,P10,Finance & Efficiency,ENGLISH RURAL HOUSING ASSOCIATIO,12/05/2016,842.2
Bath and North East Somerset Council,80587073,PG1,Rent Allowances,P10,Finance & Efficiency,GOLDEN LANE HOUSING LTD,12/05/2016,4849.96
Bath and North East Somerset Council,10810252,KE3,Transport & Travel,P10,Finance & Efficiency,CT COACHES,12/05/2016,155
Bath and North East Somerset Council,10810252,KD1,Employees Public Transport,P10,Finance & Efficiency,CT COACHES,12/05/2016,155
Bath and North East Somerset Council,80587049,PG1,Rent Allowances,P10,Finance & Efficiency,HANOVER HOUSING ASSOCIATION,12/05/2016,2667.76
Bath and North East Somerset Council,80587051,PG1,Rent Allowances,P10,Finance & Efficiency,HANOVER HOUSING ASSOCIATION,12/05/2016,9299.2
Bath and North East Somerset Council,80587222,LE3,Statementing Payments to B&NES schools,P12,Children's Services,HIGH LITTLETON PRIMARY SCHOOL,12/05/2016,2846.73
Bath and North East Somerset Council,80587032,PG1,Rent Allowances,P10,Finance & Efficiency,JULIAN HOUSE,12/05/2016,47786.12
Bath and North East Somerset Council,10810252,KD1,Employees Public Transport,P10,Finance & Efficiency,CT COACHES,12/05/2016,189
Bath and North East Somerset Council,80587067,PG1,Rent Allowances,P10,Finance & Efficiency,KNIGHTSTONE COMMUNITY HOMES,12/05/2016,33921.67
Bath and North East Somerset Council,80587108,PG1,Rent Allowances,P10,Finance & Efficiency,KNIGHTSTONE HOUSING ASSOCIATION,12/05/2016,1000
Bath and North East Somerset Council,80587023,PG1,Rent Allowances,P10,Finance & Efficiency,KNIGHTSTONE HOUSING ASSOCIATION,12/05/2016,17337.32
Bath and North East Somerset Council,80587027,PG1,Rent Allowances,P10,Finance & Efficiency,KNIGHTSTONE HOUSING ASSOCIATION,12/05/2016,89462.48
Bath and North East Somerset Council,10810252,KE3,Transport & Travel,P10,Finance & Efficiency,CT COACHES,12/05/2016,240
Bath and North East Somerset Council,80587123,PG1,Rent Allowances,P10,Finance & Efficiency,MARK NAYLOR RESIDENTIAL SALES,12/05/2016,1050.64
Bath and North East Somerset Council,80587124,PG1,Rent Allowances,P10,Finance & Efficiency,REDACTED,12/05/2016,3184.6
Bath and North East Somerset Council,80587121,PG1,Rent Allowances,P10,Finance & Efficiency,MENCAP,12/05/2016,5698.96
Bath and North East Somerset Council,80587141,PG1,Rent Allowances,P10,Finance & Efficiency,MERLIN HOUSING SOCIETY,12/05/2016,2219.44
Bath and North East Somerset Council,80587026,PG1,Rent Allowances,P10,Finance & Efficiency,METHODIST HOMES (CHURCH COURT),12/05/2016,2896.16
Bath and North East Somerset Council,80587048,PG1,Rent Allowances,P10,Finance & Efficiency,METHODIST HOMES HOUSING ASSOCIAT,12/05/2016,1790.28
Bath and North East Somerset Council,80587202,LE3,Statementing Payments to B&NES schools,P12,Children's Services,MID NORTON SCH PART RE SOMERVALE  SCH,12/05/2016,1747.2
Bath and North East Somerset Council,80586937,PG1,Rent Allowances,P10,Finance & Efficiency,REDACTED,12/05/2016,507.43
Bath and North East Somerset Council,80586971,PG1,Rent Allowances,P10,Finance & Efficiency,REDACTED,12/05/2016,2334.22
Bath and North East Somerset Council,80586933,PG1,Rent Allowances,P10,Finance & Efficiency,REDACTED,12/05/2016,606
Bath and North East Somerset Council,80587135,PG1,Rent Allowances,P10,Finance & Efficiency,REDACTED,12/05/2016,577.4
Bath and North East Somerset Council,80586898,PG1,Rent Allowances,P10,Finance & Efficiency,REDACTED,12/05/2016,540
Bath and North East Somerset Council,80586979,PG1,Rent Allowances,P10,Finance & Efficiency,REDACTED,12/05/2016,606.6
Bath and North East Somerset Council,80587058,PG1,Rent Allowances,P10,Finance & Efficiency,REDACTED,12/05/2016,542.96
Bath and North East Somerset Council,80587077,PG1,Rent Allowances,P10,Finance & Efficiency,REDACTED,12/05/2016,542.96
Bath and North East Somerset Council,10810975,LL2,Personal Needs of Clients,P12,Children's Services,CONNOLLY & CALLAGHAN LTD,12/05/2016,420
Bath and North East Somerset Council,10811002,LL2,Personal Needs of Clients,P12,Children's Services,CONNOLLY & CALLAGHAN LTD,12/05/2016,420
Bath and North East Somerset Council,80586969,PG1,Rent Allowances,P10,Finance & Efficiency,REDACTED,12/05/2016,542.96
Bath and North East Somerset Council,80587154,PG1,Rent Allowances,P10,Finance & Efficiency,REDACTED,12/05/2016,518.28
Bath and North East Somerset Council,80587160,PG1,Rent Allowances,P10,Finance & Efficiency,REDACTED,12/05/2016,586.16
Bath and North East Somerset Council,80587093,PG1,Rent Allowances,P10,Finance & Efficiency,REDACTED,12/05/2016,553.84
Bath and North East Somerset Council,80587103,PG1,Rent Allowances,P10,Finance & Efficiency,REDACTED,12/05/2016,724.6
Bath and North East Somerset Council,80587157,PG1,Rent Allowances,P10,Finance & Efficiency,REDACTED,12/05/2016,618.48
Bath and North East Somerset Council,80586902,PG1,Rent Allowances,P10,Finance & Efficiency,REDACTED,12/05/2016,759.44
Bath and North East Somerset Council,80587162,PG1,Rent Allowances,P10,Finance & Efficiency,REDACTED,12/05/2016,530.76
Bath and North East Somerset Council,80586890,PG1,Rent Allowances,P10,Finance & Efficiency,REDACTED,12/05/2016,759.44
Bath and North East Somerset Council,80587166,PG1,Rent Allowances,P10,Finance & Efficiency,REDACTED,12/05/2016,1085.52
Bath and North East Somerset Council,80587139,PG1,Rent Allowances,P10,Finance & Efficiency,REDACTED,12/05/2016,569.4
Bath and North East Somerset Council,80587117,PG1,Rent Allowances,P10,Finance & Efficiency,REDACTED,12/05/2016,542.96
Bath and North East Somerset Council,80587167,PG1,Rent Allowances,P10,Finance & Efficiency,REDACTED,12/05/2016,664.6
Bath and North East Somerset Council,80586909,PG1,Rent Allowances,P10,Finance & Efficiency,REDACTED,12/05/2016,668.92
Bath and North East Somerset Council,80587078,PG1,Rent Allowances,P10,Finance & Efficiency,REDACTED,12/05/2016,507.68
Bath and North East Somerset Council,80587146,PG1,Rent Allowances,P10,Finance & Efficiency,REDACTED,12/05/2016,530.77
Bath and North East Somerset Council,80586907,PG1,Rent Allowances,P10,Finance & Efficiency,REDACTED,12/05/2016,600
Bath and North East Somerset Council,80586915,PG1,Rent Allowances,P10,Finance & Efficiency,REDACTED,12/05/2016,515.7
Bath and North East Somerset Council,80587168,PG1,Rent Allowances,P10,Finance & Efficiency,REDACTED,12/05/2016,549.24
Bath and North East Somerset Council,80587097,PG1,Rent Allowances,P10,Finance & Efficiency,REDACTED,12/05/2016,623.08
Bath and North East Somerset Council,80587132,PG1,Rent Allowances,P10,Finance & Efficiency,REDACTED,12/05/2016,740
Bath and North East Somerset Council,80587143,PG1,Rent Allowances,P10,Finance & Efficiency,REDACTED,12/05/2016,646.16
Bath and North East Somerset Council,80586910,PG1,Rent Allowances,P10,Finance & Efficiency,REDACTED,12/05/2016,600
Bath and North East Somerset Council,80587140,PG1,Rent Allowances,P10,Finance & Efficiency,REDACTED,12/05/2016,530.76
Bath and North East Somerset Council,80586913,PG1,Rent Allowances,P10,Finance & Efficiency,REDACTED,12/05/2016,668.92
Bath and North East Somerset Council,80587076,PG1,Rent Allowances,P10,Finance & Efficiency,REDACTED,12/05/2016,594.8
Bath and North East Somerset Council,80587100,PG1,Rent Allowances,P10,Finance & Efficiency,REDACTED,12/05/2016,542.96
Bath and North East Somerset Council,80587087,PG1,Rent Allowances,P10,Finance & Efficiency,REDACTED,12/05/2016,542.96
Bath and North East Somerset Council,80587025,PG1,Rent Allowances,P10,Finance & Efficiency,REDACTED,12/05/2016,1657.92
Bath and North East Somerset Council,10810966,HK1,Highway Maintenance,P01,Transport,BENDREY BROS,12/05/2016,452.5
Bath and North East Somerset Council,10811006,LF1,Printing/Design,P10,Finance & Efficiency,CANON (UK) LTD,12/05/2016,453.56
Bath and North East Somerset Council,80587101,PG1,Rent Allowances,P10,Finance & Efficiency,REDACTED,12/05/2016,692.32
Bath and North East Somerset Council,80587111,PG1,Rent Allowances,P10,Finance & Efficiency,REDACTED,12/05/2016,516.28
Bath and North East Somerset Council,80587150,PG1,Rent Allowances,P10,Finance & Efficiency,REDACTED,12/05/2016,614.1
Bath and North East Somerset Council,80587072,PG1,Rent Allowances,P10,Finance & Efficiency,REDACTED,12/05/2016,553.84
Bath and North East Somerset Council,80586914,PG1,Rent Allowances,P10,Finance & Efficiency,REDACTED,12/05/2016,507.68
Bath and North East Somerset Council,80586900,PG1,Rent Allowances,P10,Finance & Efficiency,REDACTED,12/05/2016,1837.76
Bath and North East Somerset Council,80586889,PG1,Rent Allowances,P10,Finance & Efficiency,REDACTED,12/05/2016,549.16
Bath and North East Somerset Council,80587149,PG1,Rent Allowances,P10,Finance & Efficiency,REDACTED,12/05/2016,540
Bath and North East Somerset Council,80587092,PG1,Rent Allowances,P10,Finance & Efficiency,REDACTED,12/05/2016,2844
Bath and North East Somerset Council,10810860,LH2,Advertising,P09,Homes & Planning,LOCAL WORLD LTD,12/05/2016,469.74
Bath and North East Somerset Council,80587017,PG1,Rent Allowances,P10,Finance & Efficiency,REDACTED,12/05/2016,1022.74
Bath and North East Somerset Council,80587080,PG1,Rent Allowances,P10,Finance & Efficiency,REDACTED,12/05/2016,614.93
Bath and North East Somerset Council,80587134,PG1,Rent Allowances,P10,Finance & Efficiency,REDACTED,12/05/2016,507.68
Bath and North East Somerset Council,80586896,PG1,Rent Allowances,P10,Finance & Efficiency,REDACTED,12/05/2016,596.12
Bath and North East Somerset Council,10810911,HX1,Property Insurance,Z99,Outside Revenue Accounts,REDACTED,12/05/2016,1362
Bath and North East Somerset Council,80586892,PG1,Rent Allowances,P10,Finance & Efficiency,REDACTED,12/05/2016,877.8
Bath and North East Somerset Council,80586982,PG1,Rent Allowances,P10,Finance & Efficiency,REDACTED,12/05/2016,668.5
Bath and North East Somerset Council,80586981,PG1,Rent Allowances,P10,Finance & Efficiency,REDACTED,12/05/2016,738.48
Bath and North East Somerset Council,80587151,PG1,Rent Allowances,P10,Finance & Efficiency,REDACTED,12/05/2016,542.96
Bath and North East Somerset Council,80587144,PG1,Rent Allowances,P10,Finance & Efficiency,REDACTED,12/05/2016,516.92
Bath and North East Somerset Council,80586906,PG1,Rent Allowances,P10,Finance & Efficiency,REDACTED,12/05/2016,702.96
Bath and North East Somerset Council,80587159,PG1,Rent Allowances,P10,Finance & Efficiency,REDACTED,12/05/2016,600
Bath and North East Somerset Council,80586888,PG1,Rent Allowances,P10,Finance & Efficiency,REDACTED,12/05/2016,1997.84
Bath and North East Somerset Council,10810997,3F7,External Fees,P01,Transport,SWARCO TRAFFIC LTD,12/05/2016,511.75
Bath and North East Somerset Council,80587001,PG1,Rent Allowances,P10,Finance & Efficiency,REDACTED,12/05/2016,507.7
Bath and North East Somerset Council,80587145,PG1,Rent Allowances,P10,Finance & Efficiency,REDACTED,12/05/2016,578.08
Bath and North East Somerset Council,80587082,PG1,Rent Allowances,P10,Finance & Efficiency,REDACTED,12/05/2016,521.52
Bath and North East Somerset Council,80587084,PG1,Rent Allowances,P10,Finance & Efficiency,REDACTED,12/05/2016,580.72
Bath and North East Somerset Council,80587055,PG1,Rent Allowances,P10,Finance & Efficiency,REDACTED,12/05/2016,500
Bath and North East Somerset Council,80586912,PG1,Rent Allowances,P10,Finance & Efficiency,REDACTED,12/05/2016,759.44
Bath and North East Somerset Council,80587081,PG1,Rent Allowances,P10,Finance & Efficiency,REDACTED,12/05/2016,1211.88
Bath and North East Somerset Council,80587142,PG1,Rent Allowances,P10,Finance & Efficiency,REDACTED,12/05/2016,1162.5
Bath and North East Somerset Council,80587129,PG1,Rent Allowances,P10,Finance & Efficiency,REDACTED,12/05/2016,507.68
Bath and North East Somerset Council,80587106,PG1,Rent Allowances,P10,Finance & Efficiency,REDACTED,12/05/2016,507.68
Bath and North East Somerset Council,10811072,LJ3,Other Services to the Council,P14,Community Services,GREENMAN ENVIRONMENTAL MANAGEMENT,12/05/2016,560
Bath and North East Somerset Council,80586908,PG1,Rent Allowances,P10,Finance & Efficiency,REDACTED,12/05/2016,668.92
Bath and North East Somerset Council,80586904,PG1,Rent Allowances,P10,Finance & Efficiency,REDACTED,12/05/2016,600
Bath and North East Somerset Council,80587122,PG1,Rent Allowances,P10,Finance & Efficiency,REDACTED,12/05/2016,503.92
Bath and North East Somerset Council,80586894,PG1,Rent Allowances,P10,Finance & Efficiency,REDACTED,12/05/2016,3039.69
Bath and North East Somerset Council,80587089,PG1,Rent Allowances,P10,Finance & Efficiency,REDACTED,12/05/2016,1052.32
Bath and North East Somerset Council,80586899,PG1,Rent Allowances,P10,Finance & Efficiency,REDACTED,12/05/2016,668.92
Bath and North East Somerset Council,80586922,PG1,Rent Allowances,P10,Finance & Efficiency,REDACTED,12/05/2016,507.68
Bath and North East Somerset Council,80587057,PG1,Rent Allowances,P10,Finance & Efficiency,REDACTED,12/05/2016,542.96
Bath and North East Somerset Council,80587107,PG1,Rent Allowances,P10,Finance & Efficiency,REDACTED,12/05/2016,542.96
Bath and North East Somerset Council,80587090,PG1,Rent Allowances,P10,Finance & Efficiency,REDACTED,12/05/2016,552.46
Bath and North East Somerset Council,10811046,LX4,Parish Sweepers,P14,Community Services,BATHEASTON PARISH COUNCIL,12/05/2016,572.39
Bath and North East Somerset Council,10810909,KA1,Repairs & Maintenance,P14,Community Services,FINNINGS (UK) LTD,12/05/2016,615.09
Bath and North East Somerset Council,10810756,LA1,Equipment Purchase (Non Medical),P12,Children's Services,THE CONSORTIUM,12/05/2016,616.24
Bath and North East Somerset Council,80587217,LE2,Statementing Payment to other LEAs/Schools,P12,Children's Services,"EDUCATION FELLOWSHIP, CLARENDON ACADEMY",12/05/2016,635.95
Bath and North East Somerset Council,80587210,LE2,Statementing Payment to other LEAs/Schools,P12,Children's Services,SOMERSET COUNTY COUNCIL,12/05/2016,686.44
Bath and North East Somerset Council,10810929,KD1,Employees Public Transport,P04,Leader,N WASHBOURNE PERSONAL DRIVER,12/05/2016,690
Bath and North East Somerset Council,80587127,PG1,Rent Allowances,P10,Finance & Efficiency,PG LETTINGS LTD,12/05/2016,625.71
Bath and North East Somerset Council,10810353,LJ2,Legal Fees,P12,Children's Services,MISS TANYA ZABIHI,12/05/2016,700
Bath and North East Somerset Council,10811018,LK1,Fees,P12,Children's Services,RACHEL RINGHAM LTD,12/05/2016,716.25
Bath and North East Somerset Council,10810359,LJ2,Legal Fees,P12,Children's Services,MISS SARAH JENNINGS,12/05/2016,770
Bath and North East Somerset Council,10811078,HK1,Highway Maintenance,P01,Transport,FARMBOROUGH PARISH COUNCIL,12/05/2016,798.53
Bath and North East Somerset Council,80587036,PG1,Rent Allowances,P10,Finance & Efficiency,PLACES FOR PEOPLE,12/05/2016,3228.32
Bath and North East Somerset Council,80587068,PG1,Rent Allowances,P10,Finance & Efficiency,RIVERSIDE - E.C.H.G.,12/05/2016,2494.68
Bath and North East Somerset Council,80587079,PG1,Rent Allowances,P10,Finance & Efficiency,RNID,12/05/2016,1831.16
Bath and North East Somerset Council,80587161,PG1,Rent Allowances,P10,Finance & Efficiency,S.R. CONTRACTORS,12/05/2016,919.57
Bath and North East Somerset Council,80587050,PG1,Rent Allowances,P10,Finance & Efficiency,S.W.A.L.L.O.W.,12/05/2016,5604.43
Bath and North East Somerset Council,80587037,PG1,Rent Allowances,P10,Finance & Efficiency,SANCTUARY HOUSING ASSOCIATION,12/05/2016,18453.62
Bath and North East Somerset Council,10811119,3F7,External Fees,P12,Children's Services,INTEGRAL ENGINEERING DESIGN LTD,12/05/2016,1000
Bath and North East Somerset Council,10811110,LJ4,Contracts,P12,Children's Services,BATH & NE SOMERSET CARERS CENTRE,12/05/2016,1013.3
Bath and North East Somerset Council,10808673,EA1,Training,P11,Adult Social Care & Health,WILTSHIRE COUNCIL,12/05/2016,1100
Bath and North East Somerset Council,80587035,PG1,Rent Allowances,P10,Finance & Efficiency,SOLON (SOUTH WEST) HOUSING ASSOC,12/05/2016,9112.67
Bath and North East Somerset Council,80587130,PG1,Rent Allowances,P10,Finance & Efficiency,SOMER COMMUNITY HOUSING TRUST,12/05/2016,4754.32
Bath and North East Somerset Council,10811071,LJ3,Other Services to the Council,P14,Community Services,GREENMAN ENVIRONMENTAL MANAGEMENT,12/05/2016,1120
Bath and North East Somerset Council,80587052,PG1,Rent Allowances,P10,Finance & Efficiency,SOVEREIGN HOUSING ASSOCIATION,12/05/2016,52749.42
Bath and North East Somerset Council,80587208,LE2,Statementing Payment to other LEAs/Schools,P12,Children's Services,SOMERSET COUNTY COUNCIL,12/05/2016,1177.24
Bath and North East Somerset Council,80587133,PG1,Rent Allowances,P10,Finance & Efficiency,ST MUNGOS,12/05/2016,11556.72
Bath and North East Somerset Council,10811090,HA3,Planned Maintenance,P10,Finance & Efficiency,OGIER ELECTRONICS LTD,12/05/2016,1240
Bath and North East Somerset Council,10811042,LA1,Equipment Purchase (Non Medical),P04,Leader,JONGOR LTD,12/05/2016,1242.2
Bath and North East Somerset Council,80587040,PG1,Rent Allowances,P10,Finance & Efficiency,STONHAM HOUSING ASSOCIATION,12/05/2016,14677.4
Bath and North East Somerset Council,10810927,LJ2,Legal Fees,P12,Children's Services,DAVID FORSDICK QC,12/05/2016,1500
Bath and North East Somerset Council,10809894,LA7,Purchases for Resale,P12,Children's Services,DUKE OF EDINBURGH'S AWARD,12/05/2016,1520
Bath and North East Somerset Council,80587096,PG1,Rent Allowances,P10,Finance & Efficiency,SUPPORTED INDEPENDENCE LTD,12/05/2016,1630.04
Bath and North East Somerset Council,80587221,LE3,Statementing Payments to B&NES schools,P12,Children's Services,CLUTTON PRIMARY SCHOOL,12/05/2016,1604.94
Bath and North East Somerset Council,10809706,LJ1,Consultants Fees,P11,Adult Social Care & Health,COAST SOCIAL WORK LTD,12/05/2016,1750
Bath and North East Somerset Council,80587204,LE3,Statementing Payments to B&NES schools,P12,Children's Services,TRINITY C OF E ACADEMY TRUST,12/05/2016,1754.94
Bath and North East Somerset Council,80587215,LE3,Statementing Payments to B&NES schools,P12,Children's Services,CHEW STOKE CHURCH SCHOOL,12/05/2016,1806.87
Bath and North East Somerset Council,80587047,PG1,Rent Allowances,P10,Finance & Efficiency,REDACTED,12/05/2016,2005.12
Bath and North East Somerset Council,80587218,LE2,Statementing Payment to other LEAs/Schools,P12,Children's Services,THE CORSHAM SCHOOL,12/05/2016,527.23
Bath and North East Somerset Council,80587033,PG1,Rent Allowances,P10,Finance & Efficiency,THE GUINNESS PARTNERSHIP,12/05/2016,46741.09
Bath and North East Somerset Council,80586997,PG1,Rent Allowances,P10,Finance & Efficiency,THE GUINNESS TRUST,12/05/2016,874.91
Bath and North East Somerset Council,80587034,PG1,Rent Allowances,P10,Finance & Efficiency,THE GUINNESS TRUST,12/05/2016,43262.34
Bath and North East Somerset Council,80587205,LE3,Statementing Payments to B&NES schools,P12,Children's Services,THE MENDIP STUDIO SCHOOL,12/05/2016,893.25
Bath and North East Somerset Council,10810896,LP6,Computer Consumables,P13,Economic Development,AXIELL ALM LIMITED,12/05/2016,2023.54
Bath and North East Somerset Council,10811109,LJ4,Contracts,P12,Children's Services,SARI,12/05/2016,2057.5
Bath and North East Somerset Council,80587197,LE3,Statementing Payments to B&NES schools,P12,Children's Services,HAYESFIELD SCHOOL,12/05/2016,2099.16
Bath and North East Somerset Council,10811085,LF1,Printing/Design,P10,Finance & Efficiency,FACILITIES & CORPORATE SOLUTIONS,12/05/2016,2295.45
Bath and North East Somerset Council,80587200,LE3,Statementing Payments to B&NES schools,P12,Children's Services,OLDFIELD SCHOOL MAIN BANK A/C,12/05/2016,2315.17
Bath and North East Somerset Council,10811073,LJ3,Other Services to the Council,P14,Community Services,GREENMAN ENVIRONMENTAL MANAGEMENT,12/05/2016,2345
Bath and North East Somerset Council,10810885,LA5,Materials,P14,Community Services,GELPACK EXCELSIOR LTD,12/05/2016,2446.5
Bath and North East Somerset Council,80587074,PG1,Rent Allowances,P10,Finance & Efficiency,TOUCHSTONE RESIDENTIAL LETTINGS,12/05/2016,1139.72
Bath and North East Somerset Council,10810965,HN1,Electricity,P13,Economic Development,EDF ENERGY,12/05/2016,2664.04
Bath and North East Somerset Council,80587065,PG1,Rent Allowances,P10,Finance & Efficiency,TRUSTEES OF PARTIS COLLEGE,12/05/2016,964.64
Bath and North East Somerset Council,80587113,PG1,Rent Allowances,P10,Finance & Efficiency,U G PROPERTY MANAGEMENT,12/05/2016,1252.92
Bath and North East Somerset Council,80587038,PG1,Rent Allowances,P10,Finance & Efficiency,UNITED HOUSING ASSOCIATION,12/05/2016,2598.36
Bath and North East Somerset Council,80587165,PG1,Rent Allowances,P10,Finance & Efficiency,VALLEY PROPERTY MANAGERS,12/05/2016,542.96
Bath and North East Somerset Council,10810964,HN1,Electricity,P13,Economic Development,EDF ENERGY,12/05/2016,3126.68
Bath and North East Somerset Council,80587216,LE2,Statementing Payment to other LEAs/Schools,P12,Children's Services,WAYCROFT ACADEMY TRUST,12/05/2016,1202.48
Bath and North East Somerset Council,80587223,LE3,Statementing Payments to B&NES schools,,,DRAGONFLY EDUCATION TRUST PEASEDOWN,12/05/2016,3254.05
Bath and North East Somerset Council,80587195,LE3,Statementing Payments to B&NES schools,P12,Children's Services,BEECHEN CLIFF SCHOOL,12/05/2016,3278.39
Bath and North East Somerset Council,80587206,LE3,Statementing Payments to B&NES schools,P12,Children's Services,WELLSWAY MAT T/A WELLSWAY SCHOOL,12/05/2016,3446.8
Bath and North East Somerset Council,80587225,LE3,Statementing Payments to B&NES schools,P12,Children's Services,ST JOHNS C OF E PRIMARY SCHOOL,12/05/2016,3497.28
Bath and North East Somerset Council,80587203,LE3,Statementing Payments to B&NES schools,P12,Children's Services,WELLSWAY MULTI ACADEMY TRUST T/A BATH,12/05/2016,666.07
Bath and North East Somerset Council,80587224,LE3,Statementing Payments to B&NES schools,P12,Children's Services,WELLSWAY MULTI ACADEMY TRUST T/A ST JOHNS PRIMARY SCH,12/05/2016,1063.64
Bath and North East Somerset Council,80587199,LE3,Statementing Payments to B&NES schools,P12,Children's Services,MID NORTON SCH PART RE NORTON HILL,12/05/2016,3659.91
Bath and North East Somerset Council,80587226,LE3,Statementing Payments to B&NES schools,,,COMENIUS TRUST-WESTON ALL SAINTS PRIMARY SCHOOL,12/05/2016,4009.89
Bath and North East Somerset Council,10810986,LJ8,PCB External Fees,P13,Economic Development,LAMBERT SMITH HAMPTON GROUP LTD,12/05/2016,5000
Bath and North East Somerset Council,80587196,LE3,Statementing Payments to B&NES schools,P12,Children's Services,"BROADLANDS ACADEMY, ACADEMIES ENTERPRISE TRUST",12/05/2016,5344.91
Bath and North East Somerset Council,80587201,LE3,Statementing Payments to B&NES schools,P12,Children's Services,RALPH ALLEN SCHOOL,12/05/2016,5369.24
Bath and North East Somerset Council,80587046,PG1,Rent Allowances,P10,Finance & Efficiency,WILTSHIRE RURAL HOUSING ASSOCIAT,12/05/2016,1761.64
Bath and North East Somerset Council,80587211,LE2,Statementing Payment to other LEAs/Schools,P12,Children's Services,WINFORD C OF E PRIMARY SCHOOL,12/05/2016,534.98
Bath and North East Somerset Council,10810337,LJ2,Legal Fees,P12,Children's Services,WITHY KING LLP,12/05/2016,202.17
Bath and North East Somerset Council,10810337,LJ2,Legal Fees,P12,Children's Services,WITHY KING LLP,12/05/2016,979.56
Bath and North East Somerset Council,10810969,LP5,Software Support,P10,Finance & Efficiency,DUE NORTH,12/05/2016,7818.84
Bath and North East Somerset Council,10811086,LF5,Postages,P10,Finance & Efficiency,FACILITIES & CORPORATE SOLUTIONS,12/05/2016,7846.12
Bath and North East Somerset Council,10811021,LM1,Volunt Homes Placements Top/Up,P12,Children's Services,PREMIER CARE MANAGEMENT LTD,12/05/2016,7945
Bath and North East Somerset Council,10810936,LK2,Licences (non IT),P04,Leader,COPYRIGHT LICENSING AGENCY LTD,12/05/2016,8652.5
Bath and North East Somerset Council,10810456,3G1,Grants/Advances,P11,Adult Social Care & Health,TPM (SOUTH WEST) LTD,12/05/2016,9533.96
Bath and North East Somerset Council,10811081,LJ4,Contracts,P12,Children's Services,BATH & NE SOMERSET CARERS CENTRE,12/05/2016,13424.5
Bath and North East Somerset Council,10810450,3G1,Grants/Advances,P11,Adult Social Care & Health,LIFTECH.ORG LTD,12/05/2016,14064
Bath and North East Somerset Council,10811044,LL3,Supported Living,P11,Adult Social Care & Health,BRISTOL CITY COUNCIL,12/05/2016,14230
Bath and North East Somerset Council,80587102,PG1,Rent Allowances,P10,Finance & Efficiency,WRIGHT LETTINGS,12/05/2016,665.77
Bath and North East Somerset Council,80587207,LE3,Statementing Payments to B&NES schools,P12,Children's Services,WRITHLINGTON SCHOOL ACADEMY TRUST LTD,12/05/2016,4323.09
Bath and North East Somerset Council,80587024,PG1,Rent Allowances,P10,Finance & Efficiency,Y.M.C.A.,12/05/2016,7691.44
Bath and North East Somerset Council,80587158,PG1,Rent Allowances,P10,Finance & Efficiency,YELLOW PROPERTY,12/05/2016,1689.9
Bath and North East Somerset Council,10811016,LM1,Volunt Homes Placements Top/Up,P12,Children's Services,TUMBLEWOOD PROJECT LTD,12/05/2016,23781.34
Bath and North East Somerset Council,10811037,LJ4,Contracts,P14,Community Services,FAUN ZOELLOR UK LTD,12/05/2016,37172.44
Bath and North East Somerset Council,10810978,PB4,Payments to Private Contractors,P14,Community Services,BRACKEN DOWN LTD,13/05/2016,15322.47
Bath and North East Somerset Council,10811093,LX3,Refunds,P04,Leader,BRISTOL CONSERVATIVES,13/05/2016,5000
Bath and North East Somerset Council,80587382,LM8,Home Care,P11,Adult Social Care & Health,BUTTERFLY HOME HELP,13/05/2016,455
Bath and North East Somerset Council,80587382,LM8,Home Care,P11,Adult Social Care & Health,BUTTERFLY HOME HELP,13/05/2016,455
Bath and North East Somerset Council,80587382,LM8,Home Care,P11,Adult Social Care & Health,BUTTERFLY HOME HELP,13/05/2016,455
Bath and North East Somerset Council,10811179,LF5,Postages,P12,Children's Services,AWARD SCHEME LTD,13/05/2016,16.67
Bath and North East Somerset Council,10810785,HA1,Responsive Maintenance,P10,Finance & Efficiency,HORDERS,13/05/2016,24.8
Bath and North East Somerset Council,10810785,HA1,Responsive Maintenance,P10,Finance & Efficiency,HORDERS,13/05/2016,41.82
Bath and North East Somerset Council,10810970,HA1,Responsive Maintenance,P10,Finance & Efficiency,HORDERS,13/05/2016,75.65
Bath and North East Somerset Council,80587392,LL3,Supported Living,P11,Adult Social Care & Health,DIMENSIONS (UK) LTD,13/05/2016,150.2
Bath and North East Somerset Council,80587392,LL3,Supported Living,P11,Adult Social Care & Health,DIMENSIONS (UK) LTD,13/05/2016,150.2
Bath and North East Somerset Council,80587392,LL3,Supported Living,P11,Adult Social Care & Health,DIMENSIONS (UK) LTD,13/05/2016,150.2
Bath and North East Somerset Council,80587392,LL3,Supported Living,P11,Adult Social Care & Health,DIMENSIONS (UK) LTD,13/05/2016,150.2
Bath and North East Somerset Council,10810970,HA1,Responsive Maintenance,P10,Finance & Efficiency,HORDERS,13/05/2016,140.88
Bath and North East Somerset Council,80587260,LA7,Purchases for Resale,P13,Economic Development,THE BAY TREE FOOD CO LTD,13/05/2016,158
Bath and North East Somerset Council,80587263,LA7,Purchases for Resale,P13,Economic Development,CAMBROOKE FINE ART PUBL. LTD,13/05/2016,174.8
Bath and North East Somerset Council,80587385,LM8,Home Care,P11,Adult Social Care & Health,I & S DUTTON LTD T/A CAREWATCH,13/05/2016,108
Bath and North East Somerset Council,80587385,LM8,Home Care,P11,Adult Social Care & Health,I & S DUTTON LTD T/A CAREWATCH,13/05/2016,126
Bath and North East Somerset Council,80587384,LM8,Home Care,P11,Adult Social Care & Health,I & S DUTTON LTD T/A CAREWATCH,13/05/2016,162
Bath and North East Somerset Council,80587384,LM8,Home Care,P11,Adult Social Care & Health,I & S DUTTON LTD T/A CAREWATCH,13/05/2016,162
Bath and North East Somerset Council,80587384,LM8,Home Care,P11,Adult Social Care & Health,I & S DUTTON LTD T/A CAREWATCH,13/05/2016,162
Bath and North East Somerset Council,80587384,LM8,Home Care,P11,Adult Social Care & Health,I & S DUTTON LTD T/A CAREWATCH,13/05/2016,162
Bath and North East Somerset Council,80587385,LM8,Home Care,P11,Adult Social Care & Health,I & S DUTTON LTD T/A CAREWATCH,13/05/2016,189
Bath and North East Somerset Council,80587385,LM8,Home Care,P11,Adult Social Care & Health,I & S DUTTON LTD T/A CAREWATCH,13/05/2016,189
Bath and North East Somerset Council,80587388,LM8,Home Care,P11,Adult Social Care & Health,I & S DUTTON LTD T/A CAREWATCH,13/05/2016,378
Bath and North East Somerset Council,80587388,LM8,Home Care,P11,Adult Social Care & Health,I & S DUTTON LTD T/A CAREWATCH,13/05/2016,378
Bath and North East Somerset Council,80587388,LM8,Home Care,P11,Adult Social Care & Health,I & S DUTTON LTD T/A CAREWATCH,13/05/2016,378
Bath and North East Somerset Council,80587388,LM8,Home Care,P11,Adult Social Care & Health,I & S DUTTON LTD T/A CAREWATCH,13/05/2016,378
Bath and North East Somerset Council,10810970,HA1,Responsive Maintenance,P10,Finance & Efficiency,HORDERS,13/05/2016,178.04
Bath and North East Somerset Council,10810785,HA1,Responsive Maintenance,P10,Finance & Efficiency,HORDERS,13/05/2016,185.66
Bath and North East Somerset Council,80587241,LA7,Purchases for Resale,P13,Economic Development,F H SWIFT,13/05/2016,201.6
Bath and North East Somerset Council,10810785,HA1,Responsive Maintenance,P10,Finance & Efficiency,HORDERS,13/05/2016,222.86
Bath and North East Somerset Council,10810785,HA1,Responsive Maintenance,P10,Finance & Efficiency,HORDERS,13/05/2016,299.96
Bath and North East Somerset Council,80587263,LA7,Purchases for Resale,P13,Economic Development,CAMBROOKE FINE ART PUBL. LTD,13/05/2016,312.08
Bath and North East Somerset Council,80587296,KE2,Payment to Parents/Students,P12,Children's Services,REDACTED,13/05/2016,1200
Bath and North East Somerset Council,80587260,LA7,Purchases for Resale,P13,Economic Development,THE BAY TREE FOOD CO LTD,13/05/2016,405
Bath and North East Somerset Council,10811156,LA1,Equipment Purchase (Non Medical),P10,Finance & Efficiency,LIONEL SAUNDERS & CO (BRISTOL),13/05/2016,417.3
Bath and North East Somerset Council,80587235,LA7,Purchases for Resale,P13,Economic Development,RB CERAMICS LTD,13/05/2016,431.25
Bath and North East Somerset Council,10810723,HK1,Highway Maintenance,P01,Transport,JCT CONSULTANCY,13/05/2016,445
Bath and North East Somerset Council,10811144,LX3,Refunds,P13,Economic Development,REDACTED,13/05/2016,995
Bath and North East Somerset Council,10810970,HA1,Responsive Maintenance,P10,Finance & Efficiency,HORDERS,13/05/2016,466.7
Bath and North East Somerset Council,80587252,LA7,Purchases for Resale,P13,Economic Development,REINE D'AMOUR LTD,13/05/2016,494.46
Bath and North East Somerset Council,80587242,LA7,Purchases for Resale,P13,Economic Development,BIG METAL,13/05/2016,514.2
Bath and North East Somerset Council,10810970,HA1,Responsive Maintenance,P10,Finance & Efficiency,HORDERS,13/05/2016,517.15
Bath and North East Somerset Council,80587258,LA7,Purchases for Resale,P13,Economic Development,AHMAD TEA LIMITED,13/05/2016,560
Bath and North East Somerset Council,80587400,LM9,Day Care,P11,Adult Social Care & Health,NATIONAL AUTISTIC SOCIETY,13/05/2016,163.43
Bath and North East Somerset Council,80587401,LM9,Day Care,P11,Adult Social Care & Health,NATIONAL AUTISTIC SOCIETY,13/05/2016,164.22
Bath and North East Somerset Council,80587400,LM9,Day Care,P11,Adult Social Care & Health,NATIONAL AUTISTIC SOCIETY,13/05/2016,272.38
Bath and North East Somerset Council,80587401,LM9,Day Care,P11,Adult Social Care & Health,NATIONAL AUTISTIC SOCIETY,13/05/2016,273.7
Bath and North East Somerset Council,80587395,LM3,Residential Care,P11,Adult Social Care & Health,NATIONAL AUTISTIC SOCIETY,13/05/2016,368.62
Bath and North East Somerset Council,80587400,LM9,Day Care,P11,Adult Social Care & Health,NATIONAL AUTISTIC SOCIETY,13/05/2016,381.33
Bath and North East Somerset Council,80587400,LM9,Day Care,P11,Adult Social Care & Health,NATIONAL AUTISTIC SOCIETY,13/05/2016,381.33
Bath and North East Somerset Council,80587400,LM9,Day Care,P11,Adult Social Care & Health,NATIONAL AUTISTIC SOCIETY,13/05/2016,381.33
Bath and North East Somerset Council,80587400,LM9,Day Care,P11,Adult Social Care & Health,NATIONAL AUTISTIC SOCIETY,13/05/2016,381.33
Bath and North East Somerset Council,80587400,LM9,Day Care,P11,Adult Social Care & Health,NATIONAL AUTISTIC SOCIETY,13/05/2016,381.33
Bath and North East Somerset Council,80587400,LM9,Day Care,P11,Adult Social Care & Health,NATIONAL AUTISTIC SOCIETY,13/05/2016,381.33
Bath and North East Somerset Council,80587400,LM9,Day Care,P11,Adult Social Care & Health,NATIONAL AUTISTIC SOCIETY,13/05/2016,381.33
Bath and North East Somerset Council,80587400,LM9,Day Care,P11,Adult Social Care & Health,NATIONAL AUTISTIC SOCIETY,13/05/2016,381.33
Bath and North East Somerset Council,80587400,LM9,Day Care,P11,Adult Social Care & Health,NATIONAL AUTISTIC SOCIETY,13/05/2016,381.33
Bath and North East Somerset Council,80587400,LM9,Day Care,P11,Adult Social Care & Health,NATIONAL AUTISTIC SOCIETY,13/05/2016,381.33
Bath and North East Somerset Council,80587400,LM9,Day Care,P11,Adult Social Care & Health,NATIONAL AUTISTIC SOCIETY,13/05/2016,381.33
Bath and North East Somerset Council,80587400,LM9,Day Care,P11,Adult Social Care & Health,NATIONAL AUTISTIC SOCIETY,13/05/2016,381.33
Bath and North East Somerset Council,80587400,LM9,Day Care,P11,Adult Social Care & Health,NATIONAL AUTISTIC SOCIETY,13/05/2016,381.33
Bath and North East Somerset Council,80587400,LM9,Day Care,P11,Adult Social Care & Health,NATIONAL AUTISTIC SOCIETY,13/05/2016,381.33
Bath and North East Somerset Council,80587400,LM9,Day Care,P11,Adult Social Care & Health,NATIONAL AUTISTIC SOCIETY,13/05/2016,381.33
Bath and North East Somerset Council,80587400,LM9,Day Care,P11,Adult Social Care & Health,NATIONAL AUTISTIC SOCIETY,13/05/2016,381.33
Bath and North East Somerset Council,80587400,LM9,Day Care,P11,Adult Social Care & Health,NATIONAL AUTISTIC SOCIETY,13/05/2016,381.33
Bath and North East Somerset Council,80587400,LM9,Day Care,P11,Adult Social Care & Health,NATIONAL AUTISTIC SOCIETY,13/05/2016,381.33
Bath and North East Somerset Council,80587400,LM9,Day Care,P11,Adult Social Care & Health,NATIONAL AUTISTIC SOCIETY,13/05/2016,381.33
Bath and North East Somerset Council,80587400,LM9,Day Care,P11,Adult Social Care & Health,NATIONAL AUTISTIC SOCIETY,13/05/2016,381.33
Bath and North East Somerset Council,80587400,LM9,Day Care,P11,Adult Social Care & Health,NATIONAL AUTISTIC SOCIETY,13/05/2016,381.33
Bath and North East Somerset Council,80587400,LM9,Day Care,P11,Adult Social Care & Health,NATIONAL AUTISTIC SOCIETY,13/05/2016,381.33
Bath and North East Somerset Council,80587400,LM9,Day Care,P11,Adult Social Care & Health,NATIONAL AUTISTIC SOCIETY,13/05/2016,381.33
Bath and North East Somerset Council,80587400,LM9,Day Care,P11,Adult Social Care & Health,NATIONAL AUTISTIC SOCIETY,13/05/2016,381.33
Bath and North East Somerset Council,80587400,LM9,Day Care,P11,Adult Social Care & Health,NATIONAL AUTISTIC SOCIETY,13/05/2016,381.33
Bath and North East Somerset Council,80587400,LM9,Day Care,P11,Adult Social Care & Health,NATIONAL AUTISTIC SOCIETY,13/05/2016,381.33
Bath and North East Somerset Council,80587400,LM9,Day Care,P11,Adult Social Care & Health,NATIONAL AUTISTIC SOCIETY,13/05/2016,381.33
Bath and North East Somerset Council,80587400,LM9,Day Care,P11,Adult Social Care & Health,NATIONAL AUTISTIC SOCIETY,13/05/2016,381.33
Bath and North East Somerset Council,80587400,LM9,Day Care,P11,Adult Social Care & Health,NATIONAL AUTISTIC SOCIETY,13/05/2016,381.33
Bath and North East Somerset Council,80587400,LM9,Day Care,P11,Adult Social Care & Health,NATIONAL AUTISTIC SOCIETY,13/05/2016,381.33
Bath and North East Somerset Council,80587400,LM9,Day Care,P11,Adult Social Care & Health,NATIONAL AUTISTIC SOCIETY,13/05/2016,381.33
Bath and North East Somerset Council,80587400,LM9,Day Care,P11,Adult Social Care & Health,NATIONAL AUTISTIC SOCIETY,13/05/2016,381.33
Bath and North East Somerset Council,80587400,LM9,Day Care,P11,Adult Social Care & Health,NATIONAL AUTISTIC SOCIETY,13/05/2016,381.33
Bath and North East Somerset Council,80587400,LM9,Day Care,P11,Adult Social Care & Health,NATIONAL AUTISTIC SOCIETY,13/05/2016,381.33
Bath and North East Somerset Council,80587400,LM9,Day Care,P11,Adult Social Care & Health,NATIONAL AUTISTIC SOCIETY,13/05/2016,381.33
Bath and North East Somerset Council,80587400,LM9,Day Care,P11,Adult Social Care & Health,NATIONAL AUTISTIC SOCIETY,13/05/2016,381.33
Bath and North East Somerset Council,80587400,LM9,Day Care,P11,Adult Social Care & Health,NATIONAL AUTISTIC SOCIETY,13/05/2016,381.33
Bath and North East Somerset Council,80587400,LM9,Day Care,P11,Adult Social Care & Health,NATIONAL AUTISTIC SOCIETY,13/05/2016,381.33
Bath and North East Somerset Council,80587400,LM9,Day Care,P11,Adult Social Care & Health,NATIONAL AUTISTIC SOCIETY,13/05/2016,381.33
Bath and North East Somerset Council,80587400,LM9,Day Care,P11,Adult Social Care & Health,NATIONAL AUTISTIC SOCIETY,13/05/2016,381.33
Bath and North East Somerset Council,80587400,LM9,Day Care,P11,Adult Social Care & Health,NATIONAL AUTISTIC SOCIETY,13/05/2016,381.33
Bath and North East Somerset Council,80587400,LM9,Day Care,P11,Adult Social Care & Health,NATIONAL AUTISTIC SOCIETY,13/05/2016,381.33
Bath and North East Somerset Council,80587400,LM9,Day Care,P11,Adult Social Care & Health,NATIONAL AUTISTIC SOCIETY,13/05/2016,381.33
Bath and North East Somerset Council,80587400,LM9,Day Care,P11,Adult Social Care & Health,NATIONAL AUTISTIC SOCIETY,13/05/2016,381.33
Bath and North East Somerset Council,80587400,LM9,Day Care,P11,Adult Social Care & Health,NATIONAL AUTISTIC SOCIETY,13/05/2016,381.33
Bath and North East Somerset Council,80587400,LM9,Day Care,P11,Adult Social Care & Health,NATIONAL AUTISTIC SOCIETY,13/05/2016,381.33
Bath and North East Somerset Council,80587400,LM9,Day Care,P11,Adult Social Care & Health,NATIONAL AUTISTIC SOCIETY,13/05/2016,381.33
Bath and North East Somerset Council,80587400,LM9,Day Care,P11,Adult Social Care & Health,NATIONAL AUTISTIC SOCIETY,13/05/2016,381.33
Bath and North East Somerset Council,80587400,LM9,Day Care,P11,Adult Social Care & Health,NATIONAL AUTISTIC SOCIETY,13/05/2016,381.33
Bath and North East Somerset Council,80587400,LM9,Day Care,P11,Adult Social Care & Health,NATIONAL AUTISTIC SOCIETY,13/05/2016,381.33
Bath and North East Somerset Council,80587400,LM9,Day Care,P11,Adult Social Care & Health,NATIONAL AUTISTIC SOCIETY,13/05/2016,381.33
Bath and North East Somerset Council,80587401,LM9,Day Care,P11,Adult Social Care & Health,NATIONAL AUTISTIC SOCIETY,13/05/2016,383.18
Bath and North East Somerset Council,80587401,LM9,Day Care,P11,Adult Social Care & Health,NATIONAL AUTISTIC SOCIETY,13/05/2016,383.18
Bath and North East Somerset Council,80587401,LM9,Day Care,P11,Adult Social Care & Health,NATIONAL AUTISTIC SOCIETY,13/05/2016,383.18
Bath and North East Somerset Council,80587401,LM9,Day Care,P11,Adult Social Care & Health,NATIONAL AUTISTIC SOCIETY,13/05/2016,383.18
Bath and North East Somerset Council,80587401,LM9,Day Care,P11,Adult Social Care & Health,NATIONAL AUTISTIC SOCIETY,13/05/2016,383.18
Bath and North East Somerset Council,80587401,LM9,Day Care,P11,Adult Social Care & Health,NATIONAL AUTISTIC SOCIETY,13/05/2016,383.18
Bath and North East Somerset Council,80587401,LM9,Day Care,P11,Adult Social Care & Health,NATIONAL AUTISTIC SOCIETY,13/05/2016,383.18
Bath and North East Somerset Council,80587401,LM9,Day Care,P11,Adult Social Care & Health,NATIONAL AUTISTIC SOCIETY,13/05/2016,383.18
Bath and North East Somerset Council,80587401,LM9,Day Care,P11,Adult Social Care & Health,NATIONAL AUTISTIC SOCIETY,13/05/2016,383.18
Bath and North East Somerset Council,80587401,LM9,Day Care,P11,Adult Social Care & Health,NATIONAL AUTISTIC SOCIETY,13/05/2016,383.18
Bath and North East Somerset Council,80587401,LM9,Day Care,P11,Adult Social Care & Health,NATIONAL AUTISTIC SOCIETY,13/05/2016,383.18
Bath and North East Somerset Council,80587401,LM9,Day Care,P11,Adult Social Care & Health,NATIONAL AUTISTIC SOCIETY,13/05/2016,383.18
Bath and North East Somerset Council,80587401,LM9,Day Care,P11,Adult Social Care & Health,NATIONAL AUTISTIC SOCIETY,13/05/2016,383.18
Bath and North East Somerset Council,80587401,LM9,Day Care,P11,Adult Social Care & Health,NATIONAL AUTISTIC SOCIETY,13/05/2016,383.18
Bath and North East Somerset Council,80587401,LM9,Day Care,P11,Adult Social Care & Health,NATIONAL AUTISTIC SOCIETY,13/05/2016,383.18
Bath and North East Somerset Council,80587401,LM9,Day Care,P11,Adult Social Care & Health,NATIONAL AUTISTIC SOCIETY,13/05/2016,383.18
Bath and North East Somerset Council,80587401,LM9,Day Care,P11,Adult Social Care & Health,NATIONAL AUTISTIC SOCIETY,13/05/2016,383.18
Bath and North East Somerset Council,80587401,LM9,Day Care,P11,Adult Social Care & Health,NATIONAL AUTISTIC SOCIETY,13/05/2016,383.18
Bath and North East Somerset Council,80587401,LM9,Day Care,P11,Adult Social Care & Health,NATIONAL AUTISTIC SOCIETY,13/05/2016,383.18
Bath and North East Somerset Council,80587401,LM9,Day Care,P11,Adult Social Care & Health,NATIONAL AUTISTIC SOCIETY,13/05/2016,383.18
Bath and North East Somerset Council,80587401,LM9,Day Care,P11,Adult Social Care & Health,NATIONAL AUTISTIC SOCIETY,13/05/2016,383.18
Bath and North East Somerset Council,80587401,LM9,Day Care,P11,Adult Social Care & Health,NATIONAL AUTISTIC SOCIETY,13/05/2016,383.18
Bath and North East Somerset Council,80587401,LM9,Day Care,P11,Adult Social Care & Health,NATIONAL AUTISTIC SOCIETY,13/05/2016,383.18
Bath and North East Somerset Council,80587401,LM9,Day Care,P11,Adult Social Care & Health,NATIONAL AUTISTIC SOCIETY,13/05/2016,383.18
Bath and North East Somerset Council,80587401,LM9,Day Care,P11,Adult Social Care & Health,NATIONAL AUTISTIC SOCIETY,13/05/2016,383.18
Bath and North East Somerset Council,80587401,LM9,Day Care,P11,Adult Social Care & Health,NATIONAL AUTISTIC SOCIETY,13/05/2016,383.18
Bath and North East Somerset Council,80587401,LM9,Day Care,P11,Adult Social Care & Health,NATIONAL AUTISTIC SOCIETY,13/05/2016,383.18
Bath and North East Somerset Council,80587401,LM9,Day Care,P11,Adult Social Care & Health,NATIONAL AUTISTIC SOCIETY,13/05/2016,383.18
Bath and North East Somerset Council,80587401,LM9,Day Care,P11,Adult Social Care & Health,NATIONAL AUTISTIC SOCIETY,13/05/2016,383.18
Bath and North East Somerset Council,80587401,LM9,Day Care,P11,Adult Social Care & Health,NATIONAL AUTISTIC SOCIETY,13/05/2016,383.18
Bath and North East Somerset Council,80587401,LM9,Day Care,P11,Adult Social Care & Health,NATIONAL AUTISTIC SOCIETY,13/05/2016,383.18
Bath and North East Somerset Council,80587401,LM9,Day Care,P11,Adult Social Care & Health,NATIONAL AUTISTIC SOCIETY,13/05/2016,383.18
Bath and North East Somerset Council,80587401,LM9,Day Care,P11,Adult Social Care & Health,NATIONAL AUTISTIC SOCIETY,13/05/2016,383.18
Bath and North East Somerset Council,80587401,LM9,Day Care,P11,Adult Social Care & Health,NATIONAL AUTISTIC SOCIETY,13/05/2016,383.18
Bath and North East Somerset Council,80587401,LM9,Day Care,P11,Adult Social Care & Health,NATIONAL AUTISTIC SOCIETY,13/05/2016,383.18
Bath and North East Somerset Council,80587401,LM9,Day Care,P11,Adult Social Care & Health,NATIONAL AUTISTIC SOCIETY,13/05/2016,383.18
Bath and North East Somerset Council,80587401,LM9,Day Care,P11,Adult Social Care & Health,NATIONAL AUTISTIC SOCIETY,13/05/2016,383.18
Bath and North East Somerset Council,80587401,LM9,Day Care,P11,Adult Social Care & Health,NATIONAL AUTISTIC SOCIETY,13/05/2016,383.18
Bath and North East Somerset Council,80587401,LM9,Day Care,P11,Adult Social Care & Health,NATIONAL AUTISTIC SOCIETY,13/05/2016,383.18
Bath and North East Somerset Council,80587401,LM9,Day Care,P11,Adult Social Care & Health,NATIONAL AUTISTIC SOCIETY,13/05/2016,383.18
Bath and North East Somerset Council,80587401,LM9,Day Care,P11,Adult Social Care & Health,NATIONAL AUTISTIC SOCIETY,13/05/2016,383.18
Bath and North East Somerset Council,80587401,LM9,Day Care,P11,Adult Social Care & Health,NATIONAL AUTISTIC SOCIETY,13/05/2016,383.18
Bath and North East Somerset Council,80587401,LM9,Day Care,P11,Adult Social Care & Health,NATIONAL AUTISTIC SOCIETY,13/05/2016,383.18
Bath and North East Somerset Council,80587401,LM9,Day Care,P11,Adult Social Care & Health,NATIONAL AUTISTIC SOCIETY,13/05/2016,383.18
Bath and North East Somerset Council,80587401,LM9,Day Care,P11,Adult Social Care & Health,NATIONAL AUTISTIC SOCIETY,13/05/2016,383.18
Bath and North East Somerset Council,80587401,LM9,Day Care,P11,Adult Social Care & Health,NATIONAL AUTISTIC SOCIETY,13/05/2016,383.18
Bath and North East Somerset Council,80587401,LM9,Day Care,P11,Adult Social Care & Health,NATIONAL AUTISTIC SOCIETY,13/05/2016,383.18
Bath and North East Somerset Council,80587401,LM9,Day Care,P11,Adult Social Care & Health,NATIONAL AUTISTIC SOCIETY,13/05/2016,383.18
Bath and North East Somerset Council,80587401,LM9,Day Care,P11,Adult Social Care & Health,NATIONAL AUTISTIC SOCIETY,13/05/2016,383.18
Bath and North East Somerset Council,80587401,LM9,Day Care,P11,Adult Social Care & Health,NATIONAL AUTISTIC SOCIETY,13/05/2016,383.18
Bath and North East Somerset Council,80587401,LM9,Day Care,P11,Adult Social Care & Health,NATIONAL AUTISTIC SOCIETY,13/05/2016,383.18
Bath and North East Somerset Council,80587399,LM9,Day Care,P11,Adult Social Care & Health,NATIONAL AUTISTIC SOCIETY,13/05/2016,529.19
Bath and North East Somerset Council,80587399,LM9,Day Care,P11,Adult Social Care & Health,NATIONAL AUTISTIC SOCIETY,13/05/2016,529.19
Bath and North East Somerset Council,80587399,LM9,Day Care,P11,Adult Social Care & Health,NATIONAL AUTISTIC SOCIETY,13/05/2016,529.19
Bath and North East Somerset Council,80587399,LM9,Day Care,P11,Adult Social Care & Health,NATIONAL AUTISTIC SOCIETY,13/05/2016,529.19
Bath and North East Somerset Council,80587399,LM9,Day Care,P11,Adult Social Care & Health,NATIONAL AUTISTIC SOCIETY,13/05/2016,529.19
Bath and North East Somerset Council,80587399,LM9,Day Care,P11,Adult Social Care & Health,NATIONAL AUTISTIC SOCIETY,13/05/2016,529.19
Bath and North East Somerset Council,80587399,LM9,Day Care,P11,Adult Social Care & Health,NATIONAL AUTISTIC SOCIETY,13/05/2016,529.19
Bath and North East Somerset Council,80587399,LM9,Day Care,P11,Adult Social Care & Health,NATIONAL AUTISTIC SOCIETY,13/05/2016,529.19
Bath and North East Somerset Council,80587399,LM9,Day Care,P11,Adult Social Care & Health,NATIONAL AUTISTIC SOCIETY,13/05/2016,529.19
Bath and North East Somerset Council,80587399,LM9,Day Care,P11,Adult Social Care & Health,NATIONAL AUTISTIC SOCIETY,13/05/2016,529.19
Bath and North East Somerset Council,80587399,LM9,Day Care,P11,Adult Social Care & Health,NATIONAL AUTISTIC SOCIETY,13/05/2016,529.19
Bath and North East Somerset Council,80587399,LM9,Day Care,P11,Adult Social Care & Health,NATIONAL AUTISTIC SOCIETY,13/05/2016,529.19
Bath and North East Somerset Council,80587399,LM9,Day Care,P11,Adult Social Care & Health,NATIONAL AUTISTIC SOCIETY,13/05/2016,529.19
Bath and North East Somerset Council,80587399,LM9,Day Care,P11,Adult Social Care & Health,NATIONAL AUTISTIC SOCIETY,13/05/2016,529.19
Bath and North East Somerset Council,80587399,LM9,Day Care,P11,Adult Social Care & Health,NATIONAL AUTISTIC SOCIETY,13/05/2016,529.19
Bath and North East Somerset Council,80587399,LM9,Day Care,P11,Adult Social Care & Health,NATIONAL AUTISTIC SOCIETY,13/05/2016,529.19
Bath and North East Somerset Council,80587399,LM9,Day Care,P11,Adult Social Care & Health,NATIONAL AUTISTIC SOCIETY,13/05/2016,529.19
Bath and North East Somerset Council,80587399,LM9,Day Care,P11,Adult Social Care & Health,NATIONAL AUTISTIC SOCIETY,13/05/2016,529.19
Bath and North East Somerset Council,80587399,LM9,Day Care,P11,Adult Social Care & Health,NATIONAL AUTISTIC SOCIETY,13/05/2016,529.19
Bath and North East Somerset Council,80587399,LM9,Day Care,P11,Adult Social Care & Health,NATIONAL AUTISTIC SOCIETY,13/05/2016,529.19
Bath and North East Somerset Council,80587399,LM9,Day Care,P11,Adult Social Care & Health,NATIONAL AUTISTIC SOCIETY,13/05/2016,529.19
Bath and North East Somerset Council,80587399,LM9,Day Care,P11,Adult Social Care & Health,NATIONAL AUTISTIC SOCIETY,13/05/2016,529.19
Bath and North East Somerset Council,80587399,LM9,Day Care,P11,Adult Social Care & Health,NATIONAL AUTISTIC SOCIETY,13/05/2016,529.19
Bath and North East Somerset Council,80587399,LM9,Day Care,P11,Adult Social Care & Health,NATIONAL AUTISTIC SOCIETY,13/05/2016,529.19
Bath and North East Somerset Council,80587399,LM9,Day Care,P11,Adult Social Care & Health,NATIONAL AUTISTIC SOCIETY,13/05/2016,529.19
Bath and North East Somerset Council,80587399,LM9,Day Care,P11,Adult Social Care & Health,NATIONAL AUTISTIC SOCIETY,13/05/2016,529.19
Bath and North East Somerset Council,80587399,LM9,Day Care,P11,Adult Social Care & Health,NATIONAL AUTISTIC SOCIETY,13/05/2016,529.19
Bath and North East Somerset Council,80587399,LM9,Day Care,P11,Adult Social Care & Health,NATIONAL AUTISTIC SOCIETY,13/05/2016,529.19
Bath and North East Somerset Council,80587399,LM9,Day Care,P11,Adult Social Care & Health,NATIONAL AUTISTIC SOCIETY,13/05/2016,529.19
Bath and North East Somerset Council,80587399,LM9,Day Care,P11,Adult Social Care & Health,NATIONAL AUTISTIC SOCIETY,13/05/2016,529.19
Bath and North East Somerset Council,80587399,LM9,Day Care,P11,Adult Social Care & Health,NATIONAL AUTISTIC SOCIETY,13/05/2016,529.19
Bath and North East Somerset Council,80587399,LM9,Day Care,P11,Adult Social Care & Health,NATIONAL AUTISTIC SOCIETY,13/05/2016,529.19
Bath and North East Somerset Council,80587399,LM9,Day Care,P11,Adult Social Care & Health,NATIONAL AUTISTIC SOCIETY,13/05/2016,529.19
Bath and North East Somerset Council,80587399,LM9,Day Care,P11,Adult Social Care & Health,NATIONAL AUTISTIC SOCIETY,13/05/2016,529.19
Bath and North East Somerset Council,80587399,LM9,Day Care,P11,Adult Social Care & Health,NATIONAL AUTISTIC SOCIETY,13/05/2016,529.19
Bath and North East Somerset Council,80587399,LM9,Day Care,P11,Adult Social Care & Health,NATIONAL AUTISTIC SOCIETY,13/05/2016,529.19
Bath and North East Somerset Council,80587399,LM9,Day Care,P11,Adult Social Care & Health,NATIONAL AUTISTIC SOCIETY,13/05/2016,529.19
Bath and North East Somerset Council,80587399,LM9,Day Care,P11,Adult Social Care & Health,NATIONAL AUTISTIC SOCIETY,13/05/2016,529.19
Bath and North East Somerset Council,80587399,LM9,Day Care,P11,Adult Social Care & Health,NATIONAL AUTISTIC SOCIETY,13/05/2016,529.19
Bath and North East Somerset Council,80587399,LM9,Day Care,P11,Adult Social Care & Health,NATIONAL AUTISTIC SOCIETY,13/05/2016,529.19
Bath and North East Somerset Council,80587399,LM9,Day Care,P11,Adult Social Care & Health,NATIONAL AUTISTIC SOCIETY,13/05/2016,529.19
Bath and North East Somerset Council,80587399,LM9,Day Care,P11,Adult Social Care & Health,NATIONAL AUTISTIC SOCIETY,13/05/2016,529.19
Bath and North East Somerset Council,80587399,LM9,Day Care,P11,Adult Social Care & Health,NATIONAL AUTISTIC SOCIETY,13/05/2016,529.19
Bath and North East Somerset Council,80587399,LM9,Day Care,P11,Adult Social Care & Health,NATIONAL AUTISTIC SOCIETY,13/05/2016,529.19
Bath and North East Somerset Council,80587399,LM9,Day Care,P11,Adult Social Care & Health,NATIONAL AUTISTIC SOCIETY,13/05/2016,529.19
Bath and North East Somerset Council,80587399,LM9,Day Care,P11,Adult Social Care & Health,NATIONAL AUTISTIC SOCIETY,13/05/2016,529.19
Bath and North East Somerset Council,80587399,LM9,Day Care,P11,Adult Social Care & Health,NATIONAL AUTISTIC SOCIETY,13/05/2016,529.19
Bath and North East Somerset Council,80587399,LM9,Day Care,P11,Adult Social Care & Health,NATIONAL AUTISTIC SOCIETY,13/05/2016,529.19
Bath and North East Somerset Council,80587399,LM9,Day Care,P11,Adult Social Care & Health,NATIONAL AUTISTIC SOCIETY,13/05/2016,529.19
Bath and North East Somerset Council,80587399,LM9,Day Care,P11,Adult Social Care & Health,NATIONAL AUTISTIC SOCIETY,13/05/2016,529.19
Bath and North East Somerset Council,80587399,LM9,Day Care,P11,Adult Social Care & Health,NATIONAL AUTISTIC SOCIETY,13/05/2016,529.19
Bath and North East Somerset Council,80587399,LM9,Day Care,P11,Adult Social Care & Health,NATIONAL AUTISTIC SOCIETY,13/05/2016,529.19
Bath and North East Somerset Council,80587395,LM3,Residential Care,P11,Adult Social Care & Health,NATIONAL AUTISTIC SOCIETY,13/05/2016,1441.08
Bath and North East Somerset Council,80587395,LM3,Residential Care,P11,Adult Social Care & Health,NATIONAL AUTISTIC SOCIETY,13/05/2016,1441.08
Bath and North East Somerset Council,80587395,LM3,Residential Care,P11,Adult Social Care & Health,NATIONAL AUTISTIC SOCIETY,13/05/2016,1441.08
Bath and North East Somerset Council,80587395,LM3,Residential Care,P11,Adult Social Care & Health,NATIONAL AUTISTIC SOCIETY,13/05/2016,1441.08
Bath and North East Somerset Council,80587395,LM3,Residential Care,P11,Adult Social Care & Health,NATIONAL AUTISTIC SOCIETY,13/05/2016,1441.08
Bath and North East Somerset Council,80587395,LM3,Residential Care,P11,Adult Social Care & Health,NATIONAL AUTISTIC SOCIETY,13/05/2016,1441.08
Bath and North East Somerset Council,80587395,LM3,Residential Care,P11,Adult Social Care & Health,NATIONAL AUTISTIC SOCIETY,13/05/2016,1441.08
Bath and North East Somerset Council,80587395,LM3,Residential Care,P11,Adult Social Care & Health,NATIONAL AUTISTIC SOCIETY,13/05/2016,1441.08
Bath and North East Somerset Council,80587395,LM3,Residential Care,P11,Adult Social Care & Health,NATIONAL AUTISTIC SOCIETY,13/05/2016,1441.08
Bath and North East Somerset Council,80587395,LM3,Residential Care,P11,Adult Social Care & Health,NATIONAL AUTISTIC SOCIETY,13/05/2016,1441.08
Bath and North East Somerset Council,80587395,LM3,Residential Care,P11,Adult Social Care & Health,NATIONAL AUTISTIC SOCIETY,13/05/2016,1441.08
Bath and North East Somerset Council,80587395,LM3,Residential Care,P11,Adult Social Care & Health,NATIONAL AUTISTIC SOCIETY,13/05/2016,1441.08
Bath and North East Somerset Council,80587395,LM3,Residential Care,P11,Adult Social Care & Health,NATIONAL AUTISTIC SOCIETY,13/05/2016,1441.08
Bath and North East Somerset Council,80587395,LM3,Residential Care,P11,Adult Social Care & Health,NATIONAL AUTISTIC SOCIETY,13/05/2016,1441.08
Bath and North East Somerset Council,80587395,LM3,Residential Care,P11,Adult Social Care & Health,NATIONAL AUTISTIC SOCIETY,13/05/2016,1441.08
Bath and North East Somerset Council,80587395,LM3,Residential Care,P11,Adult Social Care & Health,NATIONAL AUTISTIC SOCIETY,13/05/2016,1441.08
Bath and North East Somerset Council,80587395,LM3,Residential Care,P11,Adult Social Care & Health,NATIONAL AUTISTIC SOCIETY,13/05/2016,1441.08
Bath and North East Somerset Council,80587395,LM3,Residential Care,P11,Adult Social Care & Health,NATIONAL AUTISTIC SOCIETY,13/05/2016,1441.08
Bath and North East Somerset Council,80587395,LM3,Residential Care,P11,Adult Social Care & Health,NATIONAL AUTISTIC SOCIETY,13/05/2016,1441.08
Bath and North East Somerset Council,80587395,LM3,Residential Care,P11,Adult Social Care & Health,NATIONAL AUTISTIC SOCIETY,13/05/2016,1441.08
Bath and North East Somerset Council,80587395,LM3,Residential Care,P11,Adult Social Care & Health,NATIONAL AUTISTIC SOCIETY,13/05/2016,1441.08
Bath and North East Somerset Council,80587395,LM3,Residential Care,P11,Adult Social Care & Health,NATIONAL AUTISTIC SOCIETY,13/05/2016,1441.08
Bath and North East Somerset Council,80587395,LM3,Residential Care,P11,Adult Social Care & Health,NATIONAL AUTISTIC SOCIETY,13/05/2016,1441.08
Bath and North East Somerset Council,80587395,LM3,Residential Care,P11,Adult Social Care & Health,NATIONAL AUTISTIC SOCIETY,13/05/2016,1441.08
Bath and North East Somerset Council,80587395,LM3,Residential Care,P11,Adult Social Care & Health,NATIONAL AUTISTIC SOCIETY,13/05/2016,1441.08
Bath and North East Somerset Council,80587395,LM3,Residential Care,P11,Adult Social Care & Health,NATIONAL AUTISTIC SOCIETY,13/05/2016,1441.08
Bath and North East Somerset Council,80587395,LM3,Residential Care,P11,Adult Social Care & Health,NATIONAL AUTISTIC SOCIETY,13/05/2016,1441.08
Bath and North East Somerset Council,80587395,LM3,Residential Care,P11,Adult Social Care & Health,NATIONAL AUTISTIC SOCIETY,13/05/2016,1441.08
Bath and North East Somerset Council,80587395,LM3,Residential Care,P11,Adult Social Care & Health,NATIONAL AUTISTIC SOCIETY,13/05/2016,1441.08
Bath and North East Somerset Council,80587395,LM3,Residential Care,P11,Adult Social Care & Health,NATIONAL AUTISTIC SOCIETY,13/05/2016,1441.08
Bath and North East Somerset Council,80587395,LM3,Residential Care,P11,Adult Social Care & Health,NATIONAL AUTISTIC SOCIETY,13/05/2016,1441.08
Bath and North East Somerset Council,80587395,LM3,Residential Care,P11,Adult Social Care & Health,NATIONAL AUTISTIC SOCIETY,13/05/2016,1441.08
Bath and North East Somerset Council,80587395,LM3,Residential Care,P11,Adult Social Care & Health,NATIONAL AUTISTIC SOCIETY,13/05/2016,1441.08
Bath and North East Somerset Council,80587395,LM3,Residential Care,P11,Adult Social Care & Health,NATIONAL AUTISTIC SOCIETY,13/05/2016,1441.08
Bath and North East Somerset Council,80587395,LM3,Residential Care,P11,Adult Social Care & Health,NATIONAL AUTISTIC SOCIETY,13/05/2016,1441.08
Bath and North East Somerset Council,80587395,LM3,Residential Care,P11,Adult Social Care & Health,NATIONAL AUTISTIC SOCIETY,13/05/2016,1441.08
Bath and North East Somerset Council,80587395,LM3,Residential Care,P11,Adult Social Care & Health,NATIONAL AUTISTIC SOCIETY,13/05/2016,1441.08
Bath and North East Somerset Council,80587395,LM3,Residential Care,P11,Adult Social Care & Health,NATIONAL AUTISTIC SOCIETY,13/05/2016,1441.08
Bath and North East Somerset Council,80587395,LM3,Residential Care,P11,Adult Social Care & Health,NATIONAL AUTISTIC SOCIETY,13/05/2016,1441.08
Bath and North East Somerset Council,80587395,LM3,Residential Care,P11,Adult Social Care & Health,NATIONAL AUTISTIC SOCIETY,13/05/2016,1441.08
Bath and North East Somerset Council,80587395,LM3,Residential Care,P11,Adult Social Care & Health,NATIONAL AUTISTIC SOCIETY,13/05/2016,1441.08
Bath and North East Somerset Council,80587395,LM3,Residential Care,P11,Adult Social Care & Health,NATIONAL AUTISTIC SOCIETY,13/05/2016,1441.08
Bath and North East Somerset Council,80587395,LM3,Residential Care,P11,Adult Social Care & Health,NATIONAL AUTISTIC SOCIETY,13/05/2016,1441.08
Bath and North East Somerset Council,80587395,LM3,Residential Care,P11,Adult Social Care & Health,NATIONAL AUTISTIC SOCIETY,13/05/2016,1441.08
Bath and North East Somerset Council,80587395,LM3,Residential Care,P11,Adult Social Care & Health,NATIONAL AUTISTIC SOCIETY,13/05/2016,1441.08
Bath and North East Somerset Council,80587395,LM3,Residential Care,P11,Adult Social Care & Health,NATIONAL AUTISTIC SOCIETY,13/05/2016,1441.08
Bath and North East Somerset Council,80587395,LM3,Residential Care,P11,Adult Social Care & Health,NATIONAL AUTISTIC SOCIETY,13/05/2016,1441.08
Bath and North East Somerset Council,80587395,LM3,Residential Care,P11,Adult Social Care & Health,NATIONAL AUTISTIC SOCIETY,13/05/2016,1441.08
Bath and North East Somerset Council,80587395,LM3,Residential Care,P11,Adult Social Care & Health,NATIONAL AUTISTIC SOCIETY,13/05/2016,1441.08
Bath and North East Somerset Council,80587399,LM9,Day Care,P11,Adult Social Care & Health,NATIONAL AUTISTIC SOCIETY,13/05/2016,1494.22
Bath and North East Somerset Council,80587397,LL3,Supported Living,P11,Adult Social Care & Health,NATIONAL AUTISTIC SOCIETY,13/05/2016,1678.32
Bath and North East Somerset Council,80587397,LL3,Supported Living,P11,Adult Social Care & Health,NATIONAL AUTISTIC SOCIETY,13/05/2016,1678.32
Bath and North East Somerset Council,80587397,LL3,Supported Living,P11,Adult Social Care & Health,NATIONAL AUTISTIC SOCIETY,13/05/2016,1678.32
Bath and North East Somerset Council,80587397,LL3,Supported Living,P11,Adult Social Care & Health,NATIONAL AUTISTIC SOCIETY,13/05/2016,1678.32
Bath and North East Somerset Council,80587394,LM3,Residential Care,P11,Adult Social Care & Health,NATIONAL AUTISTIC SOCIETY,13/05/2016,1713.19
Bath and North East Somerset Council,80587394,LM3,Residential Care,P11,Adult Social Care & Health,NATIONAL AUTISTIC SOCIETY,13/05/2016,1713.19
Bath and North East Somerset Council,80587394,LM3,Residential Care,P11,Adult Social Care & Health,NATIONAL AUTISTIC SOCIETY,13/05/2016,1713.19
Bath and North East Somerset Council,80587394,LM3,Residential Care,P11,Adult Social Care & Health,NATIONAL AUTISTIC SOCIETY,13/05/2016,1713.19
Bath and North East Somerset Council,80587394,LM3,Residential Care,P11,Adult Social Care & Health,NATIONAL AUTISTIC SOCIETY,13/05/2016,1713.19
Bath and North East Somerset Council,80587394,LM3,Residential Care,P11,Adult Social Care & Health,NATIONAL AUTISTIC SOCIETY,13/05/2016,1713.19
Bath and North East Somerset Council,80587394,LM3,Residential Care,P11,Adult Social Care & Health,NATIONAL AUTISTIC SOCIETY,13/05/2016,1713.19
Bath and North East Somerset Council,80587394,LM3,Residential Care,P11,Adult Social Care & Health,NATIONAL AUTISTIC SOCIETY,13/05/2016,1713.19
Bath and North East Somerset Council,80587394,LM3,Residential Care,P11,Adult Social Care & Health,NATIONAL AUTISTIC SOCIETY,13/05/2016,1713.19
Bath and North East Somerset Council,80587394,LM3,Residential Care,P11,Adult Social Care & Health,NATIONAL AUTISTIC SOCIETY,13/05/2016,1713.19
Bath and North East Somerset Council,80587394,LM3,Residential Care,P11,Adult Social Care & Health,NATIONAL AUTISTIC SOCIETY,13/05/2016,1713.19
Bath and North East Somerset Council,80587394,LM3,Residential Care,P11,Adult Social Care & Health,NATIONAL AUTISTIC SOCIETY,13/05/2016,1713.19
Bath and North East Somerset Council,80587394,LM3,Residential Care,P11,Adult Social Care & Health,NATIONAL AUTISTIC SOCIETY,13/05/2016,1713.19
Bath and North East Somerset Council,80587394,LM3,Residential Care,P11,Adult Social Care & Health,NATIONAL AUTISTIC SOCIETY,13/05/2016,1713.19
Bath and North East Somerset Council,80587394,LM3,Residential Care,P11,Adult Social Care & Health,NATIONAL AUTISTIC SOCIETY,13/05/2016,1713.19
Bath and North East Somerset Council,80587394,LM3,Residential Care,P11,Adult Social Care & Health,NATIONAL AUTISTIC SOCIETY,13/05/2016,1713.19
Bath and North East Somerset Council,80587394,LM3,Residential Care,P11,Adult Social Care & Health,NATIONAL AUTISTIC SOCIETY,13/05/2016,1713.19
Bath and North East Somerset Council,80587394,LM3,Residential Care,P11,Adult Social Care & Health,NATIONAL AUTISTIC SOCIETY,13/05/2016,1713.19
Bath and North East Somerset Council,80587394,LM3,Residential Care,P11,Adult Social Care & Health,NATIONAL AUTISTIC SOCIETY,13/05/2016,1713.19
Bath and North East Somerset Council,80587394,LM3,Residential Care,P11,Adult Social Care & Health,NATIONAL AUTISTIC SOCIETY,13/05/2016,1713.19
Bath and North East Somerset Council,80587394,LM3,Residential Care,P11,Adult Social Care & Health,NATIONAL AUTISTIC SOCIETY,13/05/2016,1713.19
Bath and North East Somerset Council,80587394,LM3,Residential Care,P11,Adult Social Care & Health,NATIONAL AUTISTIC SOCIETY,13/05/2016,1713.19
Bath and North East Somerset Council,80587394,LM3,Residential Care,P11,Adult Social Care & Health,NATIONAL AUTISTIC SOCIETY,13/05/2016,1713.19
Bath and North East Somerset Council,80587394,LM3,Residential Care,P11,Adult Social Care & Health,NATIONAL AUTISTIC SOCIETY,13/05/2016,1713.19
Bath and North East Somerset Council,80587394,LM3,Residential Care,P11,Adult Social Care & Health,NATIONAL AUTISTIC SOCIETY,13/05/2016,1713.19
Bath and North East Somerset Council,80587394,LM3,Residential Care,P11,Adult Social Care & Health,NATIONAL AUTISTIC SOCIETY,13/05/2016,1713.19
Bath and North East Somerset Council,80587394,LM3,Residential Care,P11,Adult Social Care & Health,NATIONAL AUTISTIC SOCIETY,13/05/2016,1713.19
Bath and North East Somerset Council,80587394,LM3,Residential Care,P11,Adult Social Care & Health,NATIONAL AUTISTIC SOCIETY,13/05/2016,1713.19
Bath and North East Somerset Council,80587394,LM3,Residential Care,P11,Adult Social Care & Health,NATIONAL AUTISTIC SOCIETY,13/05/2016,1713.19
Bath and North East Somerset Council,80587394,LM3,Residential Care,P11,Adult Social Care & Health,NATIONAL AUTISTIC SOCIETY,13/05/2016,1713.19
Bath and North East Somerset Council,80587394,LM3,Residential Care,P11,Adult Social Care & Health,NATIONAL AUTISTIC SOCIETY,13/05/2016,1713.19
Bath and North East Somerset Council,80587394,LM3,Residential Care,P11,Adult Social Care & Health,NATIONAL AUTISTIC SOCIETY,13/05/2016,1713.19
Bath and North East Somerset Council,80587394,LM3,Residential Care,P11,Adult Social Care & Health,NATIONAL AUTISTIC SOCIETY,13/05/2016,1713.19
Bath and North East Somerset Council,80587394,LM3,Residential Care,P11,Adult Social Care & Health,NATIONAL AUTISTIC SOCIETY,13/05/2016,1713.19
Bath and North East Somerset Council,80587394,LM3,Residential Care,P11,Adult Social Care & Health,NATIONAL AUTISTIC SOCIETY,13/05/2016,1713.19
Bath and North East Somerset Council,80587394,LM3,Residential Care,P11,Adult Social Care & Health,NATIONAL AUTISTIC SOCIETY,13/05/2016,1713.19
Bath and North East Somerset Council,80587394,LM3,Residential Care,P11,Adult Social Care & Health,NATIONAL AUTISTIC SOCIETY,13/05/2016,1713.19
Bath and North East Somerset Council,80587394,LM3,Residential Care,P11,Adult Social Care & Health,NATIONAL AUTISTIC SOCIETY,13/05/2016,1713.19
Bath and North East Somerset Council,10811178,LJ4,Contracts,P12,Children's Services,N B KNAPMAN,13/05/2016,587.5
Bath and North East Somerset Council,80587394,LM3,Residential Care,P11,Adult Social Care & Health,NATIONAL AUTISTIC SOCIETY,13/05/2016,1713.19
Bath and North East Somerset Council,80587394,LM3,Residential Care,P11,Adult Social Care & Health,NATIONAL AUTISTIC SOCIETY,13/05/2016,1713.19
Bath and North East Somerset Council,80587394,LM3,Residential Care,P11,Adult Social Care & Health,NATIONAL AUTISTIC SOCIETY,13/05/2016,1713.19
Bath and North East Somerset Council,80587394,LM3,Residential Care,P11,Adult Social Care & Health,NATIONAL AUTISTIC SOCIETY,13/05/2016,1713.19
Bath and North East Somerset Council,80587394,LM3,Residential Care,P11,Adult Social Care & Health,NATIONAL AUTISTIC SOCIETY,13/05/2016,1713.19
Bath and North East Somerset Council,80587394,LM3,Residential Care,P11,Adult Social Care & Health,NATIONAL AUTISTIC SOCIETY,13/05/2016,1713.19
Bath and North East Somerset Council,80587394,LM3,Residential Care,P11,Adult Social Care & Health,NATIONAL AUTISTIC SOCIETY,13/05/2016,1713.19
Bath and North East Somerset Council,80587394,LM3,Residential Care,P11,Adult Social Care & Health,NATIONAL AUTISTIC SOCIETY,13/05/2016,1713.19
Bath and North East Somerset Council,80587394,LM3,Residential Care,P11,Adult Social Care & Health,NATIONAL AUTISTIC SOCIETY,13/05/2016,1713.19
Bath and North East Somerset Council,80587394,LM3,Residential Care,P11,Adult Social Care & Health,NATIONAL AUTISTIC SOCIETY,13/05/2016,1713.19
Bath and North East Somerset Council,80587394,LM3,Residential Care,P11,Adult Social Care & Health,NATIONAL AUTISTIC SOCIETY,13/05/2016,1713.19
Bath and North East Somerset Council,80587394,LM3,Residential Care,P11,Adult Social Care & Health,NATIONAL AUTISTIC SOCIETY,13/05/2016,1713.19
Bath and North East Somerset Council,80587394,LM3,Residential Care,P11,Adult Social Care & Health,NATIONAL AUTISTIC SOCIETY,13/05/2016,1713.19
Bath and North East Somerset Council,80587394,LM3,Residential Care,P11,Adult Social Care & Health,NATIONAL AUTISTIC SOCIETY,13/05/2016,1713.19
Bath and North East Somerset Council,10811067,3C4,Building Works,P14,Community Services,ANTHONY BROOKES SURVEYS LTD,13/05/2016,590
Bath and North East Somerset Council,80587396,LM3,Residential Care,P11,Adult Social Care & Health,NATIONAL AUTISTIC SOCIETY,13/05/2016,1978.54
Bath and North East Somerset Council,80587396,LM3,Residential Care,P11,Adult Social Care & Health,NATIONAL AUTISTIC SOCIETY,13/05/2016,1978.54
Bath and North East Somerset Council,80587396,LM3,Residential Care,P11,Adult Social Care & Health,NATIONAL AUTISTIC SOCIETY,13/05/2016,1978.54
Bath and North East Somerset Council,80587396,LM3,Residential Care,P11,Adult Social Care & Health,NATIONAL AUTISTIC SOCIETY,13/05/2016,1978.54
Bath and North East Somerset Council,80587396,LM3,Residential Care,P11,Adult Social Care & Health,NATIONAL AUTISTIC SOCIETY,13/05/2016,1978.54
Bath and North East Somerset Council,80587396,LM3,Residential Care,P11,Adult Social Care & Health,NATIONAL AUTISTIC SOCIETY,13/05/2016,1978.54
Bath and North East Somerset Council,80587396,LM3,Residential Care,P11,Adult Social Care & Health,NATIONAL AUTISTIC SOCIETY,13/05/2016,1978.54
Bath and North East Somerset Council,80587396,LM3,Residential Care,P11,Adult Social Care & Health,NATIONAL AUTISTIC SOCIETY,13/05/2016,1978.54
Bath and North East Somerset Council,80587396,LM3,Residential Care,P11,Adult Social Care & Health,NATIONAL AUTISTIC SOCIETY,13/05/2016,1978.54
Bath and North East Somerset Council,80587396,LM3,Residential Care,P11,Adult Social Care & Health,NATIONAL AUTISTIC SOCIETY,13/05/2016,1978.54
Bath and North East Somerset Council,80587396,LM3,Residential Care,P11,Adult Social Care & Health,NATIONAL AUTISTIC SOCIETY,13/05/2016,1978.54
Bath and North East Somerset Council,80587396,LM3,Residential Care,P11,Adult Social Care & Health,NATIONAL AUTISTIC SOCIETY,13/05/2016,1978.54
Bath and North East Somerset Council,80587396,LM3,Residential Care,P11,Adult Social Care & Health,NATIONAL AUTISTIC SOCIETY,13/05/2016,1978.54
Bath and North East Somerset Council,80587396,LM3,Residential Care,P11,Adult Social Care & Health,NATIONAL AUTISTIC SOCIETY,13/05/2016,1978.54
Bath and North East Somerset Council,80587396,LM3,Residential Care,P11,Adult Social Care & Health,NATIONAL AUTISTIC SOCIETY,13/05/2016,1978.54
Bath and North East Somerset Council,80587396,LM3,Residential Care,P11,Adult Social Care & Health,NATIONAL AUTISTIC SOCIETY,13/05/2016,1978.54
Bath and North East Somerset Council,80587396,LM3,Residential Care,P11,Adult Social Care & Health,NATIONAL AUTISTIC SOCIETY,13/05/2016,1978.54
Bath and North East Somerset Council,80587396,LM3,Residential Care,P11,Adult Social Care & Health,NATIONAL AUTISTIC SOCIETY,13/05/2016,1978.54
Bath and North East Somerset Council,80587396,LM3,Residential Care,P11,Adult Social Care & Health,NATIONAL AUTISTIC SOCIETY,13/05/2016,1978.54
Bath and North East Somerset Council,80587396,LM3,Residential Care,P11,Adult Social Care & Health,NATIONAL AUTISTIC SOCIETY,13/05/2016,1978.54
Bath and North East Somerset Council,80587396,LM3,Residential Care,P11,Adult Social Care & Health,NATIONAL AUTISTIC SOCIETY,13/05/2016,1978.54
Bath and North East Somerset Council,80587396,LM3,Residential Care,P11,Adult Social Care & Health,NATIONAL AUTISTIC SOCIETY,13/05/2016,1978.54
Bath and North East Somerset Council,80587396,LM3,Residential Care,P11,Adult Social Care & Health,NATIONAL AUTISTIC SOCIETY,13/05/2016,1978.54
Bath and North East Somerset Council,80587396,LM3,Residential Care,P11,Adult Social Care & Health,NATIONAL AUTISTIC SOCIETY,13/05/2016,1978.54
Bath and North East Somerset Council,80587396,LM3,Residential Care,P11,Adult Social Care & Health,NATIONAL AUTISTIC SOCIETY,13/05/2016,1978.54
Bath and North East Somerset Council,80587396,LM3,Residential Care,P11,Adult Social Care & Health,NATIONAL AUTISTIC SOCIETY,13/05/2016,1978.54
Bath and North East Somerset Council,80587396,LM3,Residential Care,P11,Adult Social Care & Health,NATIONAL AUTISTIC SOCIETY,13/05/2016,1978.54
Bath and North East Somerset Council,80587396,LM3,Residential Care,P11,Adult Social Care & Health,NATIONAL AUTISTIC SOCIETY,13/05/2016,1978.54
Bath and North East Somerset Council,80587396,LM3,Residential Care,P11,Adult Social Care & Health,NATIONAL AUTISTIC SOCIETY,13/05/2016,1978.54
Bath and North East Somerset Council,80587396,LM3,Residential Care,P11,Adult Social Care & Health,NATIONAL AUTISTIC SOCIETY,13/05/2016,1978.54
Bath and North East Somerset Council,80587396,LM3,Residential Care,P11,Adult Social Care & Health,NATIONAL AUTISTIC SOCIETY,13/05/2016,1978.54
Bath and North East Somerset Council,80587396,LM3,Residential Care,P11,Adult Social Care & Health,NATIONAL AUTISTIC SOCIETY,13/05/2016,1978.54
Bath and North East Somerset Council,80587396,LM3,Residential Care,P11,Adult Social Care & Health,NATIONAL AUTISTIC SOCIETY,13/05/2016,1978.54
Bath and North East Somerset Council,80587396,LM3,Residential Care,P11,Adult Social Care & Health,NATIONAL AUTISTIC SOCIETY,13/05/2016,1978.54
Bath and North East Somerset Council,80587396,LM3,Residential Care,P11,Adult Social Care & Health,NATIONAL AUTISTIC SOCIETY,13/05/2016,1978.54
Bath and North East Somerset Council,80587396,LM3,Residential Care,P11,Adult Social Care & Health,NATIONAL AUTISTIC SOCIETY,13/05/2016,1978.54
Bath and North East Somerset Council,80587396,LM3,Residential Care,P11,Adult Social Care & Health,NATIONAL AUTISTIC SOCIETY,13/05/2016,1978.54
Bath and North East Somerset Council,80587396,LM3,Residential Care,P11,Adult Social Care & Health,NATIONAL AUTISTIC SOCIETY,13/05/2016,1978.54
Bath and North East Somerset Council,80587396,LM3,Residential Care,P11,Adult Social Care & Health,NATIONAL AUTISTIC SOCIETY,13/05/2016,1978.54
Bath and North East Somerset Council,80587396,LM3,Residential Care,P11,Adult Social Care & Health,NATIONAL AUTISTIC SOCIETY,13/05/2016,1978.54
Bath and North East Somerset Council,80587396,LM3,Residential Care,P11,Adult Social Care & Health,NATIONAL AUTISTIC SOCIETY,13/05/2016,1978.54
Bath and North East Somerset Council,80587396,LM3,Residential Care,P11,Adult Social Care & Health,NATIONAL AUTISTIC SOCIETY,13/05/2016,1978.54
Bath and North East Somerset Council,80587396,LM3,Residential Care,P11,Adult Social Care & Health,NATIONAL AUTISTIC SOCIETY,13/05/2016,1978.54
Bath and North East Somerset Council,80587396,LM3,Residential Care,P11,Adult Social Care & Health,NATIONAL AUTISTIC SOCIETY,13/05/2016,1978.54
Bath and North East Somerset Council,80587396,LM3,Residential Care,P11,Adult Social Care & Health,NATIONAL AUTISTIC SOCIETY,13/05/2016,1978.54
Bath and North East Somerset Council,80587396,LM3,Residential Care,P11,Adult Social Care & Health,NATIONAL AUTISTIC SOCIETY,13/05/2016,1978.54
Bath and North East Somerset Council,80587396,LM3,Residential Care,P11,Adult Social Care & Health,NATIONAL AUTISTIC SOCIETY,13/05/2016,1978.54
Bath and North East Somerset Council,80587396,LM3,Residential Care,P11,Adult Social Care & Health,NATIONAL AUTISTIC SOCIETY,13/05/2016,1978.54
Bath and North East Somerset Council,80587396,LM3,Residential Care,P11,Adult Social Care & Health,NATIONAL AUTISTIC SOCIETY,13/05/2016,1978.54
Bath and North East Somerset Council,80587396,LM3,Residential Care,P11,Adult Social Care & Health,NATIONAL AUTISTIC SOCIETY,13/05/2016,1978.54
Bath and North East Somerset Council,10811171,LL1,Services to/for Clients,P12,Children's Services,BATH CONTRACT FLOORING LTD,13/05/2016,600
Bath and North East Somerset Council,80587398,LM3,Residential Care,P11,Adult Social Care & Health,NATIONAL STAR COLLEGE,13/05/2016,2878.41
Bath and North East Somerset Council,80587398,LM3,Residential Care,P11,Adult Social Care & Health,NATIONAL STAR COLLEGE,13/05/2016,2878.41
Bath and North East Somerset Council,80587398,LM3,Residential Care,P11,Adult Social Care & Health,NATIONAL STAR COLLEGE,13/05/2016,2878.41
Bath and North East Somerset Council,80587398,LM3,Residential Care,P11,Adult Social Care & Health,NATIONAL STAR COLLEGE,13/05/2016,2878.41
Bath and North East Somerset Council,80587398,LM3,Residential Care,P11,Adult Social Care & Health,NATIONAL STAR COLLEGE,13/05/2016,2878.41
Bath and North East Somerset Council,80587398,LM3,Residential Care,P11,Adult Social Care & Health,NATIONAL STAR COLLEGE,13/05/2016,2878.41
Bath and North East Somerset Council,80587398,LM3,Residential Care,P11,Adult Social Care & Health,NATIONAL STAR COLLEGE,13/05/2016,2878.41
Bath and North East Somerset Council,80587398,LM3,Residential Care,P11,Adult Social Care & Health,NATIONAL STAR COLLEGE,13/05/2016,2878.41
Bath and North East Somerset Council,80587398,LM3,Residential Care,P11,Adult Social Care & Health,NATIONAL STAR COLLEGE,13/05/2016,2878.41
Bath and North East Somerset Council,80587398,LM3,Residential Care,P11,Adult Social Care & Health,NATIONAL STAR COLLEGE,13/05/2016,2878.41
Bath and North East Somerset Council,80587398,LM3,Residential Care,P11,Adult Social Care & Health,NATIONAL STAR COLLEGE,13/05/2016,2878.41
Bath and North East Somerset Council,80587267,LA7,Purchases for Resale,P13,Economic Development,HOUSE OF DORCHESTER LTD,13/05/2016,693
Bath and North East Somerset Council,80587239,LA7,Purchases for Resale,P13,Economic Development,TEMPLE ISLAND COLLECTIONS,13/05/2016,701.6
Bath and North East Somerset Council,80587257,LA7,Purchases for Resale,P13,Economic Development,WESTAIR REPRODUCTIONS LIMITED,13/05/2016,858.96
Bath and North East Somerset Council,80587328,LL3,Supported Living,P11,Adult Social Care & Health,PRESTIGE NURSING HEALTHCARE,13/05/2016,735.19
Bath and North East Somerset Council,80587335,LL3,Supported Living,P11,Adult Social Care & Health,PRESTIGE NURSING HEALTHCARE,13/05/2016,735.19
Bath and North East Somerset Council,80587323,LL3,Supported Living,P11,Adult Social Care & Health,PRESTIGE NURSING HEALTHCARE,13/05/2016,2532.01
Bath and North East Somerset Council,80587330,LL3,Supported Living,P11,Adult Social Care & Health,PRESTIGE NURSING HEALTHCARE,13/05/2016,2532.01
Bath and North East Somerset Council,80587326,LL3,Supported Living,P11,Adult Social Care & Health,PRESTIGE NURSING HEALTHCARE,13/05/2016,4421.88
Bath and North East Somerset Council,80587334,LL3,Supported Living,P11,Adult Social Care & Health,PRESTIGE NURSING HEALTHCARE,13/05/2016,4421.88
Bath and North East Somerset Council,80587376,LM8,Home Care,P11,Adult Social Care & Health,PRESTIGE NURSING HEALTHCARE,13/05/2016,5824.8
Bath and North East Somerset Council,80587377,LM8,Home Care,P11,Adult Social Care & Health,PRESTIGE NURSING HEALTHCARE,13/05/2016,5824.8
Bath and North East Somerset Council,80587356,LL3,Supported Living,P11,Adult Social Care & Health,PROSPECTS FPWLD MAIN,13/05/2016,701.7
Bath and North East Somerset Council,80587356,LL3,Supported Living,P11,Adult Social Care & Health,PROSPECTS FPWLD MAIN,13/05/2016,701.7
Bath and North East Somerset Council,80587356,LL3,Supported Living,P11,Adult Social Care & Health,PROSPECTS FPWLD MAIN,13/05/2016,701.7
Bath and North East Somerset Council,80587356,LL3,Supported Living,P11,Adult Social Care & Health,PROSPECTS FPWLD MAIN,13/05/2016,701.7
Bath and North East Somerset Council,80587320,LL3,Supported Living,P11,Adult Social Care & Health,REDACTED,13/05/2016,146.45
Bath and North East Somerset Council,80587320,LL3,Supported Living,P11,Adult Social Care & Health,REDACTED,13/05/2016,146.45
Bath and North East Somerset Council,80587320,LL3,Supported Living,P11,Adult Social Care & Health,REDACTED,13/05/2016,146.45
Bath and North East Somerset Council,80587320,LL3,Supported Living,P11,Adult Social Care & Health,REDACTED,13/05/2016,146.45
Bath and North East Somerset Council,80587320,LL3,Supported Living,P11,Adult Social Care & Health,REDACTED,13/05/2016,146.45
Bath and North East Somerset Council,80587321,LL3,Supported Living,P11,Adult Social Care & Health,REDACTED,13/05/2016,402.99
Bath and North East Somerset Council,80587321,LL3,Supported Living,P11,Adult Social Care & Health,REDACTED,13/05/2016,402.99
Bath and North East Somerset Council,80587321,LL3,Supported Living,P11,Adult Social Care & Health,REDACTED,13/05/2016,402.99
Bath and North East Somerset Council,80587321,LL3,Supported Living,P11,Adult Social Care & Health,REDACTED,13/05/2016,402.99
Bath and North East Somerset Council,80587321,LL3,Supported Living,P11,Adult Social Care & Health,REDACTED,13/05/2016,402.99
Bath and North East Somerset Council,80587310,LL3,Supported Living,P11,Adult Social Care & Health,ROYAL MENCAP SOCIETY,13/05/2016,321.43
Bath and North East Somerset Council,80587310,LL3,Supported Living,P11,Adult Social Care & Health,ROYAL MENCAP SOCIETY,13/05/2016,321.43
Bath and North East Somerset Council,80587310,LL3,Supported Living,P11,Adult Social Care & Health,ROYAL MENCAP SOCIETY,13/05/2016,321.43
Bath and North East Somerset Council,80587310,LL3,Supported Living,P11,Adult Social Care & Health,ROYAL MENCAP SOCIETY,13/05/2016,321.43
Bath and North East Somerset Council,80587308,LL3,Supported Living,P11,Adult Social Care & Health,ROYAL MENCAP SOCIETY,13/05/2016,415.44
Bath and North East Somerset Council,80587308,LL3,Supported Living,P11,Adult Social Care & Health,ROYAL MENCAP SOCIETY,13/05/2016,415.44
Bath and North East Somerset Council,80587308,LL3,Supported Living,P11,Adult Social Care & Health,ROYAL MENCAP SOCIETY,13/05/2016,415.44
Bath and North East Somerset Council,80587308,LL3,Supported Living,P11,Adult Social Care & Health,ROYAL MENCAP SOCIETY,13/05/2016,415.44
Bath and North East Somerset Council,80587304,LL3,Supported Living,P11,Adult Social Care & Health,ROYAL MENCAP SOCIETY,13/05/2016,493.85
Bath and North East Somerset Council,80587304,LL3,Supported Living,P11,Adult Social Care & Health,ROYAL MENCAP SOCIETY,13/05/2016,493.85
Bath and North East Somerset Council,80587304,LL3,Supported Living,P11,Adult Social Care & Health,ROYAL MENCAP SOCIETY,13/05/2016,493.85
Bath and North East Somerset Council,80587304,LL3,Supported Living,P11,Adult Social Care & Health,ROYAL MENCAP SOCIETY,13/05/2016,493.85
Bath and North East Somerset Council,80587309,LL3,Supported Living,P11,Adult Social Care & Health,ROYAL MENCAP SOCIETY,13/05/2016,502.31
Bath and North East Somerset Council,80587309,LL3,Supported Living,P11,Adult Social Care & Health,ROYAL MENCAP SOCIETY,13/05/2016,502.31
Bath and North East Somerset Council,80587309,LL3,Supported Living,P11,Adult Social Care & Health,ROYAL MENCAP SOCIETY,13/05/2016,502.31
Bath and North East Somerset Council,80587309,LL3,Supported Living,P11,Adult Social Care & Health,ROYAL MENCAP SOCIETY,13/05/2016,502.31
Bath and North East Somerset Council,80587305,LL3,Supported Living,P11,Adult Social Care & Health,ROYAL MENCAP SOCIETY,13/05/2016,521.18
Bath and North East Somerset Council,80587305,LL3,Supported Living,P11,Adult Social Care & Health,ROYAL MENCAP SOCIETY,13/05/2016,521.18
Bath and North East Somerset Council,80587305,LL3,Supported Living,P11,Adult Social Care & Health,ROYAL MENCAP SOCIETY,13/05/2016,521.18
Bath and North East Somerset Council,80587305,LL3,Supported Living,P11,Adult Social Care & Health,ROYAL MENCAP SOCIETY,13/05/2016,521.18
Bath and North East Somerset Council,80587306,LL3,Supported Living,P11,Adult Social Care & Health,ROYAL MENCAP SOCIETY,13/05/2016,1155.83
Bath and North East Somerset Council,80587306,LL3,Supported Living,P11,Adult Social Care & Health,ROYAL MENCAP SOCIETY,13/05/2016,1155.83
Bath and North East Somerset Council,80587306,LL3,Supported Living,P11,Adult Social Care & Health,ROYAL MENCAP SOCIETY,13/05/2016,1155.83
Bath and North East Somerset Council,80587306,LL3,Supported Living,P11,Adult Social Care & Health,ROYAL MENCAP SOCIETY,13/05/2016,1155.83
Bath and North East Somerset Council,80587307,LL3,Supported Living,P11,Adult Social Care & Health,ROYAL MENCAP SOCIETY,13/05/2016,1527.71
Bath and North East Somerset Council,80587307,LL3,Supported Living,P11,Adult Social Care & Health,ROYAL MENCAP SOCIETY,13/05/2016,1527.71
Bath and North East Somerset Council,80587307,LL3,Supported Living,P11,Adult Social Care & Health,ROYAL MENCAP SOCIETY,13/05/2016,1527.71
Bath and North East Somerset Council,80587307,LL3,Supported Living,P11,Adult Social Care & Health,ROYAL MENCAP SOCIETY,13/05/2016,1527.71
Bath and North East Somerset Council,80587314,LL3,Supported Living,P11,Adult Social Care & Health,S.W.A.L.L.O.W. LTD,13/05/2016,232.32
Bath and North East Somerset Council,80587314,LL3,Supported Living,P11,Adult Social Care & Health,S.W.A.L.L.O.W. LTD,13/05/2016,232.32
Bath and North East Somerset Council,80587314,LL3,Supported Living,P11,Adult Social Care & Health,S.W.A.L.L.O.W. LTD,13/05/2016,232.32
Bath and North East Somerset Council,10811187,LF3,Books & Publications,P12,Children's Services,BOOK TRUST,13/05/2016,960.44
Bath and North East Somerset Council,80587229,LA7,Purchases for Resale,P13,Economic Development,DJH ENGINEERING LTD,13/05/2016,963
Bath and North East Somerset Council,80587256,LA7,Purchases for Resale,P13,Economic Development,TIMOTHY RICHARDS ARCHITECTURAL FINE ARTS COMM LTD,13/05/2016,976.1
Bath and North East Somerset Council,80587349,LL3,Supported Living,P11,Adult Social Care & Health,SELBORNE CARE LTD,13/05/2016,215.6
Bath and North East Somerset Council,80587349,LL3,Supported Living,P11,Adult Social Care & Health,SELBORNE CARE LTD,13/05/2016,215.6
Bath and North East Somerset Council,80587349,LL3,Supported Living,P11,Adult Social Care & Health,SELBORNE CARE LTD,13/05/2016,215.6
Bath and North East Somerset Council,80587350,LL3,Supported Living,P11,Adult Social Care & Health,SELBORNE CARE LTD,13/05/2016,230.3
Bath and North East Somerset Council,80587350,LL3,Supported Living,P11,Adult Social Care & Health,SELBORNE CARE LTD,13/05/2016,230.3
Bath and North East Somerset Council,80587350,LL3,Supported Living,P11,Adult Social Care & Health,SELBORNE CARE LTD,13/05/2016,230.3
Bath and North East Somerset Council,80587350,LL3,Supported Living,P11,Adult Social Care & Health,SELBORNE CARE LTD,13/05/2016,230.3
Bath and North East Somerset Council,80587311,LL3,Supported Living,P11,Adult Social Care & Health,SENSE,13/05/2016,160.8
Bath and North East Somerset Council,80587311,LL3,Supported Living,P11,Adult Social Care & Health,SENSE,13/05/2016,160.8
Bath and North East Somerset Council,80587311,LL3,Supported Living,P11,Adult Social Care & Health,SENSE,13/05/2016,160.8
Bath and North East Somerset Council,80587311,LL3,Supported Living,P11,Adult Social Care & Health,SENSE,13/05/2016,160.8
Bath and North East Somerset Council,80587311,LL3,Supported Living,P11,Adult Social Care & Health,SENSE,13/05/2016,160.8
Bath and North East Somerset Council,80587247,LA7,Purchases for Resale,P13,Economic Development,DROYT PRODUCTS LTD,13/05/2016,999.6
Bath and North East Somerset Council,80587249,LA7,Purchases for Resale,P13,Economic Development,THE MASTER HERBALIST LIMITED,13/05/2016,1013.5
Bath and North East Somerset Council,80587353,LM3,Residential Care,P11,Adult Social Care & Health,SIRONA CARE & HEALTH C.I.C.,13/05/2016,87.45
Bath and North East Somerset Council,80587352,LM3,Residential Care,P11,Adult Social Care & Health,SIRONA CARE & HEALTH C.I.C.,13/05/2016,612.17
Bath and North East Somerset Council,80587352,LM3,Residential Care,P11,Adult Social Care & Health,SIRONA CARE & HEALTH C.I.C.,13/05/2016,612.17
Bath and North East Somerset Council,80587352,LM3,Residential Care,P11,Adult Social Care & Health,SIRONA CARE & HEALTH C.I.C.,13/05/2016,612.17
